Workbook

Sheet Input
C2: Master Check | D2: =SUM(Check!E4:E201) -> 3.399235338e-10
A6: GENERAL INPUTS
C8: General
C10: Project Year Zero | E10: 2018
C11: Next Rebasing Year | E11: 2029
C12: Inflation | D12: % | E12: 0.0127 | F12: Union's list of common assumptions
C13: Tax Rate | D13: % | E13: 0.265
C14: Days in a Year | D14: day | E14: 365 | F14: for estimating NWC
C15: Feet per Meter | D15: ft / m | E15: 3.28084
C16: GJ per m3 | D16: GJ / m3 | E16: =38.89/1000 -> 0.03889
C17: Working Capital | D17: % of Gas Commodity Cost , Upstream Costs & O&M | E17: 0.075
C19: Non-distribution Costs
C21: Commodity Cost of Gas | D21: base year $ / m3 | E21: =-3.17*$E$16 -> -0.1232813 | F21: must be negative | G21: pending on Gas Supply plan
C23: Union M17
C24: Upstream Transporation - Capacity Charge from Union | D24: 2019 $ / month / GJ / day | E24: -4.431 | F24: must be negative
C25: Upstream Transporation - Commodity Charge from Union | D25: 2019 $ / GJ | E25: =-AVERAGE(0.01,0.024) -> -0.017 | F25: must be negative
C26: Upstream Transporation - Customer Charge from Union | D26: 2019 $0,000s / month | E26: -1.99871 | F26: must be negative
C28: Load Balancing
C29: Daily Balancing & Nominations and Adivisory | D29: $ / GJ | E29: -0.0275
C31: Other Costs and LEAP Funding
C32: Other Cost per Customers | D32: $ / Cx / year | E32: -3.643314923
C33: Leap Funding | D33: % of Distribution Revenue | E33: 0.0012
C35: Regulated Cost of Capital | E35: Cost of Capital Released October 27, 2016 | F35: Cost of Capital Released October 27, 2016 | G35: Capital Structure
C36: ST Debt | D36: % | E36: 0.0176 | F36: 0.0176 | G36: 0.04
C37: LT Debt | D37: % | E37: 0.0372 | F37: 0.0372 | G37: 0.6
C38: Equity | D38: % | E38: 0.0878 | F38: 0.0878 | G38: 0.36
C39: WACC | E39: =SUMPRODUCT(E36:E38,G36:G38) -> 0.054632 | F39: =SUMPRODUCT(F36:F38,G36:G38) -> 0.054632 | G39: =SUM(G36:G38) -> 1
C41: CWIP Presecribed Interest Rate | D41: % | E41: 0.0299 | F41: Q4 2017 | K41: Source
C43: CCA and Depreciation Rates
F44: Union's list of common assumptions
C45: Asset Group | D45: CCA Rate | E45: Depreciation Rate | F45: Service Life
C46: CIAC to Union - Owen Sound Reinforcement | D46: 0.05 | E46: 0.0198 | F46: =IFERROR(ROUND(1/E46,0),0) -> 51
C47: CIAC to Union - Station | D47: 0.05 | E47: 0.026 | F47: 38
C48: Distribution Mains - Metallic | D48: 0.06 | E48: 0.0283 | F48: 35
C49: Distribution Land Rights | D49: 0.05 | E49: 0.0165 | F49: 61
C50: Distribution Mains - Plastic | D50: 0.06 | E50: 0.0231 | F50: 43
C51: Distribution Services Plastic | D51: 0.06 | E51: 0.0251 | F51: 40
C52: Distribution Meters | D52: 0.06 | E52: 0.0382 | F52: 26
C53: Distribution Measuring and Regulating Equipt. | D53: 0.06 | E53: 0.0366 | F53: 27
C54: Vehicles | D54: 0.3 | E54: 0.1111111111 | F54: 9
C55: Machinery and Equipment | D55: 0.5 | E55: 0.06 | F55: 17
C58: Property Taxes
C60: Municipality | D60: Tax Holiday in the Rate Stability Period | E60: Kincardine | F60: Arran-Elderslie | G60: Huron-Kinloss | H60: Brockton | I60: West Grey | J60: Chatsworth
C62: Pipeline Tax Rates
C63: Municipal Rate | D63: Tax Holiday | E63: 0.00662135 | F63: 0.00747501 | G63: 0.00606769 | H63: 0.00785353 | I63: 0.00559039 | J63: 0.00604158
C64: County Rate | D64: No Tax Holiday | E64: 0.00393288 | F64: 0.00393288 | G64: 0.00393288 | H64: 0.00393288 | I64: 0.00325647 | J64: 0.00325647
C65: School Rate | D65: No Tax Holiday | E65: 0.00978158 | F65: 0.00978158 | G65: 0.00978158 | H65: 0.00978158 | I65: 0.0109 | J65: 0.0109
C66: Mill Rate in the Rate Stability Period | E66: =SUMIF($D$63:$D$65,"No Tax Holiday",E63:E65) -> 0.01371446 | F66: =SUMIF($D$63:$D$65,"No Tax Holiday",F63:F65) -> 0.01371446 | G66: =SUMIF($D$63:$D$65,"No Tax Holiday",G63:G65) -> 0.01371446 | H66: =SUM(H63:H65) -> 0.02156799 | I66: =SUM(I63:I65) -> 0.01974686 | J66: =SUM(J63:J65) -> 0.02019805
C67: Mill Rate after the Rate Stability Period | E67: =SUM(E63:E65) -> 0.02033581 | F67: 0.02118947 | G67: 0.01978215 | H67: 0.02156799 | I67: 0.01974686 | J67: 0.02019805
C69: Pipeline Assessment Rates
C71: Last Effective Year of the Assessment Rate Below | E71: 2020
C72: Frequency of Regulation Change | D72: year | E72: 4
C73: Increase in Assessment Value Upon Regulation Change | D73: % / regulation change | E73: =(1+inflation)^$E$72-1 -> 0.05177595955
C75: Material | D75: Outside Diameter From | E75: Outside Diameter To | F75: Assessment Rate
D76: inches | E76: inches | F76: $ / foot
C77: Plastic | D77: 0 | E77: 0.5 | F77: 5.16
C78: Plastic | D78: 0.51 | E78: 1 | F78: 6.19
C79: Plastic | D79: 1.01 | E79: 1.5 | F79: 7.25
C80: Plastic | D80: 1.51 | E80: 2.5 | F80: 9.33
C81: Plastic | D81: 2.51 | E81: 3 | F81: 14.99
C82: Plastic | D82: 3.01 | E82: 4.5 | F82: 18.06
C83: Plastic | D83: 4.51 | E83: 8 | F83: 38.39
C84: Plastic | D84: 8.01 | E84: 100 | F84: 47.93
C85: Non-plastic | D85: 0 | E85: 1 | F85: 15.31
C86: Non-plastic | D86: 1.01 | E86: 1.5 | F86: 18.15
C87: Non-plastic | D87: 1.51 | E87: 2.5 | F87: 21.4
C88: Non-plastic | D88: 2.51 | E88: 3 | F88: 30.64
C89: Non-plastic | D89: 3.01 | E89: 4.5 | F89: 35.66
C90: Non-plastic | D90: 4.51 | E90: 5.625 | F90: 40.69
C91: Non-plastic | D91: 5.635 | E91: 6.625 | F91: 45.93
C92: Non-plastic | D92: 6.635 | E92: 8 | F92: 59.25
C93: Non-plastic | D93: 8.01 | E93: 10 | F93: 70.07
C94: Non-plastic | D94: 10.01 | E94: 12 | F94: 89.89
C95: Non-plastic | D95: 12.01 | E95: 14 | F95: 109.93
C96: Non-plastic | D96: 14.01 | E96: 16 | F96: 144.21
A98: COST ALLOCATION
C100: Classification of Functions
C101: x = functions, y = classifications, content = % of the function assigned to the classification
D102: Gas Supply | E102: Storage | F102: Load Balancing | G102: Upstream Transportation | H102: Industrial Direct Assignment | I102: Distribution Mains H.P. Steel | J102: Distribution Measurement | K102: Distribution Mains | L102: Customer - Services | M102: Customer - Meters | N102: Billing and Accounting | O102: Promotion | P102: Bad Debt and Collection | Q102: A&G
C103: Commodity | D103: 1 | F103: 0.4 | G103: 0.02208179784
C104: Upstream Capacity | F104: 0.6 | G104: 0.9779182022
C105: Storage Space | E105: 0.4
C106: Storage Deliverability | E106: 0.6
C107: Industrial Direct Assignment | H107: 1
C108: Delivery Commodity | J108: 0.5
C109: Capacity HP | I109: 1 | J109: 0.3035
C110: Capacity LP | J110: 0.1965 | K110: 0.6653
C111: Customer | O111: 1
C112: Customer Weighted Services | L112: 1
C113: Customer Weighted Meters | M113: 1
C114: Customer Weighted Billing | N114: 1
C115: Customer Excluding Industrial | K115: 0.3347
C116: Bad Debt / Collection | P116: 1
C118: Check | D118: =ABS(1-SUM(D103:D116)) -> 0 | E118: 0 | F118: 0 | G118: 0 | H118: 0 | I118: 0 | J118: 0 | K118: 0 | L118: 0 | M118: 0 | N118: 0 | O118: 0 | P118: 0
C120: Mapping of Allocation Factors to Classifications
C121: x = allocation factors y = classifications, content = % of costs associated with the classification mapped to the allocation factor
D122: =D148 -> Commodity Volume Including Industrial | E122: Commodity Volume Excluding Industrial | F122: Coincidental Peak | G122: Non-coincidental Peak | H122: Weighted Peak (Avg of CP 1 & NCP 1) | I122: Coincidental Peak Excluding Industrial | J122: Non-coincidental Peak Excluding Industrial | K122: Weighted Peak Excluding Industrial (Avg of CP 2 & NCP 2) | L122: Winter Excess Volume | M122: Peak Demand Over Winter Volume | N122: Customer | O122: Customer Weighted by Services | P122: Customer Weighted by Meters | Q122: Customer Weighted by Billing | R122: Customer Excluding Industrial | S122: Industrial Direct Assignment | T122: Bad Debt / Collection | V122: Check
C123: =C$103 -> Commodity | E123: 1 | V123: =SUM(D123:T123)-1 -> 0
C124: =C$104 -> Upstream Capacity | I124: 1 | V124: 0
C125: =C$105 -> Storage Space | L125: 1 | V125: 0
C126: =C$106 -> Storage Deliverability | M126: 1 | V126: 0
C127: =C$107 -> Industrial Direct Assignment | S127: 1 | V127: 0
C128: =C$108 -> Delivery Commodity | D128: 1 | V128: 0
C129: =C$109 -> Capacity HP | H129: 1 | V129: 0
C130: =C$110 -> Capacity LP | K130: 1 | V130: 0
C131: =C$111 -> Customer | N131: 1 | V131: 0
C132: =C$112 -> Customer Weighted Services | O132: 1 | V132: 0
C133: =C$113 -> Customer Weighted Meters | P133: 1 | V133: 0
C134: =C$114 -> Customer Weighted Billing | Q134: 1 | V134: 0
C135: =C$115 -> Customer Excluding Industrial | R135: 1 | V135: 0
C136: =C$116 -> Bad Debt / Collection | T136: 1 | V136: 0
C138: Test Year | E138: 2028
C140: Supporting Inputs
O141: Service Factor / Customer | P141: Meter Factor / Customer | Q141: Billing Factor / Customer
C142: =C$517 -> Rate 1 - General Firm Service | O142: 1 | P142: 1 | Q142: 1
C143: =C$518 -> Rate 6 - Large Volume General Firm Service | O143: 4.666666667 | P143: 14.76 | Q143: 1
C144: =C$519 -> Rate 11 - Large Volume Seasonal Service | O144: 18 | P144: 76.11 | Q144: 10
C145: =C$520 -> Rate 16 - Contracted Firm Service | O145: 32.66666667 | P145: 76.11 | Q145: 10
C147: Test Year Allocation Factors
D148: Commodity Volume Including Industrial | E148: Commodity Volume Excluding Industrial | F148: Coincidental Peak | G148: Non-coincidental Peak | H148: Weighted Peak (Avg of CP 1 & NCP 1) | I148: Coincidental Peak Excluding Industrial | J148: Non-coincidental Peak Excluding Industrial | K148: Weighted Peak Excluding Industrial (Avg of CP 2 & NCP 2) | L148: Winter Excess Volume | M148: Peak Demand Over Winter Volume | N148: Customer | O148: Customer Weighted by Services | P148: Customer Weighted by Meters | Q148: Customer Weighted by Billing | R148: Customer Excluding Industrial | S148: Industrial Direct Assignment | T148: Bad Debt / Collection
D149: m3 | E149: m3 | F149: m3 / day | G149: m3 / day | H149: m3 / day | I149: m3 / day | J149: m3 / day | K149: m3 / day | L149: % | M149: % | N149: Cx | O149: Cx | P149: Cx | Q149: Cx | R149: Cx | S149: 0, 1 | T149: %
C150: =C$517 -> Rate 1 - General Firm Service | D150: =INDEX(Calculation!$I166:$AT166,1,MATCH($E$138,$I$476:$AW$476,0)) -> 12001951 | E150: =D150 -> 12001951 | F150: =INDEX($I988:$AW988,1,MATCH($E$138,$I$476:$AW$476,0)) -> 85968.98 | G150: =INDEX($I981:$AW981,1,MATCH($E$138,$I$476:$AW$476,0)) -> 103162.776 | H150: =AVERAGE(F150,G150) -> 94565.878 | I150: =$F150 -> 85968.98 | J150: =$G150 -> 103162.776 | K150: =AVERAGE(I150:J150) -> 94565.878 | L150: 615800.0402 | M150: 9703.41858 | N150: =INDEX($I524:$AW524,1,MATCH($E$138,$I$476:$AW$476,0)) -> 5175.5 | O150: =$N150*O142 -> 5175.5 | P150: 5175.5 | Q150: 5175.5 | R150: =$O150 -> 5175.5 | S150: 0 | T150: =INDEX(Calculation!$I11791:$R11791,1,MATCH($E$138,Calculation!$I$2:$R$2,0))/(INDEX(Calculation!$I$11791:$R$11791,1,MATCH($E$138,Calculation!$I$2:$R$2,0))+INDEX(Calculation!$I$11792:$R$11792,1,MATCH($E$138,Calculation!$I$2:$R$2,0))) -> 0.8357165544
C151: =C$518 -> Rate 6 - Large Volume General Firm Service | D151: =INDEX(Calculation!$I167:$AT167,1,MATCH($E$138,$I$476:$AW$476,0)) -> 3560459.829 | E151: =D151 -> 3560459.829 | F151: =INDEX($I989:$AW989,1,MATCH($E$138,$I$476:$AW$476,0)) -> 52235.51799 | G151: =INDEX($I982:$AW982,1,MATCH($E$138,$I$476:$AW$476,0)) -> 62682.62159 | H151: =AVERAGE(F151,G151) -> 57459.06979 | I151: =$F151 -> 52235.51799 | J151: =$G151 -> 62682.62159 | K151: =AVERAGE(I151:J151) -> 57459.06979 | L151: 441292.5918 | M151: 6339.787972 | N151: =INDEX($I525:$AW525,1,MATCH($E$138,$I$476:$AW$476,0)) -> 91 | O151: 424.6666667 | P151: 1343.16 | Q151: 91 | R151: =$O151 -> 424.6666667 | S151: 0 | T151: =INDEX(Calculation!$I11792:$R11792,1,MATCH($E$138,Calculation!$I$2:$R$2,0))/(INDEX(Calculation!$I$11791:$R$11791,1,MATCH($E$138,Calculation!$I$2:$R$2,0))+INDEX(Calculation!$I$11792:$R$11792,1,MATCH($E$138,Calculation!$I$2:$R$2,0))) -> 0.1642834456
C152: =C$519 -> Rate 11 - Large Volume Seasonal Service | D152: =INDEX(Calculation!$I168:$AT168,1,MATCH($E$138,$I$476:$AW$476,0)) -> 1353326.476 | E152: =D152 -> 1353326.476 | F152: =INDEX($I990:$AW990,1,MATCH($E$138,$I$476:$AW$476,0)) -> 0 | G152: =INDEX($I983:$AW983,1,MATCH($E$138,$I$476:$AW$476,0)) -> 13533.26476 | H152: =AVERAGE(F152,G152) -> 6766.632382 | I152: =$F152 -> 0 | J152: =$G152 -> 13533.26476 | K152: =AVERAGE(I152:J152) -> 6766.632382 | L152: 19131.32532 | M152: 433.9096437 | N152: =INDEX($I526:$AW526,1,MATCH($E$138,$I$476:$AW$476,0)) -> 5 | O152: 90 | P152: 380.55 | Q152: 50 | R152: =$O152 -> 90 | S152: 0 | T152: 0
C153: =C$520 -> Rate 16 - Contracted Firm Service | D153: =INDEX(Calculation!$I169:$AT169,1,MATCH($E$138,$I$476:$AW$476,0)) -> 23367679 | E153: 0 | F153: =INDEX($I991:$AW991,1,MATCH($E$138,$I$476:$AW$476,0)) -> 89716 | G153: =INDEX($I984:$AW984,1,MATCH($E$138,$I$476:$AW$476,0)) -> 89716 | H153: =AVERAGE(F153,G153) -> 89716 | I153: 0 | J153: 0 | K153: =AVERAGE(I153:J153) -> 0 | L153: 0 | M153: 0 | N153: =INDEX($I527:$AW527,1,MATCH($E$138,$I$476:$AW$476,0)) -> 2 | O153: 65.33333333 | P153: 152.22 | Q153: 20 | R153: 0 | S153: 1 | T153: 0
C154: Sum | D154: =SUM(D150:D153) -> 40283416.31 | E154: =SUM(E150:E153) -> 16915737.31 | F154: =SUM(F150:F153) -> 227920.498 | G154: 269094.6624 | H154: 248507.5802 | I154: 138204.498 | J154: 179378.6624 | K154: 158791.5802 | L154: 1076223.957 | M154: 16477.1162 | N154: 5273.5 | O154: 5755.5 | P154: 7051.43 | Q154: 5336.5 | R154: 5690.166667 | S154: 1 | T154: 1
A156: CAPEX
C158: Capitalized Overhead Salaries
F159: 2019 | G159: 2020 | H159: 2021 | I159: 2022 | J159: 2023 | K159: 2024 | L159: 2025 | M159: 2026 | N159: 2027 | O159: 2028
C160: Overhead Salaries | D160: $0,000s | E160: must be negative | F160: -145.8973747 | G160: -147.7502713 | H160: -149.6266998 | I160: -151.5269589 | J160: -153.4513512 | K160: -155.4001834 | L160: -157.3737657 | M160: -159.3724126 | N160: -161.3964422 | O160: -163.446177
C162: External Funding
E163: 2019 - 2028
C164: External Fund | D164: $0,000s | E164: 22000 | F164: must be positive
C167: CapEx # (must be unique) | D167: Description | E167: Material (for Property Taxes) | F167: Year of Deployment | G167: Pipeline or Non-pipeline (for Property Taxes) | H167: ="Quantity in "&E$60 -> Quantity in Kincardine | I167: Quantity in Arran-Elderslie | J167: Quantity in Huron-Kinloss | K167: Quantity in Brockton | L167: Quantity in West Grey | M167: Quantity in Chatsworth | N167: Attract Overhead Salary | O167: Attract Grant | P167: Length of Construction | Q167: Asset Group (for Depreciation & CCA) | R167: Outside Diameter | S167: Function | T167: Distribution or Non-distribution Related Asset | U167: Grant Applied (must be positive) | V167: CIAC to Union Row Counter | W167: Deferred Revenue Row Counter | X167: Construction and Material Cost | Y167: Other Direct Costs | Z167: Capital Cost Excluding Overhead Salaries (must be negative) | AA167: Capitalized Overhead Salaries | AB167: Capital Cost without Grant (must be negative) | AC167: Pipeline Length | AD167: Amount after Grant (must be negative) | AE167: Depreciation Rate | AF167: CCA Rate | AG167: Assessed Value | AH167: Property Tax in Rate Stability Period | AI167: Property Tax after Rate Stability Period | AJ167: Check
N168: Yes, No | O168: Yes, No | P168: year | R168: inch | U168: $0,000s | X168: $0,000 | Z168: $0,000 | AA168: $0,000 | AB168: $0,000s | AC168: ft | AD168: $0,000s | AE168: % / yr | AF168: % / yr | AG168: base year $0,000s | AH168: base year $0,000s
C169: 1 | D169: NPS 8 Steel - Dornach to Bruce Energy Centre - Non Industrial | E169: Non-plastic | F169: 2019 | G169: Pipeline | H169: 18500 | I169: 16300 | K169: 7500 | M169: 16300 | N169: Yes | O169: Yes | P169: 0.5 | Q169: Distribution Mains - Metallic | R169: 8 | S169: Distribution Mains H.P. Steel | T169: Distribution | U169: =IF($O169="Yes",$X169/SUMIFS($X$169:$X$368,$O$169:$O$368,"Yes")*$E$164,0) -> 8902.271751 | V169: =IF(AND(T169="CIAC to Union",ISERROR(MATCH($Q169,Q168:Q$169,0))),MAX(V168:V$169)+1,0) -> 0 | W169: =IF(AND(T169="Deferred Revenue",ISERROR(MATCH($Q169,Q168:Q$169,0))),MAX(W168:W$169)+1,0) -> 0 | X169: -24766.91 | Y169: -4181.088043 | Z169: =X169+Y169 -> -28947.99804 | AA169: =IF(N169="Yes",$X169/SUMIFS($X$169:$X$368,N$169:N$368,"Yes",$F$169:$F$368,$F169)*INDEX($F$160:$O$160,1,MATCH($F169,$F$159:$O$159,0)),0) -> -82.1133511 | AB169: =Z169+AA169 -> -29030.11139 | AC169: =IF($G169="Pipeline",SUM($H169:$M169)*$E$15,0) -> 192257.224 | AD169: =AB169+U169 -> -20127.83964 | AE169: =IFERROR(INDEX(Input!$E$46:$E$55,MATCH($Q169,Input!$C$46:$C$55,0),1),0) -> 0.0283 | AF169: =IFERROR(INDEX(Input!$D$46:$D$55,MATCH($Q169,Input!$C$46:$C$55,0),1),0) -> 0.06 | AG169: =IF($G169="Pipeline",SUMIFS($F$77:$F$96,$C$77:$C$96,$E169,$D$77:$D$96,"<="&$R169,$E$77:$E$96,">="&$R169)*$AC169/1000,-AB169) -> 11391.24052 | AH169: =IFERROR(SUMPRODUCT($H169:$M169,$E$66:$J$66)/SUM($H169:$M169),0) -> 0.01652306055 | AI169: =IFERROR(SUMPRODUCT($H169:$M169,$E$67:$J$67)/SUM($H169:$M169),0) -> 0.02069264481 | AJ169: =IF(AD169>0,1,0) -> 0
C170: 2 | D170: NPS 6 Steel - Bruce Energy to Kincardine - Non Industrial | E170: Non-plastic | F170: 2019 | G170: Pipeline | H170: 15807 | N170: Yes | O170: Yes | P170: 0.5 | Q170: Distribution Mains - Metallic | R170: 6 | S170: Distribution Mains H.P. Steel | T170: Distribution | U170: 2057.634635 | V170: =IF(AND(T170="CIAC to Union",ISERROR(MATCH($Q170,Q$169:Q169,0))),MAX(V$169:V169)+1,0) -> 0 | W170: =IF(AND(T170="Deferred Revenue",ISERROR(MATCH($Q170,Q169:Q$169,0))),MAX(W169:W$169)+1,0) -> 0 | X170: -5724.52215 | Y170: -966.3995676 | Z170: -6690.921718 | AA170: -18.9793437 | AB170: -6709.901061 | AC170: 51860.23788 | AD170: -4652.266426 | AE170: =IFERROR(INDEX(Input!$E$46:$E$55,MATCH($Q170,Input!$C$46:$C$55,0),1),0) -> 0.0283 | AF170: =IFERROR(INDEX(Input!$D$46:$D$55,MATCH($Q170,Input!$C$46:$C$55,0),1),0) -> 0.06 | AG170: =IF($G170="Pipeline",SUMIFS($F$77:$F$96,$C$77:$C$96,$E170,$D$77:$D$96,"<="&$R170,$E$77:$E$96,">="&$R170)*$AC170/1000,-AB170) -> 2381.940726 | AH170: =IFERROR(SUMPRODUCT($H170:$M170,$E$66:$J$66)/SUM($H170:$M170),0) -> 0.01371446 | AI170: =IFERROR(SUMPRODUCT($H170:$M170,$E$67:$J$67)/SUM($H170:$M170),0) -> 0.02033581 | AJ170: 0
C171: 3 | D171: CIAC to Union - Owen Sound Reinforcement | E171: N/A | F171: 2019 | G171: Pipeline | H171: 0 | I171: 0 | J171: 0 | K171: 0 | L171: 0 | M171: 0 | N171: No | O171: No | P171: 0 | Q171: CIAC to Union - Owen Sound Reinforcement | S171: Upstream Transportation | T171: CIAC to Union | U171: 0 | V171: =IF(AND(T171="CIAC to Union",ISERROR(MATCH($Q171,Q$169:Q170,0))),MAX(V$169:V170)+1,0) -> 1 | W171: =IF(AND(T171="Deferred Revenue",ISERROR(MATCH($Q171,Q$169:Q170,0))),MAX(W$169:W170)+1,0) -> 0 | X171: -1423.207561 | Y171: 0 | Z171: -1423.207561 | AA171: 0 | AB171: -1423.207561 | AC171: 0 | AD171: -1423.207561 | AE171: =IFERROR(INDEX(Input!$E$46:$E$55,MATCH($Q171,Input!$C$46:$C$55,0),1),0) -> 0.0198 | AF171: =IFERROR(INDEX(Input!$D$46:$D$55,MATCH($Q171,Input!$C$46:$C$55,0),1),0) -> 0.05 | AG171: =IF($G171="Pipeline",SUMIFS($F$77:$F$96,$C$77:$C$96,$E171,$D$77:$D$96,"<="&$R171,$E$77:$E$96,">="&$R171)*$AC171/1000,-AB171) -> 0 | AH171: 0 | AI171: 0 | AJ171: 0
C172: 4 | D172: NPS 6 Plastic South of Kincardine | E172: Plastic | F172: 2019 | G172: Pipeline | H172: 5000 | J172: 2140 | N172: Yes | O172: Yes | P172: 0.5 | Q172: Distribution Mains - Plastic | R172: 6 | S172: Distribution Mains | T172: Distribution | U172: 462.4683539 | V172: =IF(AND(T172="CIAC to Union",ISERROR(MATCH($Q172,Q$169:Q171,0))),MAX(V$169:V171)+1,0) -> 0 | W172: =IF(AND(T172="Deferred Revenue",ISERROR(MATCH($Q172,Q$169:Q171,0))),MAX(W$169:W171)+1,0) -> 0 | X172: -1286.628 | Y172: -217.2053335 | Z172: -1503.833334 | AA172: -4.265745573 | AB172: -1508.099079 | AC172: 23425.1976 | AD172: -1045.630725 | AE172: =IFERROR(INDEX(Input!$E$46:$E$55,MATCH($Q172,Input!$C$46:$C$55,0),1),0) -> 0.0231 | AF172: =IFERROR(INDEX(Input!$D$46:$D$55,MATCH($Q172,Input!$C$46:$C$55,0),1),0) -> 0.06 | AG172: =IF($G172="Pipeline",SUMIFS($F$77:$F$96,$C$77:$C$96,$E172,$D$77:$D$96,"<="&$R172,$E$77:$E$96,">="&$R172)*$AC172/1000,-AB172) -> 899.2933359 | AH172: 0.01371446 | AI172: 0.02016986709 | AJ172: 0
C173: 5 | D173: Dornach Check Meter Station (Lakeside + Aecon Install) | E173: N/A | F173: 2019 | G173: Non-pipeline | L173: 1 | N173: Yes | O173: Yes | P173: 0.5 | Q173: Distribution Measuring and Regulating Equipt. | S173: Distribution Measurement | T173: Distribution | U173: 77.80485103 | V173: =IF(AND(T173="CIAC to Union",ISERROR(MATCH($Q173,Q$169:Q172,0))),MAX(V$169:V172)+1,0) -> 0 | W173: =IF(AND(T173="Deferred Revenue",ISERROR(MATCH($Q173,Q$169:Q172,0))),MAX(W$169:W172)+1,0) -> 0 | X173: -216.46 | Y173: -36.54223792 | Z173: -253.0022379 | AA173: -0.7176614273 | AB173: -253.7198993 | AC173: 0 | AD173: -175.9150483 | AE173: =IFERROR(INDEX(Input!$E$46:$E$55,MATCH($Q173,Input!$C$46:$C$55,0),1),0) -> 0.0366 | AF173: =IFERROR(INDEX(Input!$D$46:$D$55,MATCH($Q173,Input!$C$46:$C$55,0),1),0) -> 0.06 | AG173: =IF($G173="Pipeline",SUMIFS($F$77:$F$96,$C$77:$C$96,$E173,$D$77:$D$96,"<="&$R173,$E$77:$E$96,">="&$R173)*$AC173/1000,-AB173) -> 253.7198993 | AH173: 0.01974686 | AI173: 0.01974686 | AJ173: 0
C174: 6 | D174: Lands for Dornach Check Meter Station | E174: N/A | F174: 2019 | G174: Non-pipeline | L174: 1 | N174: Yes | O174: Yes | P174: 0.5 | Q174: Distribution Land Rights | S174: Distribution Measurement | T174: Distribution | U174: 2.695816237 | V174: =IF(AND(T174="CIAC to Union",ISERROR(MATCH($Q174,Q$169:Q173,0))),MAX(V$169:V173)+1,0) -> 0 | W174: =IF(AND(T174="Deferred Revenue",ISERROR(MATCH($Q174,Q$169:Q173,0))),MAX(W$169:W173)+1,0) -> 0 | X174: -7.5 | Y174: -1.266131315 | Z174: -8.766131315 | AA174: -0.02486584452 | AB174: -8.790997159 | AC174: 0 | AD174: -6.095180922 | AE174: =IFERROR(INDEX(Input!$E$46:$E$55,MATCH($Q174,Input!$C$46:$C$55,0),1),0) -> 0.0165 | AF174: =IFERROR(INDEX(Input!$D$46:$D$55,MATCH($Q174,Input!$C$46:$C$55,0),1),0) -> 0.05 | AG174: 0 | AH174: 0.01974686 | AI174: 0.01974686 | AJ174: 0
C175: 7 | D175: Lands for Kincardine and Tiverton Stations | E175: N/A | F175: 2019 | G175: Non-pipeline | H175: 1 | N175: Yes | O175: Yes | P175: 0.5 | Q175: Distribution Land Rights | S175: Distribution Measurement | T175: Distribution | U175: 5.391632475 | V175: =IF(AND(T175="CIAC to Union",ISERROR(MATCH($Q175,Q$169:Q174,0))),MAX(V$169:V174)+1,0) -> 0 | W175: =IF(AND(T175="Deferred Revenue",ISERROR(MATCH($Q175,Q$169:Q174,0))),MAX(W$169:W174)+1,0) -> 0 | X175: -15 | Y175: -2.53226263 | Z175: -17.53226263 | AA175: -0.04973168904 | AB175: -17.58199432 | AC175: 0 | AD175: -12.19036184 | AE175: =IFERROR(INDEX(Input!$E$46:$E$55,MATCH($Q175,Input!$C$46:$C$55,0),1),0) -> 0.0165 | AF175: =IFERROR(INDEX(Input!$D$46:$D$55,MATCH($Q175,Input!$C$46:$C$55,0),1),0) -> 0.05 | AG175: 0 | AH175: 0.01371446 | AI175: 0.02033581 | AJ175: 0
C176: 8 | D176: Anode Installation on Steel Mains (install and supply) | E176: N/A | F176: 2019 | G176: Non-pipeline | H176: 0.4610722109 | I176: 0.2190654105 | J176: 0 | K176: 0 | L176: 0.2204093701 | M176: 0.09945300845 | N176: Yes | O176: Yes | P176: 0.5 | Q176: Distribution Mains - Metallic | S176: Distribution Mains H.P. Steel | T176: Distribution | U176: 28.7553732 | V176: =IF(AND(T176="CIAC to Union",ISERROR(MATCH($Q176,Q$169:Q175,0))),MAX(V$169:V175)+1,0) -> 0 | W176: =IF(AND(T176="Deferred Revenue",ISERROR(MATCH($Q176,Q$169:Q175,0))),MAX(W$169:W175)+1,0) -> 0 | X176: -80 | Y176: -13.50540069 | Z176: -93.50540069 | AA176: -0.2652356749 | AB176: -93.77063637 | AC176: 0 | AD176: -65.01526317 | AE176: =IFERROR(INDEX(Input!$E$46:$E$55,MATCH($Q176,Input!$C$46:$C$55,0),1),0) -> 0.0283 | AF176: =IFERROR(INDEX(Input!$D$46:$D$55,MATCH($Q176,Input!$C$46:$C$55,0),1),0) -> 0.06 | AG176: =IF($G176="Pipeline",SUMIFS($F$77:$F$96,$C$77:$C$96,$E176,$D$77:$D$96,"<="&$R176,$E$77:$E$96,">="&$R176)*$AC176/1000,-AB176) -> 93.77063637 | AH176: 0.01568887002 | AI176: 0.02037930663 | AJ176: 0
C177: 9 | D177: Supply Line Markers (installation included in lay price) | E177: N/A | F177: 2019 | G177: Non-pipeline | H177: 93 | I177: 82 | J177: 0 | K177: 0 | L177: 82 | M177: 37 | N177: Yes | O177: Yes | P177: 0.5 | Q177: Distribution Mains - Metallic | S177: Distribution Mains H.P. Steel | T177: Distribution | U177: 4.22703986 | V177: =IF(AND(T177="CIAC to Union",ISERROR(MATCH($Q177,Q$169:Q176,0))),MAX(V$169:V176)+1,0) -> 0 | W177: =IF(AND(T177="Deferred Revenue",ISERROR(MATCH($Q177,Q$169:Q176,0))),MAX(W$169:W176)+1,0) -> 0 | X177: -11.76 | Y177: -1.985293902 | Z177: -13.7452939 | AA177: -0.0389896442 | AB177: -13.78428355 | AC177: 0 | AD177: -9.557243686 | AE177: =IFERROR(INDEX(Input!$E$46:$E$55,MATCH($Q177,Input!$C$46:$C$55,0),1),0) -> 0.0283 | AF177: =IFERROR(INDEX(Input!$D$46:$D$55,MATCH($Q177,Input!$C$46:$C$55,0),1),0) -> 0.06 | AG177: 13.78428355 | AH177: 0.01621292813 | AI177: 0.02039230354 | AJ177: 0
C178: 10 | D178: Kincardine Station (Lakeside + Aecon Install) | E178: N/A | F178: 2019 | G178: Non-pipeline | H178: 1 | N178: Yes | O178: Yes | P178: 0.5 | Q178: Distribution Measuring and Regulating Equipt. | S178: Distribution Measurement | T178: Distribution | U178: 68.78159105 | V178: =IF(AND(T178="CIAC to Union",ISERROR(MATCH($Q178,Q$169:Q177,0))),MAX(V$169:V177)+1,0) -> 0 | W178: =IF(AND(T178="Deferred Revenue",ISERROR(MATCH($Q178,Q$169:Q177,0))),MAX(W$169:W177)+1,0) -> 0 | X178: -191.35649 | Y178: -32.30432591 | Z178: -223.6608159 | AA178: -0.6344320971 | AB178: -224.295248 | AC178: 0 | AD178: -155.513657 | AE178: =IFERROR(INDEX(Input!$E$46:$E$55,MATCH($Q178,Input!$C$46:$C$55,0),1),0) -> 0.0366 | AF178: =IFERROR(INDEX(Input!$D$46:$D$55,MATCH($Q178,Input!$C$46:$C$55,0),1),0) -> 0.06 | AG178: 224.295248 | AH178: 0.01371446 | AI178: 0.02033581 | AJ178: 0
C179: 11 | D179: Tiverton Station (Lakeside + Aecon Install) | E179: N/A | F179: 2019 | G179: Non-pipeline | H179: 1 | N179: Yes | O179: Yes | P179: 0.5 | Q179: Distribution Measuring and Regulating Equipt. | S179: Distribution Measurement | T179: Distribution | U179: 48.37586884 | V179: =IF(AND(T179="CIAC to Union",ISERROR(MATCH($Q179,Q$169:Q178,0))),MAX(V$169:V178)+1,0) -> 0 | W179: =IF(AND(T179="Deferred Revenue",ISERROR(MATCH($Q179,Q$169:Q178,0))),MAX(W$169:W178)+1,0) -> 0 | X179: -134.58596 | Y179: -22.72046647 | Z179: -157.3064265 | AA179: -0.4462124741 | AB179: -157.7526389 | AC179: 0 | AD179: -109.3767701 | AE179: =IFERROR(INDEX(Input!$E$46:$E$55,MATCH($Q179,Input!$C$46:$C$55,0),1),0) -> 0.0366 | AF179: =IFERROR(INDEX(Input!$D$46:$D$55,MATCH($Q179,Input!$C$46:$C$55,0),1),0) -> 0.06 | AG179: 157.7526389 | AH179: 0.01371446 | AI179: 0.02033581 | AJ179: 0
C180: 12 | D180: BEC Station (Lakeside + Aecon Install) | E180: N/A | F180: 2019 | G180: Non-pipeline | H180: 1 | N180: Yes | O180: Yes | P180: 0.5 | Q180: Distribution Measuring and Regulating Equipt. | S180: Distribution Measurement | T180: Distribution | U180: 66.76512051 | V180: =IF(AND(T180="CIAC to Union",ISERROR(MATCH($Q180,Q$169:Q179,0))),MAX(V$169:V179)+1,0) -> 0 | W180: =IF(AND(T180="Deferred Revenue",ISERROR(MATCH($Q180,Q$169:Q179,0))),MAX(W$169:W179)+1,0) -> 0 | X180: -185.74649 | Y180: -31.35725968 | Z180: -217.1037497 | AA180: -0.6158324454 | AB180: -217.7195821 | AC180: 0 | AD180: -150.9544616 | AE180: =IFERROR(INDEX(Input!$E$46:$E$55,MATCH($Q180,Input!$C$46:$C$55,0),1),0) -> 0.0366 | AF180: =IFERROR(INDEX(Input!$D$46:$D$55,MATCH($Q180,Input!$C$46:$C$55,0),1),0) -> 0.06 | AG180: 217.7195821 | AH180: 0.01371446 | AI180: 0.02033581 | AJ180: 0
C181: 13 | D181: Valve Sites | E181: N/A | F181: 2019 | G181: Non-pipeline | H181: 4 | I181: 2 | N181: Yes | O181: Yes | P181: 0.5 | Q181: Distribution Mains - Metallic | S181: Distribution Mains H.P. Steel | T181: Distribution | U181: 299.3290916 | V181: =IF(AND(T181="CIAC to Union",ISERROR(MATCH($Q181,Q$169:Q180,0))),MAX(V$169:V180)+1,0) -> 0 | W181: =IF(AND(T181="Deferred Revenue",ISERROR(MATCH($Q181,Q$169:Q180,0))),MAX(W$169:W180)+1,0) -> 0 | X181: -832.7600955 | Y181: -140.5844846 | Z181: -973.3445801 | AA181: -2.760971074 | AB181: -976.1055512 | AC181: 0 | AD181: -676.7764596 | AE181: =IFERROR(INDEX(Input!$E$46:$E$55,MATCH($Q181,Input!$C$46:$C$55,0),1),0) -> 0.0283 | AF181: =IFERROR(INDEX(Input!$D$46:$D$55,MATCH($Q181,Input!$C$46:$C$55,0),1),0) -> 0.06 | AG181: 976.1055512 | AH181: 0.01371446 | AI181: 0.02062036333 | AJ181: 0
C182: 14 | D182: Tiverton Plastic Distribution | E182: Plastic | F182: 2019 | G182: Pipeline | H182: 10820 | N182: Yes | O182: Yes | P182: 0.5 | Q182: Distribution Mains - Plastic | R182: 2 | S182: Distribution Mains | T182: Distribution | U182: 370.053976 | V182: =IF(AND(T182="CIAC to Union",ISERROR(MATCH($Q182,Q$169:Q181,0))),MAX(V$169:V181)+1,0) -> 0 | W182: =IF(AND(T182="Deferred Revenue",ISERROR(MATCH($Q182,Q$169:Q181,0))),MAX(W$169:W181)+1,0) -> 0 | X182: -1029.523 | Y182: -173.801508 | Z182: -1203.324508 | AA182: -3.413327846 | AB182: -1206.737836 | AC182: 35498.6888 | AD182: -836.6838598 | AE182: =IFERROR(INDEX(Input!$E$46:$E$55,MATCH($Q182,Input!$C$46:$C$55,0),1),0) -> 0.0231 | AF182: =IFERROR(INDEX(Input!$D$46:$D$55,MATCH($Q182,Input!$C$46:$C$55,0),1),0) -> 0.06 | AG182: 331.2027665 | AH182: 0.01371446 | AI182: 0.02033581 | AJ182: 0
C183: 15 | D183: Kincardine Plastic Distribution | E183: Plastic | F183: 2019 | G183: Pipeline | H183: 62400 | N183: Yes | O183: Yes | P183: 0.5 | Q183: Distribution Mains - Plastic | R183: 2 | S183: Distribution Mains | T183: Distribution | U183: 2134.137533 | V183: =IF(AND(T183="CIAC to Union",ISERROR(MATCH($Q183,Q$169:Q182,0))),MAX(V$169:V182)+1,0) -> 0 | W183: =IF(AND(T183="Deferred Revenue",ISERROR(MATCH($Q183,Q$169:Q182,0))),MAX(W$169:W182)+1,0) -> 0 | X183: -5937.36 | Y183: -1002.330323 | Z183: -6939.690323 | AA183: -19.68499608 | AB183: -6959.375319 | AC183: 204724.416 | AD183: -4825.237787 | AE183: =IFERROR(INDEX(Input!$E$46:$E$55,MATCH($Q183,Input!$C$46:$C$55,0),1),0) -> 0.0231 | AF183: =IFERROR(INDEX(Input!$D$46:$D$55,MATCH($Q183,Input!$C$46:$C$55,0),1),0) -> 0.06 | AG183: 1910.078801 | AH183: 0.01371446 | AI183: 0.02033581 | AJ183: 0
C184: 16 | D184: Kincardine NPS 6 Bypass | E184: Plastic | F184: 2019 | G184: Pipeline | H184: 5120 | N184: Yes | O184: Yes | P184: 0.5 | Q184: Distribution Mains - Plastic | R184: 6 | S184: Distribution Mains | T184: Distribution | U184: 411.5008926 | V184: =IF(AND(T184="CIAC to Union",ISERROR(MATCH($Q184,Q$169:Q183,0))),MAX(V$169:V183)+1,0) -> 0 | W184: =IF(AND(T184="Deferred Revenue",ISERROR(MATCH($Q184,Q$169:Q183,0))),MAX(W$169:W183)+1,0) -> 0 | X184: -1144.832 | Y184: -193.2676861 | Z184: -1338.099686 | AA184: -3.795628602 | AB184: -1341.895315 | AC184: 16797.9008 | AD184: -930.394422 | AE184: =IFERROR(INDEX(Input!$E$46:$E$55,MATCH($Q184,Input!$C$46:$C$55,0),1),0) -> 0.0231 | AF184: =IFERROR(INDEX(Input!$D$46:$D$55,MATCH($Q184,Input!$C$46:$C$55,0),1),0) -> 0.06 | AG184: 644.8714117 | AH184: 0.01371446 | AI184: 0.02033581 | AJ184: 0
C185: 17 | D185: Plastic Distribution - for Future Services | E185: Plastic | F185: 2019 | G185: Pipeline | H185: 1150 | N185: Yes | O185: Yes | P185: 0.5 | Q185: Distribution Mains - Plastic | R185: 2 | S185: Distribution Mains | T185: Distribution | U185: 39.3310603 | V185: =IF(AND(T185="CIAC to Union",ISERROR(MATCH($Q185,Q$169:Q184,0))),MAX(V$169:V184)+1,0) -> 0 | W185: =IF(AND(T185="Deferred Revenue",ISERROR(MATCH($Q185,Q$169:Q184,0))),MAX(W$169:W184)+1,0) -> 0 | X185: -109.4225 | Y185: -18.47243384 | Z185: -127.8949338 | AA185: -0.3627843829 | AB185: -128.2577182 | AC185: 3772.966 | AD185: -88.92665792 | AE185: =IFERROR(INDEX(Input!$E$46:$E$55,MATCH($Q185,Input!$C$46:$C$55,0),1),0) -> 0.0231 | AF185: =IFERROR(INDEX(Input!$D$46:$D$55,MATCH($Q185,Input!$C$46:$C$55,0),1),0) -> 0.06 | AG185: 35.20177278 | AH185: 0.01371446 | AI185: 0.02033581 | AJ185: 0
C186: 18 | D186: Chesley Station (Lakeside + Aecon Install) | E186: N/A | F186: 2020 | G186: Non-pipeline | I186: 1 | N186: Yes | O186: Yes | P186: 0.5 | Q186: Distribution Measuring and Regulating Equipt. | S186: Distribution Measurement | T186: Distribution | U186: 48.37586884 | V186: =IF(AND(T186="CIAC to Union",ISERROR(MATCH($Q186,Q$169:Q185,0))),MAX(V$169:V185)+1,0) -> 0 | W186: =IF(AND(T186="Deferred Revenue",ISERROR(MATCH($Q186,Q$169:Q185,0))),MAX(W$169:W185)+1,0) -> 0 | X186: -134.58596 | Y186: -22.72046647 | Z186: -157.3064265 | AA186: -0.9463849559 | AB186: -158.2528114 | AC186: 0 | AD186: -109.8769426 | AE186: =IFERROR(INDEX(Input!$E$46:$E$55,MATCH($Q186,Input!$C$46:$C$55,0),1),0) -> 0.0366 | AF186: =IFERROR(INDEX(Input!$D$46:$D$55,MATCH($Q186,Input!$C$46:$C$55,0),1),0) -> 0.06 | AG186: 158.2528114 | AH186: 0.01371446 | AI186: 0.02118947 | AJ186: 0
C187: 19 | D187: Paisley Station (Lakeside + Aecon Install) | E187: N/A | F187: 2020 | G187: Non-pipeline | I187: 1 | N187: Yes | O187: Yes | P187: 0.5 | Q187: Distribution Measuring and Regulating Equipt. | S187: Distribution Measurement | T187: Distribution | U187: 49.17711215 | V187: =IF(AND(T187="CIAC to Union",ISERROR(MATCH($Q187,Q$169:Q186,0))),MAX(V$169:V186)+1,0) -> 0 | W187: =IF(AND(T187="Deferred Revenue",ISERROR(MATCH($Q187,Q$169:Q186,0))),MAX(W$169:W186)+1,0) -> 0 | X187: -136.81509 | Y187: -23.09678264 | Z187: -159.9118726 | AA187: -0.9620598086 | AB187: -160.8739324 | AC187: 0 | AD187: -111.6968203 | AE187: =IFERROR(INDEX(Input!$E$46:$E$55,MATCH($Q187,Input!$C$46:$C$55,0),1),0) -> 0.0366 | AF187: =IFERROR(INDEX(Input!$D$46:$D$55,MATCH($Q187,Input!$C$46:$C$55,0),1),0) -> 0.06 | AG187: 160.8739324 | AH187: 0.01371446 | AI187: 0.02118947 | AJ187: 0
C188: 20 | D188: Lands for Chesley & Paisley Stations | E188: N/A | F188: 2020 | G188: Non-pipeline | I188: 1 | N188: Yes | O188: Yes | P188: 0.5 | Q188: Distribution Land Rights | S188: Distribution Measurement | T188: Distribution | U188: 5.391632475 | V188: =IF(AND(T188="CIAC to Union",ISERROR(MATCH($Q188,Q$169:Q187,0))),MAX(V$169:V187)+1,0) -> 0 | W188: =IF(AND(T188="Deferred Revenue",ISERROR(MATCH($Q188,Q$169:Q187,0))),MAX(W$169:W187)+1,0) -> 0 | X188: -15 | Y188: -2.53226263 | Z188: -17.53226263 | AA188: -0.1054773792 | AB188: -17.63774001 | AC188: 0 | AD188: -12.24610753 | AE188: =IFERROR(INDEX(Input!$E$46:$E$55,MATCH($Q188,Input!$C$46:$C$55,0),1),0) -> 0.0165 | AF188: =IFERROR(INDEX(Input!$D$46:$D$55,MATCH($Q188,Input!$C$46:$C$55,0),1),0) -> 0.05 | AG188: 0 | AH188: 0.01371446 | AI188: 0.02118947 | AJ188: 0
C189: 21 | D189: Paisley Plastic Distribution | E189: Plastic | F189: 2020 | G189: Pipeline | I189: 12830 | N189: Yes | O189: Yes | P189: 0.5 | Q189: Distribution Mains - Plastic | R189: 4 | S189: Distribution Mains | T189: Distribution | U189: 438.7978292 | V189: =IF(AND(T189="CIAC to Union",ISERROR(MATCH($Q189,Q$169:Q188,0))),MAX(V$169:V188)+1,0) -> 0 | W189: =IF(AND(T189="Deferred Revenue",ISERROR(MATCH($Q189,Q$169:Q188,0))),MAX(W$169:W188)+1,0) -> 0 | X189: -1220.7745 | Y189: -206.0881097 | Z189: -1426.86261 | AA189: -8.58427299 | AB189: -1435.446883 | AC189: 42093.1772 | AD189: -996.6490535 | AE189: =IFERROR(INDEX(Input!$E$46:$E$55,MATCH($Q189,Input!$C$46:$C$55,0),1),0) -> 0.0231 | AF189: =IFERROR(INDEX(Input!$D$46:$D$55,MATCH($Q189,Input!$C$46:$C$55,0),1),0) -> 0.06 | AG189: =IF($G189="Pipeline",SUMIFS($F$77:$F$96,$C$77:$C$96,$E189,$D$77:$D$96,"<="&$R189,$E$77:$E$96,">="&$R189)*$AC189/1000,-AB189) -> 760.2027802 | AH189: 0.01371446 | AI189: 0.02118947 | AJ189: 0
C190: 22 | D190: NPS 4 Plastic - from Mainline to Paisley | E190: Plastic | F190: 2020 | G190: Pipeline | I190: 4850 | N190: Yes | O190: Yes | P190: 0.5 | Q190: Distribution Mains - Plastic | R190: 4 | S190: Distribution Mains | T190: Distribution | U190: 239.9993538 | V190: =IF(AND(T190="CIAC to Union",ISERROR(MATCH($Q190,Q$169:Q189,0))),MAX(V$169:V189)+1,0) -> 0 | W190: =IF(AND(T190="Deferred Revenue",ISERROR(MATCH($Q190,Q$169:Q189,0))),MAX(W$169:W189)+1,0) -> 0 | X190: -667.6995 | Y190: -112.7193661 | Z190: -780.4188661 | AA190: -4.695146224 | AB190: -785.1140123 | AC190: 15912.074 | AD190: -545.1146585 | AE190: =IFERROR(INDEX(Input!$E$46:$E$55,MATCH($Q190,Input!$C$46:$C$55,0),1),0) -> 0.0231 | AF190: =IFERROR(INDEX(Input!$D$46:$D$55,MATCH($Q190,Input!$C$46:$C$55,0),1),0) -> 0.06 | AG190: 287.3720564 | AH190: 0.01371446 | AI190: 0.02118947 | AJ190: 0
C191: 23 | D191: NPS 4 Distribution - Inverhuron | E191: Plastic | F191: 2020 | G191: Pipeline | H191: 1500 | N191: Yes | O191: Yes | P191: 0.5 | Q191: Distribution Mains - Plastic | R191: 4 | S191: Distribution Mains | T191: Distribution | U191: 74.22660428 | V191: =IF(AND(T191="CIAC to Union",ISERROR(MATCH($Q191,Q$169:Q190,0))),MAX(V$169:V190)+1,0) -> 0 | W191: =IF(AND(T191="Deferred Revenue",ISERROR(MATCH($Q191,Q$169:Q190,0))),MAX(W$169:W190)+1,0) -> 0 | X191: -206.505 | Y191: -34.86165962 | Z191: -241.3666596 | AA191: -1.452107079 | AB191: -242.8187667 | AC191: 4921.26 | AD191: -168.5921624 | AE191: =IFERROR(INDEX(Input!$E$46:$E$55,MATCH($Q191,Input!$C$46:$C$55,0),1),0) -> 0.0231 | AF191: =IFERROR(INDEX(Input!$D$46:$D$55,MATCH($Q191,Input!$C$46:$C$55,0),1),0) -> 0.06 | AG191: 88.8779556 | AH191: 0.01371446 | AI191: 0.02033581 | AJ191: 0
C192: 24 | D192: NPS 6 Plastic - to Lucknow | E192: Plastic | F192: 2020 | G192: Pipeline | J192: 34080 | N192: Yes | O192: Yes | P192: 0.5 | Q192: Distribution Mains - Plastic | R192: 6 | S192: Distribution Mains | T192: Distribution | U192: 2207.411975 | V192: =IF(AND(T192="CIAC to Union",ISERROR(MATCH($Q192,Q$169:Q191,0))),MAX(V$169:V191)+1,0) -> 0 | W192: =IF(AND(T192="Deferred Revenue",ISERROR(MATCH($Q192,Q$169:Q191,0))),MAX(W$169:W191)+1,0) -> 0 | X192: -6141.216 | Y192: -1036.744785 | Z192: -7177.960785 | AA192: -43.18395792 | AB192: -7221.144743 | AC192: 111811.0272 | AD192: -5013.732768 | AE192: =IFERROR(INDEX(Input!$E$46:$E$55,MATCH($Q192,Input!$C$46:$C$55,0),1),0) -> 0.0231 | AF192: =IFERROR(INDEX(Input!$D$46:$D$55,MATCH($Q192,Input!$C$46:$C$55,0),1),0) -> 0.06 | AG192: 4292.425334 | AH192: 0.01371446 | AI192: 0.01978215 | AJ192: 0
C193: 25 | D193: NPS 4 Plastic - in Lucknow | E193: Plastic | F193: 2020 | G193: Pipeline | J193: 1000 | N193: Yes | O193: Yes | P193: 0.5 | Q193: Distribution Mains - Plastic | R193: 4 | S193: Distribution Mains | T193: Distribution | U193: 49.48440285 | V193: =IF(AND(T193="CIAC to Union",ISERROR(MATCH($Q193,Q$169:Q192,0))),MAX(V$169:V192)+1,0) -> 0 | W193: =IF(AND(T193="Deferred Revenue",ISERROR(MATCH($Q193,Q$169:Q192,0))),MAX(W$169:W192)+1,0) -> 0 | X193: -137.67 | Y193: -23.24110642 | Z193: -160.9111064 | AA193: -0.9680713863 | AB193: -161.8791778 | AC193: 3280.84 | AD193: -112.3947749 | AE193: =IFERROR(INDEX(Input!$E$46:$E$55,MATCH($Q193,Input!$C$46:$C$55,0),1),0) -> 0.0231 | AF193: =IFERROR(INDEX(Input!$D$46:$D$55,MATCH($Q193,Input!$C$46:$C$55,0),1),0) -> 0.06 | AG193: 59.2519704 | AH193: 0.01371446 | AI193: 0.01978215 | AJ193: 0
C194: 26 | D194: NPS 4 Plastic - from LB to PC | E194: Plastic | F194: 2020 | G194: Pipeline | J194: 2100 | N194: Yes | O194: Yes | P194: 0.5 | Q194: Distribution Mains - Plastic | R194: 4 | S194: Distribution Mains | T194: Distribution | U194: 103.917246 | V194: =IF(AND(T194="CIAC to Union",ISERROR(MATCH($Q194,Q$169:Q193,0))),MAX(V$169:V193)+1,0) -> 0 | W194: =IF(AND(T194="Deferred Revenue",ISERROR(MATCH($Q194,Q$169:Q193,0))),MAX(W$169:W193)+1,0) -> 0 | X194: -289.107 | Y194: -48.80632347 | Z194: -337.9133235 | AA194: -2.032949911 | AB194: -339.9462734 | AC194: 6889.764 | AD194: -236.0290274 | AE194: =IFERROR(INDEX(Input!$E$46:$E$55,MATCH($Q194,Input!$C$46:$C$55,0),1),0) -> 0.0231 | AF194: =IFERROR(INDEX(Input!$D$46:$D$55,MATCH($Q194,Input!$C$46:$C$55,0),1),0) -> 0.06 | AG194: 124.4291378 | AH194: 0.01371446 | AI194: 0.01978215 | AJ194: 0
C195: 27 | D195: Land for Inverhuron Station | E195: N/A | F195: 2020 | G195: Non-pipeline | H195: 1 | N195: Yes | O195: Yes | P195: 0.5 | Q195: Distribution Land Rights | S195: Distribution Measurement | T195: Distribution | U195: 2.695816237 | V195: =IF(AND(T195="CIAC to Union",ISERROR(MATCH($Q195,Q$169:Q194,0))),MAX(V$169:V194)+1,0) -> 0 | W195: =IF(AND(T195="Deferred Revenue",ISERROR(MATCH($Q195,Q$169:Q194,0))),MAX(W$169:W194)+1,0) -> 0 | X195: -7.5 | Y195: -1.266131315 | Z195: -8.766131315 | AA195: -0.0527386896 | AB195: -8.818870004 | AC195: 0 | AD195: -6.123053767 | AE195: =IFERROR(INDEX(Input!$E$46:$E$55,MATCH($Q195,Input!$C$46:$C$55,0),1),0) -> 0.0165 | AF195: =IFERROR(INDEX(Input!$D$46:$D$55,MATCH($Q195,Input!$C$46:$C$55,0),1),0) -> 0.05 | AG195: 0 | AH195: 0.01371446 | AI195: 0.02033581 | AJ195: 0
C196: 28 | D196: Inverhuron Station (Lakeside + Aecon Install) | E196: N/A | F196: 2020 | G196: Non-pipeline | H196: 1 | N196: Yes | O196: Yes | P196: 0.5 | Q196: Distribution Measuring and Regulating Equipt. | S196: Distribution Measurement | T196: Distribution | U196: 43.33075299 | V196: =IF(AND(T196="CIAC to Union",ISERROR(MATCH($Q196,Q$169:Q195,0))),MAX(V$169:V195)+1,0) -> 0 | W196: =IF(AND(T196="Deferred Revenue",ISERROR(MATCH($Q196,Q$169:Q195,0))),MAX(W$169:W195)+1,0) -> 0 | X196: -120.55 | Y196: -20.35095067 | Z196: -140.9009507 | AA196: -0.8476865375 | AB196: -141.7486372 | AC196: 0 | AD196: -98.41788422 | AE196: =IFERROR(INDEX(Input!$E$46:$E$55,MATCH($Q196,Input!$C$46:$C$55,0),1),0) -> 0.0366 | AF196: =IFERROR(INDEX(Input!$D$46:$D$55,MATCH($Q196,Input!$C$46:$C$55,0),1),0) -> 0.06 | AG196: =IF($G196="Pipeline",SUMIFS($F$77:$F$96,$C$77:$C$96,$E196,$D$77:$D$96,"<="&$R196,$E$77:$E$96,">="&$R196)*$AC196/1000,-AB196) -> 141.7486372 | AH196: 0.01371446 | AI196: 0.02033581 | AJ196: 0
C197: 29 | D197: Chesley Plastic Distribution | E197: Plastic | F197: 2020 | G197: Pipeline | I197: 17900 | N197: Yes | O197: Yes | P197: 0.5 | Q197: Distribution Mains - Plastic | R197: 2 | S197: Distribution Mains | T197: Distribution | U197: 612.1965038 | V197: =IF(AND(T197="CIAC to Union",ISERROR(MATCH($Q197,Q$169:Q196,0))),MAX(V$169:V196)+1,0) -> 0 | W197: =IF(AND(T197="Deferred Revenue",ISERROR(MATCH($Q197,Q$169:Q196,0))),MAX(W$169:W196)+1,0) -> 0 | X197: -1703.185 | Y197: -287.5274485 | Z197: -1990.712448 | AA197: -11.97649934 | AB197: -2002.688948 | AC197: 58727.036 | AD197: -1390.492444 | AE197: =IFERROR(INDEX(Input!$E$46:$E$55,MATCH($Q197,Input!$C$46:$C$55,0),1),0) -> 0.0231 | AF197: =IFERROR(INDEX(Input!$D$46:$D$55,MATCH($Q197,Input!$C$46:$C$55,0),1),0) -> 0.06 | AG197: 547.9232459 | AH197: 0.01371446 | AI197: 0.02118947 | AJ197: 0
C198: 30 | D198: Inverhuron Plastic Distribution | E198: Plastic | F198: 2020 | G198: Pipeline | H198: 8620 | N198: Yes | O198: Yes | P198: 0.5 | Q198: Distribution Mains - Plastic | R198: 2 | S198: Distribution Mains | T198: Distribution | U198: 294.8119476 | V198: =IF(AND(T198="CIAC to Union",ISERROR(MATCH($Q198,Q$169:Q197,0))),MAX(V$169:V197)+1,0) -> 0 | W198: =IF(AND(T198="Deferred Revenue",ISERROR(MATCH($Q198,Q$169:Q197,0))),MAX(W$169:W197)+1,0) -> 0 | X198: -820.193 | Y198: -138.4629389 | Z198: -958.6559389 | AA198: -5.767453872 | AB198: -964.4233927 | AC198: 28280.8408 | AD198: -669.6114451 | AE198: =IFERROR(INDEX(Input!$E$46:$E$55,MATCH($Q198,Input!$C$46:$C$55,0),1),0) -> 0.0231 | AF198: =IFERROR(INDEX(Input!$D$46:$D$55,MATCH($Q198,Input!$C$46:$C$55,0),1),0) -> 0.06 | AG198: 263.8602447 | AH198: 0.01371446 | AI198: 0.02033581 | AJ198: 0
C199: 31 | D199: Ripley, Lucknow, Point Clark & Lurgan Beach Plastic Distribution | E199: Plastic | F199: 2020 | G199: Pipeline | J199: 48100 | N199: Yes | O199: Yes | P199: 0.5 | Q199: Distribution Mains - Plastic | R199: 2 | S199: Distribution Mains | T199: Distribution | U199: 1645.064348 | V199: =IF(AND(T199="CIAC to Union",ISERROR(MATCH($Q199,Q$169:Q198,0))),MAX(V$169:V198)+1,0) -> 0 | W199: =IF(AND(T199="Deferred Revenue",ISERROR(MATCH($Q199,Q$169:Q198,0))),MAX(W$169:W198)+1,0) -> 0 | X199: -4576.715 | Y199: -772.6296241 | Z199: -5349.344624 | AA199: -32.18266024 | AB199: -5381.527284 | AC199: 157808.404 | AD199: -3736.462936 | AE199: =IFERROR(INDEX(Input!$E$46:$E$55,MATCH($Q199,Input!$C$46:$C$55,0),1),0) -> 0.0231 | AF199: =IFERROR(INDEX(Input!$D$46:$D$55,MATCH($Q199,Input!$C$46:$C$55,0),1),0) -> 0.06 | AG199: 1472.352409 | AH199: 0.01371446 | AI199: 0.01978215 | AJ199: 0
C200: 32 | D200: Plastic Distribution Mains for Future Services by Contractor | E200: Plastic | F200: 2020 | G200: Pipeline | H200: 1175 | J200: 250 | N200: Yes | O200: Yes | P200: 0.5 | Q200: Distribution Mains - Plastic | R200: 2 | S200: Distribution Mains | T200: Distribution | U200: 48.73631385 | V200: =IF(AND(T200="CIAC to Union",ISERROR(MATCH($Q200,Q$169:Q199,0))),MAX(V$169:V199)+1,0) -> 0 | W200: =IF(AND(T200="Deferred Revenue",ISERROR(MATCH($Q200,Q$169:Q199,0))),MAX(W$169:W199)+1,0) -> 0 | X200: -135.58875 | Y200: -22.88975498 | Z200: -158.478505 | AA200: -0.9534363999 | AB200: -159.4319414 | AC200: 4675.197 | AD200: -110.6956275 | AE200: =IFERROR(INDEX(Input!$E$46:$E$55,MATCH($Q200,Input!$C$46:$C$55,0),1),0) -> 0.0231 | AF200: =IFERROR(INDEX(Input!$D$46:$D$55,MATCH($Q200,Input!$C$46:$C$55,0),1),0) -> 0.06 | AG200: 43.61958801 | AH200: 0.01371446 | AI200: 0.02023867667 | AJ200: 0
C201: 33 | D201: NPS 4 Plastic - to Ripley | E201: Plastic | F201: 2020 | G201: Pipeline | J201: 7310 | N201: Yes | O201: Yes | P201: 0.5 | Q201: Distribution Mains - Plastic | R201: 2 | S201: Distribution Mains | T201: Distribution | U201: =IF($O201="Yes",$X201/SUMIFS($X$169:$X$368,$O$169:$O$368,"Yes")*$E$164,0) -> 361.7309849 | V201: =IF(AND(T201="CIAC to Union",ISERROR(MATCH($Q201,Q$169:Q200,0))),MAX(V$169:V200)+1,0) -> 0 | W201: =IF(AND(T201="Deferred Revenue",ISERROR(MATCH($Q201,Q$169:Q200,0))),MAX(W$169:W200)+1,0) -> 0 | X201: -1006.3677 | Y201: -169.8924879 | Z201: =X201+Y201 -> -1176.260188 | AA201: =IF(N201="Yes",$X201/SUMIFS($X$169:$X$368,N$169:N$368,"Yes",$F$169:$F$368,$F201)*INDEX($F$160:$O$160,1,MATCH($F201,$F$159:$O$159,0)),0) -> -7.076601834 | AB201: =Z201+AA201 -> -1183.33679 | AC201: =IF($G201="Pipeline",SUM($H201:$M201)*$E$15,0) -> 23982.9404 | AD201: =AB201+U201 -> -821.6058049 | AE201: =IFERROR(INDEX(Input!$E$46:$E$55,MATCH($Q201,Input!$C$46:$C$55,0),1),0) -> 0.0231 | AF201: =IFERROR(INDEX(Input!$D$46:$D$55,MATCH($Q201,Input!$C$46:$C$55,0),1),0) -> 0.06 | AG201: 223.7608339 | AH201: 0.01371446 | AI201: 0.01978215 | AJ201: =IF(AD201>0,1,0) -> 0
C202: 34 | D202: 1 Medium, 2 Large Dryer SMS | E202: N/A | F202: 2020 | G202: Non-pipeline | H202: 0 | N202: Yes | O202: Yes | P202: 0.5 | Q202: Distribution Measuring and Regulating Equipt. | S202: Distribution Measurement | T202: Distribution | U202: 132.8588102 | V202: =IF(AND(T202="CIAC to Union",ISERROR(MATCH($Q202,Q$169:Q201,0))),MAX(V$169:V201)+1,0) -> 0 | W202: =IF(AND(T202="Deferred Revenue",ISERROR(MATCH($Q202,Q$169:Q201,0))),MAX(W$169:W201)+1,0) -> 0 | X202: -369.625 | Y202: -62.39917164 | Z202: -432.0241716 | AA202: -2.599138419 | AB202: -434.6233101 | AC202: 0 | AD202: -301.7644998 | AE202: =IFERROR(INDEX(Input!$E$46:$E$55,MATCH($Q202,Input!$C$46:$C$55,0),1),0) -> 0.0366 | AF202: =IFERROR(INDEX(Input!$D$46:$D$55,MATCH($Q202,Input!$C$46:$C$55,0),1),0) -> 0.06 | AG202: 434.6233101 | AH202: 0 | AI202: 0 | AJ202: 0
C203: 35 | D203: GFSA Sales Station | E203: N/A | F203: 2019 | G203: Non-pipeline | H203: 1 | N203: Yes | O203: Yes | P203: 0.5 | Q203: Distribution Measuring and Regulating Equipt. | S203: Distribution Measurement | T203: Distribution | U203: 57.50535477 | V203: =IF(AND(T203="CIAC to Union",ISERROR(MATCH($Q203,Q$169:Q202,0))),MAX(V$169:V202)+1,0) -> 0 | W203: =IF(AND(T203="Deferred Revenue",ISERROR(MATCH($Q203,Q$169:Q202,0))),MAX(W$169:W202)+1,0) -> 0 | X203: -159.985 | Y203: -27.00826912 | Z203: -186.9932691 | AA203: -0.530421618 | AB203: -187.5236907 | AC203: 0 | AD203: -130.018336 | AE203: =IFERROR(INDEX(Input!$E$46:$E$55,MATCH($Q203,Input!$C$46:$C$55,0),1),0) -> 0.0366 | AF203: =IFERROR(INDEX(Input!$D$46:$D$55,MATCH($Q203,Input!$C$46:$C$55,0),1),0) -> 0.06 | AG203: 187.5236907 | AH203: 0.01371446 | AI203: 0.02033581 | AJ203: 0
C204: 36 | D204: Snobelman Dryer - SMS (Lakside Supply& Install) | E204: N/A | F204: 2019 | G204: Non-pipeline | H204: 1 | N204: Yes | O204: Yes | P204: 0.5 | Q204: Distribution Measuring and Regulating Equipt. | S204: Distribution Measurement | T204: Distribution | U204: 51.55658694 | V204: =IF(AND(T204="CIAC to Union",ISERROR(MATCH($Q204,Q$169:Q203,0))),MAX(V$169:V203)+1,0) -> 0 | W204: =IF(AND(T204="Deferred Revenue",ISERROR(MATCH($Q204,Q$169:Q203,0))),MAX(W$169:W203)+1,0) -> 0 | X204: -143.435 | Y204: -24.21433935 | Z204: -167.6493394 | AA204: -0.4755509878 | AB204: -168.1248903 | AC204: 0 | AD204: -116.5683034 | AE204: =IFERROR(INDEX(Input!$E$46:$E$55,MATCH($Q204,Input!$C$46:$C$55,0),1),0) -> 0.0366 | AF204: =IFERROR(INDEX(Input!$D$46:$D$55,MATCH($Q204,Input!$C$46:$C$55,0),1),0) -> 0.06 | AG204: 168.1248903 | AH204: 0.01371446 | AI204: 0.02033581 | AJ204: 0
C205: 37 | D205: 1 Medium Grain Dryer | E205: N/A | F205: 2021 | G205: Non-pipeline | H205: 0 | N205: Yes | O205: No | P205: 0.5 | Q205: Distribution Measuring and Regulating Equipt. | S205: Distribution Measurement | T205: Distribution | U205: 0 | V205: =IF(AND(T205="CIAC to Union",ISERROR(MATCH($Q205,Q$169:Q204,0))),MAX(V$169:V204)+1,0) -> 0 | W205: =IF(AND(T205="Deferred Revenue",ISERROR(MATCH($Q205,Q$169:Q204,0))),MAX(W$169:W204)+1,0) -> 0 | X205: -86 | Y205: -14.51830574 | Z205: -100.5183057 | AA205: -5.211796218 | AB205: -105.730102 | AC205: 0 | AD205: -105.730102 | AE205: =IFERROR(INDEX(Input!$E$46:$E$55,MATCH($Q205,Input!$C$46:$C$55,0),1),0) -> 0.0366 | AF205: =IFERROR(INDEX(Input!$D$46:$D$55,MATCH($Q205,Input!$C$46:$C$55,0),1),0) -> 0.06 | AG205: 105.730102 | AH205: 0 | AI205: 0 | AJ205: 0
C206: 38 | D206: Plastic Distribution Mains for Future Services by EPCOR | E206: Plastic | F206: 2021 | G206: Pipeline | H206: 1150 | J206: 250 | N206: Yes | O206: No | P206: 0.5 | Q206: Distribution Mains - Plastic | R206: 2 | S206: Distribution Mains | T206: Distribution | U206: 0 | V206: =IF(AND(T206="CIAC to Union",ISERROR(MATCH($Q206,Q$169:Q205,0))),MAX(V$169:V205)+1,0) -> 0 | W206: =IF(AND(T206="Deferred Revenue",ISERROR(MATCH($Q206,Q$169:Q205,0))),MAX(W$169:W205)+1,0) -> 0 | X206: -100.8977315 | Y206: -17.03330366 | Z206: -117.9310351 | AA206: -6.114632736 | AB206: -124.0456679 | AC206: 4593.176 | AD206: -124.0456679 | AE206: =IFERROR(INDEX(Input!$E$46:$E$55,MATCH($Q206,Input!$C$46:$C$55,0),1),0) -> 0.0231 | AF206: =IFERROR(INDEX(Input!$D$46:$D$55,MATCH($Q206,Input!$C$46:$C$55,0),1),0) -> 0.06 | AG206: 42.85433208 | AH206: 0.01371446 | AI206: 0.02023694214 | AJ206: 0
C207: 39 | D207: Plastic Distribution Mains for Future Services by EPCOR | E207: Plastic | F207: 2022 | G207: Pipeline | H207: 1150 | J207: 250 | N207: Yes | O207: No | P207: 0.5 | Q207: Distribution Mains - Plastic | R207: 2 | S207: Distribution Mains | T207: Distribution | U207: 0 | V207: =IF(AND(T207="CIAC to Union",ISERROR(MATCH($Q207,Q$169:Q206,0))),MAX(V$169:V206)+1,0) -> 0 | W207: =IF(AND(T207="Deferred Revenue",ISERROR(MATCH($Q207,Q$169:Q206,0))),MAX(W$169:W206)+1,0) -> 0 | X207: -102.1791327 | Y207: -13.48777866 | Z207: -115.6669113 | AA207: -10.69321599 | AB207: -126.3601273 | AC207: 4593.176 | AD207: -126.3601273 | AE207: =IFERROR(INDEX(Input!$E$46:$E$55,MATCH($Q207,Input!$C$46:$C$55,0),1),0) -> 0.0231 | AF207: =IFERROR(INDEX(Input!$D$46:$D$55,MATCH($Q207,Input!$C$46:$C$55,0),1),0) -> 0.06 | AG207: 42.85433208 | AH207: 0.01371446 | AI207: 0.02023694214 | AJ207: 0
C208: 40 | D208: Plastic Distribution Mains for Future Services by EPCOR | E208: Plastic | F208: 2023 | G208: Pipeline | H208: 1150 | J208: 250 | N208: Yes | O208: No | P208: 0.5 | Q208: Distribution Mains - Plastic | R208: 2 | S208: Distribution Mains | T208: Distribution | U208: 0 | V208: =IF(AND(T208="CIAC to Union",ISERROR(MATCH($Q208,Q$169:Q207,0))),MAX(V$169:V207)+1,0) -> 0 | W208: =IF(AND(T208="Deferred Revenue",ISERROR(MATCH($Q208,Q$169:Q207,0))),MAX(W$169:W207)+1,0) -> 0 | X208: -103.4768077 | Y208: -13.65907345 | Z208: -117.1358811 | AA208: -12.6374114 | AB208: -129.7732925 | AC208: 4593.176 | AD208: -129.7732925 | AE208: =IFERROR(INDEX(Input!$E$46:$E$55,MATCH($Q208,Input!$C$46:$C$55,0),1),0) -> 0.0231 | AF208: =IFERROR(INDEX(Input!$D$46:$D$55,MATCH($Q208,Input!$C$46:$C$55,0),1),0) -> 0.06 | AG208: 42.85433208 | AH208: 0.01371446 | AI208: 0.02023694214 | AJ208: 0
C209: 41 | D209: Plastic Distribution Mains for Future Services by EPCOR | E209: Plastic | F209: 2024 | G209: Pipeline | H209: 1175 | J209: 250 | N209: Yes | O209: No | P209: 0.5 | Q209: Distribution Mains - Plastic | R209: 2 | S209: Distribution Mains | T209: Distribution | U209: 0 | V209: =IF(AND(T209="CIAC to Union",ISERROR(MATCH($Q209,Q$169:Q208,0))),MAX(V$169:V208)+1,0) -> 0 | W209: =IF(AND(T209="Deferred Revenue",ISERROR(MATCH($Q209,Q$169:Q208,0))),MAX(W$169:W208)+1,0) -> 0 | X209: -106.6622303 | Y209: -14.07955339 | Z209: -120.7417837 | AA209: -26.20070801 | AB209: -146.9424917 | AC209: 4675.197 | AD209: -146.9424917 | AE209: =IFERROR(INDEX(Input!$E$46:$E$55,MATCH($Q209,Input!$C$46:$C$55,0),1),0) -> 0.0231 | AF209: =IFERROR(INDEX(Input!$D$46:$D$55,MATCH($Q209,Input!$C$46:$C$55,0),1),0) -> 0.06 | AG209: 43.61958801 | AH209: 0.01371446 | AI209: 0.02023867667 | AJ209: 0
C210: 42 | D210: Plastic Distribution Mains for Future Services by EPCOR | E210: Plastic | F210: 2025 | G210: Pipeline | H210: 1150 | J210: 250 | N210: Yes | O210: No | P210: 0.5 | Q210: Distribution Mains - Plastic | R210: 2 | S210: Distribution Mains | T210: Distribution | U210: 0 | V210: =IF(AND(T210="CIAC to Union",ISERROR(MATCH($Q210,Q$169:Q209,0))),MAX(V$169:V209)+1,0) -> 0 | W210: =IF(AND(T210="Deferred Revenue",ISERROR(MATCH($Q210,Q$169:Q209,0))),MAX(W$169:W209)+1,0) -> 0 | X210: -106.1218083 | Y210: -14.00821699 | Z210: -120.1300253 | AA210: -74.08261395 | AB210: -194.2126393 | AC210: 4593.176 | AD210: -194.2126393 | AE210: =IFERROR(INDEX(Input!$E$46:$E$55,MATCH($Q210,Input!$C$46:$C$55,0),1),0) -> 0.0231 | AF210: =IFERROR(INDEX(Input!$D$46:$D$55,MATCH($Q210,Input!$C$46:$C$55,0),1),0) -> 0.06 | AG210: 42.85433208 | AH210: 0.01371446 | AI210: 0.02023694214 | AJ210: 0
C211: 43 | D211: Plastic Distribution Mains for Future Services by EPCOR | E211: Plastic | F211: 2026 | G211: Pipeline | H211: 775 | J211: 225 | N211: Yes | O211: No | P211: 0.5 | Q211: Distribution Mains - Plastic | R211: 2 | S211: Distribution Mains | T211: Distribution | U211: 0 | V211: =IF(AND(T211="CIAC to Union",ISERROR(MATCH($Q211,Q$169:Q210,0))),MAX(V$169:V210)+1,0) -> 0 | W211: =IF(AND(T211="Deferred Revenue",ISERROR(MATCH($Q211,Q$169:Q210,0))),MAX(W$169:W210)+1,0) -> 0 | X211: -76.76396808 | Y211: -10.13294382 | Z211: -86.89691189 | AA211: -75.02346315 | AB211: -161.920375 | AC211: 3280.84 | AD211: -161.920375 | AE211: =IFERROR(INDEX(Input!$E$46:$E$55,MATCH($Q211,Input!$C$46:$C$55,0),1),0) -> 0.0231 | AF211: =IFERROR(INDEX(Input!$D$46:$D$55,MATCH($Q211,Input!$C$46:$C$55,0),1),0) -> 0.06 | AG211: 30.6102372 | AH211: 0.01371446 | AI211: 0.0202112365 | AJ211: 0
C212: 44 | D212: Plastic Distribution Mains for Future Services by EPCOR | E212: Plastic | F212: 2027 | G212: Pipeline | H212: 775 | J212: 175 | N212: Yes | O212: No | P212: 0.5 | Q212: Distribution Mains - Plastic | R212: 2 | S212: Distribution Mains | T212: Distribution | U212: 0 | V212: =IF(AND(T212="CIAC to Union",ISERROR(MATCH($Q212,Q$169:Q211,0))),MAX(V$169:V211)+1,0) -> 0 | W212: =IF(AND(T212="Deferred Revenue",ISERROR(MATCH($Q212,Q$169:Q211,0))),MAX(W$169:W211)+1,0) -> 0 | X212: -73.85192695 | Y212: -9.748550592 | Z212: -83.60047754 | AA212: -75.97626113 | AB212: -159.5767387 | AC212: 3116.798 | AD212: -159.5767387 | AE212: =IFERROR(INDEX(Input!$E$46:$E$55,MATCH($Q212,Input!$C$46:$C$55,0),1),0) -> 0.0231 | AF212: =IFERROR(INDEX(Input!$D$46:$D$55,MATCH($Q212,Input!$C$46:$C$55,0),1),0) -> 0.06 | AG212: 29.07972534 | AH212: 0.01371446 | AI212: 0.02023382 | AJ212: 0
C213: 45 | D213: Plastic Distribution Mains for Future Services by EPCOR | E213: Plastic | F213: 2028 | G213: Pipeline | J213: 175 | N213: Yes | O213: No | P213: 0.5 | Q213: Distribution Mains - Plastic | R213: 2 | S213: Distribution Mains | T213: Distribution | U213: 0 | V213: =IF(AND(T213="CIAC to Union",ISERROR(MATCH($Q213,Q$169:Q212,0))),MAX(V$169:V212)+1,0) -> 0 | W213: =IF(AND(T213="Deferred Revenue",ISERROR(MATCH($Q213,Q$169:Q212,0))),MAX(W$169:W212)+1,0) -> 0 | X213: -13.77707697 | Y213: -1.818592113 | Z213: -15.59566909 | AA213: -76.94115965 | AB213: -92.53682874 | AC213: 574.147 | AD213: -92.53682874 | AE213: =IFERROR(INDEX(Input!$E$46:$E$55,MATCH($Q213,Input!$C$46:$C$55,0),1),0) -> 0.0231 | AF213: =IFERROR(INDEX(Input!$D$46:$D$55,MATCH($Q213,Input!$C$46:$C$55,0),1),0) -> 0.06 | AG213: 5.35679151 | AH213: 0.01371446 | AI213: 0.01978215 | AJ213: 0
C214: 46 | D214: Future Service Line - Connected by Contractor | E214: N/A | F214: 2019 | G214: Non-pipeline | H214: 977 | I214: 0 | J214: 0 | N214: Yes | O214: Yes | P214: 0.5 | Q214: Distribution Services Plastic | S214: Customer - Services | T214: Distribution | U214: 553.2059699 | V214: =IF(AND(T214="CIAC to Union",ISERROR(MATCH($Q214,Q$169:Q213,0))),MAX(V$169:V213)+1,0) -> 0 | W214: =IF(AND(T214="Deferred Revenue",ISERROR(MATCH($Q214,Q$169:Q213,0))),MAX(W$169:W213)+1,0) -> 0 | X214: -1539.0681 | Y214: -259.8216423 | Z214: -1798.889742 | AA214: -5.102697077 | AB214: -1803.992439 | AC214: 0 | AD214: -1250.786469 | AE214: =IFERROR(INDEX(Input!$E$46:$E$55,MATCH($Q214,Input!$C$46:$C$55,0),1),0) -> 0.0251 | AF214: =IFERROR(INDEX(Input!$D$46:$D$55,MATCH($Q214,Input!$C$46:$C$55,0),1),0) -> 0.06 | AG214: 1803.992439 | AH214: 0.01371446 | AI214: 0.02033581 | AJ214: 0
C215: 47 | D215: Future Service Line - Connected by Contractor | E215: N/A | F215: 2020 | G215: Non-pipeline | H215: 1035 | I215: 294 | J215: 272 | N215: Yes | O215: No | P215: 0.5 | Q215: Distribution Services Plastic | S215: Customer - Services | T215: Distribution | U215: 0 | V215: =IF(AND(T215="CIAC to Union",ISERROR(MATCH($Q215,Q$169:Q214,0))),MAX(V$169:V214)+1,0) -> 0 | W215: =IF(AND(T215="Deferred Revenue",ISERROR(MATCH($Q215,Q$169:Q214,0))),MAX(W$169:W214)+1,0) -> 0 | X215: -2522.0553 | Y215: -425.7670924 | Z215: -2947.822392 | AA215: -17.73465222 | AB215: -2965.557045 | AC215: 0 | AD215: -2965.557045 | AE215: =IFERROR(INDEX(Input!$E$46:$E$55,MATCH($Q215,Input!$C$46:$C$55,0),1),0) -> 0.0251 | AF215: =IFERROR(INDEX(Input!$D$46:$D$55,MATCH($Q215,Input!$C$46:$C$55,0),1),0) -> 0.06 | AG215: 2965.557045 | AH215: 0.01371446 | AI215: 0.02039850864 | AJ215: 0
C216: 48 | D216: Future Service Line - Connected by Contractor | E216: N/A | F216: 2021 | G216: Non-pipeline | H216: 374 | I216: 277 | J216: 271 | N216: Yes | O216: No | P216: 0.5 | Q216: Distribution Services Plastic | S216: Customer - Services | T216: Distribution | U216: 0 | V216: =IF(AND(T216="CIAC to Union",ISERROR(MATCH($Q216,Q$169:Q215,0))),MAX(V$169:V215)+1,0) -> 0 | W216: =IF(AND(T216="Deferred Revenue",ISERROR(MATCH($Q216,Q$169:Q215,0))),MAX(W$169:W215)+1,0) -> 0 | X216: -1470.872418 | Y216: -248.3090171 | Z216: -1719.181435 | AA216: -89.13822447 | AB216: -1808.319659 | AC216: 0 | AD216: -1808.319659 | AE216: =IFERROR(INDEX(Input!$E$46:$E$55,MATCH($Q216,Input!$C$46:$C$55,0),1),0) -> 0.0251 | AF216: =IFERROR(INDEX(Input!$D$46:$D$55,MATCH($Q216,Input!$C$46:$C$55,0),1),0) -> 0.06 | AG216: 1808.319659 | AH216: 0.01371446 | AI216: 0.02042954315 | AJ216: 0
C217: 49 | D217: Future Service Line - Connected by EPCOR | E217: N/A | F217: 2021 | G217: Non-pipeline | H217: 170 | N217: Yes | O217: No | P217: 0.5 | Q217: Distribution Services Plastic | S217: Customer - Services | T217: Distribution | U217: 0 | V217: =IF(AND(T217="CIAC to Union",ISERROR(MATCH($Q217,Q$169:Q216,0))),MAX(V$169:V216)+1,0) -> 0 | W217: =IF(AND(T217="Deferred Revenue",ISERROR(MATCH($Q217,Q$169:Q216,0))),MAX(W$169:W216)+1,0) -> 0 | X217: -258.2901477 | Y217: -34.09463607 | Z217: -292.3847838 | AA217: -15.65297227 | AB217: -308.037756 | AC217: 0 | AD217: -308.037756 | AE217: =IFERROR(INDEX(Input!$E$46:$E$55,MATCH($Q217,Input!$C$46:$C$55,0),1),0) -> 0.0251 | AF217: =IFERROR(INDEX(Input!$D$46:$D$55,MATCH($Q217,Input!$C$46:$C$55,0),1),0) -> 0.06 | AG217: 308.037756 | AH217: 0.01371446 | AI217: 0.02033581 | AJ217: 0
C218: 50 | D218: Future Service Line - Connected by EPCOR | E218: N/A | F218: 2022 | G218: Non-pipeline | H218: 383 | I218: 137 | J218: 136 | N218: Yes | O218: No | P218: 0.5 | Q218: Distribution Services Plastic | S218: Customer - Services | T218: Distribution | U218: 0 | V218: =IF(AND(T218="CIAC to Union",ISERROR(MATCH($Q218,Q$169:Q217,0))),MAX(V$169:V217)+1,0) -> 0 | W218: =IF(AND(T218="Deferred Revenue",ISERROR(MATCH($Q218,Q$169:Q217,0))),MAX(W$169:W217)+1,0) -> 0 | X218: -1009.35414 | Y218: -133.2360617 | Z218: -1142.590202 | AA218: -105.6305876 | AB218: -1248.220789 | AC218: 0 | AD218: -1248.220789 | AE218: =IFERROR(INDEX(Input!$E$46:$E$55,MATCH($Q218,Input!$C$46:$C$55,0),1),0) -> 0.0251 | AF218: =IFERROR(INDEX(Input!$D$46:$D$55,MATCH($Q218,Input!$C$46:$C$55,0),1),0) -> 0.06 | AG218: 1248.220789 | AH218: 0.01371446 | AI218: 0.02039930643 | AJ218: 0
C219: 51 | D219: Future Service Line - Connected by EPCOR | E219: N/A | F219: 2023 | G219: Non-pipeline | H219: 353 | I219: 101 | J219: 101 | N219: Yes | O219: No | P219: 0.5 | Q219: Distribution Services Plastic | S219: Customer - Services | T219: Distribution | U219: 0 | V219: =IF(AND(T219="CIAC to Union",ISERROR(MATCH($Q219,Q$169:Q218,0))),MAX(V$169:V218)+1,0) -> 0 | W219: =IF(AND(T219="Deferred Revenue",ISERROR(MATCH($Q219,Q$169:Q218,0))),MAX(W$169:W218)+1,0) -> 0 | X219: -864.7957016 | Y219: -114.1541595 | Z219: -978.9498611 | AA219: -105.6157346 | AB219: -1084.565596 | AC219: 0 | AD219: -1084.565596 | AE219: =IFERROR(INDEX(Input!$E$46:$E$55,MATCH($Q219,Input!$C$46:$C$55,0),1),0) -> 0.0251 | AF219: =IFERROR(INDEX(Input!$D$46:$D$55,MATCH($Q219,Input!$C$46:$C$55,0),1),0) -> 0.06 | AG219: 1084.565596 | AH219: 0.01371446 | AI219: 0.02039040459 | AJ219: 0
C220: 52 | D220: Future Service Line - Connected by EPCOR | E220: N/A | F220: 2024 | G220: Non-pipeline | H220: 74 | I220: 86 | J220: 90 | N220: Yes | O220: No | P220: 0.5 | Q220: Distribution Services Plastic | S220: Customer - Services | T220: Distribution | U220: 0 | V220: =IF(AND(T220="CIAC to Union",ISERROR(MATCH($Q220,Q$169:Q219,0))),MAX(V$169:V219)+1,0) -> 0 | W220: =IF(AND(T220="Deferred Revenue",ISERROR(MATCH($Q220,Q$169:Q219,0))),MAX(W$169:W219)+1,0) -> 0 | X220: -394.494868 | Y220: -52.07383663 | Z220: -446.5687047 | AA220: -96.9044508 | AB220: -543.4731555 | AC220: 0 | AD220: -543.4731555 | AE220: =IFERROR(INDEX(Input!$E$46:$E$55,MATCH($Q220,Input!$C$46:$C$55,0),1),0) -> 0.0251 | AF220: =IFERROR(INDEX(Input!$D$46:$D$55,MATCH($Q220,Input!$C$46:$C$55,0),1),0) -> 0.06 | AG220: 543.4731555 | AH220: 0.01371446 | AI220: 0.02043015144 | AJ220: 0
C221: 53 | D221: Future Service Line - Connected by EPCOR | E221: N/A | F221: 2025 | G221: Non-pipeline | H221: 46 | I221: 0 | J221: 10 | N221: Yes | O221: No | P221: 0.5 | Q221: Distribution Services Plastic | S221: Customer - Services | T221: Distribution | U221: 0 | V221: =IF(AND(T221="CIAC to Union",ISERROR(MATCH($Q221,Q$169:Q220,0))),MAX(V$169:V220)+1,0) -> 0 | W221: =IF(AND(T221="Deferred Revenue",ISERROR(MATCH($Q221,Q$169:Q220,0))),MAX(W$169:W220)+1,0) -> 0 | X221: -89.48910944 | Y221: -11.81267906 | Z221: -101.3017885 | AA221: -62.47148679 | AB221: -163.7732753 | AC221: 0 | AD221: -163.7732753 | AE221: =IFERROR(INDEX(Input!$E$46:$E$55,MATCH($Q221,Input!$C$46:$C$55,0),1),0) -> 0.0251 | AF221: =IFERROR(INDEX(Input!$D$46:$D$55,MATCH($Q221,Input!$C$46:$C$55,0),1),0) -> 0.06 | AG221: 163.7732753 | AH221: 0.01371446 | AI221: 0.02023694214 | AJ221: 0
C222: 54 | D222: Future Service Line - Connected by EPCOR | E222: N/A | F222: 2026 | G222: Non-pipeline | H222: 31 | I222: 0 | J222: 9 | N222: Yes | O222: No | P222: 0.5 | Q222: Distribution Services Plastic | S222: Customer - Services | T222: Distribution | U222: 0 | V222: =IF(AND(T222="CIAC to Union",ISERROR(MATCH($Q222,Q$169:Q221,0))),MAX(V$169:V221)+1,0) -> 0 | W222: =IF(AND(T222="Deferred Revenue",ISERROR(MATCH($Q222,Q$169:Q221,0))),MAX(W$169:W221)+1,0) -> 0 | X222: -64.73258652 | Y222: -8.544785772 | Z222: -73.27737229 | AA222: -63.26487467 | AB222: -136.542247 | AC222: 0 | AD222: -136.542247 | AE222: =IFERROR(INDEX(Input!$E$46:$E$55,MATCH($Q222,Input!$C$46:$C$55,0),1),0) -> 0.0251 | AF222: =IFERROR(INDEX(Input!$D$46:$D$55,MATCH($Q222,Input!$C$46:$C$55,0),1),0) -> 0.06 | AG222: 136.542247 | AH222: 0.01371446 | AI222: 0.0202112365 | AJ222: 0
C223: 55 | D223: Future Service Line - Connected by EPCOR | E223: N/A | F223: 2027 | G223: Non-pipeline | H223: 31 | I223: 0 | J223: 7 | N223: Yes | O223: No | P223: 0.5 | Q223: Distribution Services Plastic | S223: Customer - Services | T223: Distribution | U223: 0 | V223: =IF(AND(T223="CIAC to Union",ISERROR(MATCH($Q223,Q$169:Q222,0))),MAX(V$169:V222)+1,0) -> 0 | W223: =IF(AND(T223="Deferred Revenue",ISERROR(MATCH($Q223,Q$169:Q222,0))),MAX(W$169:W222)+1,0) -> 0 | X223: -62.27695585 | Y223: -8.220639324 | Z223: -70.49759517 | AA223: -64.06833858 | AB223: -134.5659338 | AC223: 0 | AD223: -134.5659338 | AE223: =IFERROR(INDEX(Input!$E$46:$E$55,MATCH($Q223,Input!$C$46:$C$55,0),1),0) -> 0.0251 | AF223: =IFERROR(INDEX(Input!$D$46:$D$55,MATCH($Q223,Input!$C$46:$C$55,0),1),0) -> 0.06 | AG223: 134.5659338 | AH223: 0.01371446 | AI223: 0.02023382 | AJ223: 0
C224: 56 | D224: Future Service Line - Connected by EPCOR | E224: N/A | F224: 2028 | G224: Non-pipeline | H224: 0 | I224: 0 | J224: 7 | N224: Yes | O224: No | P224: 0.5 | Q224: Distribution Services Plastic | S224: Customer - Services | T224: Distribution | U224: 0 | V224: =IF(AND(T224="CIAC to Union",ISERROR(MATCH($Q224,Q$169:Q223,0))),MAX(V$169:V223)+1,0) -> 0 | W224: =IF(AND(T224="Deferred Revenue",ISERROR(MATCH($Q224,Q$169:Q223,0))),MAX(W$169:W223)+1,0) -> 0 | X224: -11.61776611 | Y224: -1.533560266 | Z224: -13.15132638 | AA224: -64.88200648 | AB224: -78.03333286 | AC224: 0 | AD224: -78.03333286 | AE224: =IFERROR(INDEX(Input!$E$46:$E$55,MATCH($Q224,Input!$C$46:$C$55,0),1),0) -> 0.0251 | AF224: =IFERROR(INDEX(Input!$D$46:$D$55,MATCH($Q224,Input!$C$46:$C$55,0),1),0) -> 0.06 | AG224: 78.03333286 | AH224: 0.01371446 | AI224: 0.01978215 | AJ224: 0
C225: 57 | D225: Vehicles | E225: N/A | F225: 2019 | G225: Non-pipeline | N225: No | O225: No | P225: 0.5 | Q225: Vehicles | S225: Distribution Mains H.P. Steel | T225: Distribution | U225: 0 | V225: =IF(AND(T225="CIAC to Union",ISERROR(MATCH($Q225,Q$169:Q224,0))),MAX(V$169:V224)+1,0) -> 0 | W225: =IF(AND(T225="Deferred Revenue",ISERROR(MATCH($Q225,Q$169:Q224,0))),MAX(W$169:W224)+1,0) -> 0 | X225: -136.6466067 | Y225: -5.030809565 | Z225: -141.6774163 | AA225: 0 | AB225: -141.6774163 | AC225: 0 | AD225: -141.6774163 | AE225: =IFERROR(INDEX(Input!$E$46:$E$55,MATCH($Q225,Input!$C$46:$C$55,0),1),0) -> 0.1111111111 | AF225: =IFERROR(INDEX(Input!$D$46:$D$55,MATCH($Q225,Input!$C$46:$C$55,0),1),0) -> 0.3 | AG225: 141.6774163 | AH225: 0 | AI225: 0 | AJ225: 0
C226: 58 | D226: Vehicles | E226: N/A | F226: 2027 | G226: Non-pipeline | N226: No | O226: No | P226: 0.5 | Q226: Vehicles | S226: Distribution Mains H.P. Steel | T226: Distribution | U226: 0 | V226: =IF(AND(T226="CIAC to Union",ISERROR(MATCH($Q226,Q$169:Q225,0))),MAX(V$169:V225)+1,0) -> 0 | W226: =IF(AND(T226="Deferred Revenue",ISERROR(MATCH($Q226,Q$169:Q225,0))),MAX(W$169:W225)+1,0) -> 0 | X226: -151.1629405 | Y226: 0 | Z226: -151.1629405 | AA226: 0 | AB226: -151.1629405 | AC226: 0 | AD226: -151.1629405 | AE226: =IFERROR(INDEX(Input!$E$46:$E$55,MATCH($Q226,Input!$C$46:$C$55,0),1),0) -> 0.1111111111 | AF226: =IFERROR(INDEX(Input!$D$46:$D$55,MATCH($Q226,Input!$C$46:$C$55,0),1),0) -> 0.3 | AG226: 151.1629405 | AH226: 0 | AI226: 0 | AJ226: 0
C227: 59 | D227: Vehicles | E227: N/A | F227: 2019 | G227: Non-pipeline | N227: No | O227: No | P227: 0.5 | Q227: Vehicles | S227: Customer - Services | T227: Distribution | U227: 0 | V227: =IF(AND(T227="CIAC to Union",ISERROR(MATCH($Q227,Q$169:Q226,0))),MAX(V$169:V226)+1,0) -> 0 | W227: =IF(AND(T227="Deferred Revenue",ISERROR(MATCH($Q227,Q$169:Q226,0))),MAX(W$169:W226)+1,0) -> 0 | X227: -172.3763416 | Y227: -6.34624283 | Z227: -178.7225845 | AA227: 0 | AB227: -178.7225845 | AC227: 0 | AD227: -178.7225845 | AE227: =IFERROR(INDEX(Input!$E$46:$E$55,MATCH($Q227,Input!$C$46:$C$55,0),1),0) -> 0.1111111111 | AF227: =IFERROR(INDEX(Input!$D$46:$D$55,MATCH($Q227,Input!$C$46:$C$55,0),1),0) -> 0.3 | AG227: 178.7225845 | AH227: 0 | AI227: 0 | AJ227: 0
C228: 60 | D228: Vehicles | E228: N/A | F228: 2027 | G228: Non-pipeline | N228: No | O228: No | P228: 0.5 | Q228: Vehicles | S228: Customer - Services | T228: Distribution | U228: 0 | V228: =IF(AND(T228="CIAC to Union",ISERROR(MATCH($Q228,Q$169:Q227,0))),MAX(V$169:V227)+1,0) -> 0 | W228: =IF(AND(T228="Deferred Revenue",ISERROR(MATCH($Q228,Q$169:Q227,0))),MAX(W$169:W227)+1,0) -> 0 | X228: -190.6883405 | Y228: 0 | Z228: -190.6883405 | AA228: 0 | AB228: -190.6883405 | AC228: 0 | AD228: -190.6883405 | AE228: =IFERROR(INDEX(Input!$E$46:$E$55,MATCH($Q228,Input!$C$46:$C$55,0),1),0) -> 0.1111111111 | AF228: =IFERROR(INDEX(Input!$D$46:$D$55,MATCH($Q228,Input!$C$46:$C$55,0),1),0) -> 0.3 | AG228: 190.6883405 | AH228: 0 | AI228: 0 | AJ228: 0
C229: 61 | D229: Future Service Meters - Connected by Contractor | E229: N/A | F229: 2019 | G229: Non-pipeline | H229: 977 | I229: 0 | J229: 0 | N229: Yes | O229: No | P229: 0.5 | Q229: Distribution Meters | S229: Customer - Meters | T229: Distribution | U229: 0 | V229: =IF(AND(T229="CIAC to Union",ISERROR(MATCH($Q229,Q$169:Q228,0))),MAX(V$169:V228)+1,0) -> 0 | W229: =IF(AND(T229="Deferred Revenue",ISERROR(MATCH($Q229,Q$169:Q228,0))),MAX(W$169:W228)+1,0) -> 0 | X229: -488.5 | Y229: -82.46735298 | Z229: -570.967353 | AA229: -1.61959534 | AB229: -572.5869483 | AC229: 0 | AD229: -572.5869483 | AE229: =IFERROR(INDEX(Input!$E$46:$E$55,MATCH($Q229,Input!$C$46:$C$55,0),1),0) -> 0.0382 | AF229: =IFERROR(INDEX(Input!$D$46:$D$55,MATCH($Q229,Input!$C$46:$C$55,0),1),0) -> 0.06 | AG229: 0 | AH229: 0.01371446 | AI229: 0.02033581 | AJ229: 0
C230: 62 | D230: Future Service Meters - Connected by Contractor | E230: N/A | F230: 2020 | G230: Non-pipeline | H230: 1035 | I230: 294 | J230: 272 | N230: Yes | O230: No | P230: 0.5 | Q230: Distribution Meters | S230: Customer - Meters | T230: Distribution | U230: 0 | V230: =IF(AND(T230="CIAC to Union",ISERROR(MATCH($Q230,Q$169:Q229,0))),MAX(V$169:V229)+1,0) -> 0 | W230: =IF(AND(T230="Deferred Revenue",ISERROR(MATCH($Q230,Q$169:Q229,0))),MAX(W$169:W229)+1,0) -> 0 | X230: -800.5 | Y230: -135.1384157 | Z230: -935.6384157 | AA230: -5.628976137 | AB230: -941.2673918 | AC230: 0 | AD230: -941.2673918 | AE230: =IFERROR(INDEX(Input!$E$46:$E$55,MATCH($Q230,Input!$C$46:$C$55,0),1),0) -> 0.0382 | AF230: =IFERROR(INDEX(Input!$D$46:$D$55,MATCH($Q230,Input!$C$46:$C$55,0),1),0) -> 0.06 | AG230: 0 | AH230: 0.01371446 | AI230: 0.02039850864 | AJ230: 0
C231: 63 | D231: Future Service Meters - Connected by Contractor | E231: N/A | F231: 2021 | G231: Non-pipeline | H231: 374 | I231: 277 | J231: 271 | N231: Yes | O231: No | P231: 0.5 | Q231: Distribution Meters | S231: Customer - Meters | T231: Distribution | U231: 0 | V231: =IF(AND(T231="CIAC to Union",ISERROR(MATCH($Q231,Q$169:Q230,0))),MAX(V$169:V230)+1,0) -> 0 | W231: =IF(AND(T231="Deferred Revenue",ISERROR(MATCH($Q231,Q$169:Q230,0))),MAX(W$169:W230)+1,0) -> 0 | X231: -466.8547 | Y231: -78.81324736 | Z231: -545.6679474 | AA231: -28.29246 | AB231: -573.9604074 | AC231: 0 | AD231: -573.9604074 | AE231: =IFERROR(INDEX(Input!$E$46:$E$55,MATCH($Q231,Input!$C$46:$C$55,0),1),0) -> 0.0382 | AF231: =IFERROR(INDEX(Input!$D$46:$D$55,MATCH($Q231,Input!$C$46:$C$55,0),1),0) -> 0.06 | AG231: 0 | AH231: 0.01371446 | AI231: 0.02042954315 | AJ231: 0
C232: 64 | D232: Future Service Meters - Connected by EPCOR | E232: N/A | F232: 2021 | G232: Non-pipeline | H232: 170 | N232: Yes | O232: No | P232: 0.5 | Q232: Distribution Meters | S232: Customer - Meters | T232: Distribution | U232: 0 | V232: =IF(AND(T232="CIAC to Union",ISERROR(MATCH($Q232,Q$169:Q231,0))),MAX(V$169:V231)+1,0) -> 0 | W232: =IF(AND(T232="Deferred Revenue",ISERROR(MATCH($Q232,Q$169:Q231,0))),MAX(W$169:W231)+1,0) -> 0 | X232: -86.0795 | Y232: -11.36260617 | Z232: -97.44210617 | AA232: -5.216614099 | AB232: -102.6587203 | AC232: 0 | AD232: -102.6587203 | AE232: =IFERROR(INDEX(Input!$E$46:$E$55,MATCH($Q232,Input!$C$46:$C$55,0),1),0) -> 0.0382 | AF232: =IFERROR(INDEX(Input!$D$46:$D$55,MATCH($Q232,Input!$C$46:$C$55,0),1),0) -> 0.06 | AG232: 0 | AH232: 0.01371446 | AI232: 0.02033581 | AJ232: 0
C233: 65 | D233: Future Service Meters - Connected by EPCOR | E233: N/A | F233: 2022 | G233: Non-pipeline | H233: 383 | I233: 137 | J233: 136 | N233: Yes | O233: No | P233: 0.5 | Q233: Distribution Meters | S233: Customer - Meters | T233: Distribution | U233: =IF($O233="Yes",$X233/SUMIFS($X$169:$X$368,$O$169:$O$368,"Yes")*$E$164,0) -> 0 | V233: =IF(AND(T233="CIAC to Union",ISERROR(MATCH($Q233,Q$169:Q232,0))),MAX(V$169:V232)+1,0) -> 0 | W233: =IF(AND(T233="Deferred Revenue",ISERROR(MATCH($Q233,Q$169:Q232,0))),MAX(W$169:W232)+1,0) -> 0 | X233: -336.3841031 | Y233: -44.40313994 | Z233: =X233+Y233 -> -380.7872431 | AA233: =IF(N233="Yes",$X233/SUMIFS($X$169:$X$368,N$169:N$368,"Yes",$F$169:$F$368,$F233)*INDEX($F$160:$O$160,1,MATCH($F233,$F$159:$O$159,0)),0) -> -35.20315525 | AB233: =Z233+AA233 -> -415.9903983 | AC233: =IF($G233="Pipeline",SUM($H233:$M233)*$E$15,0) -> 0 | AD233: =AB233+U233 -> -415.9903983 | AE233: =IFERROR(INDEX(Input!$E$46:$E$55,MATCH($Q233,Input!$C$46:$C$55,0),1),0) -> 0.0382 | AF233: =IFERROR(INDEX(Input!$D$46:$D$55,MATCH($Q233,Input!$C$46:$C$55,0),1),0) -> 0.06 | AG233: 0 | AH233: 0.01371446 | AI233: 0.02039930643 | AJ233: =IF(AD233>0,1,0) -> 0
... 721 more rows

Sheet Calculation
A1: Check | B1: =Input!D2 -> 3.399235338e-10 | H1: =H2-$H$2 -> 0 | I1: =I2-$H$2 -> 1 | J1: 2 | K1: 3 | L1: 4 | M1: 5 | N1: 6 | O1: 7 | P1: 8 | Q1: 9 | R1: 10
H2: =Input!$E$10 -> 2018 | I2: =H2+1 -> 2019 | J2: =I2+1 -> 2020 | K2: 2021 | L2: 2022 | M2: 2023 | N2: 2024 | O2: 2025 | P2: 2026 | Q2: 2027 | R2: 2028
B3: Unit | C3: Var 1 | D3: Var 2 | E3: Var 3 | F3: Var 4 | G3: 10 year Sum | H3: =IF(H1=0,DATE(H2,12,31),DATE(H2,7,1)) -> 2018-12-31 | I3: =IF(I1=0,DATE(I2,12,31),DATE(I2,7,1)) -> 2019-07-01 | J3: 2020-07-01 | K3: 2021-07-01 | L3: 2022-07-01 | M3: 2023-07-01 | N3: 2024-07-01 | O3: 2025-07-01 | P3: 2026-07-01 | Q3: 2027-07-01 | R3: 2028-07-01
A5: Flags and Metrics
A7: CPI Index | H7: =(1+inflation)^H$1 -> 1 | I7: 1.0127 | J7: 1.02556129 | K7: 1.038585918 | L7: 1.05177596 | M7: 1.065133514 | N7: 1.07866071 | O7: 1.092359701 | P7: 1.106232669 | Q7: 1.120281824 | R7: 1.134509403
A8: Assessment Value Index | H8: =IF(H$2<=Input!$E$71,1,IF(MOD((H$2-Input!$E$71),Input!$E$72)=1,G8*(1+Input!$E$73),G8)) -> 1 | I8: =IF(I$2<=Input!$E$71,1,IF(MOD((I$2-Input!$E$71),Input!$E$72)=1,H8*(1+Input!$E$73),H8)) -> 1 | J8: =IF(J$2<=Input!$E$71,1,IF(MOD((J$2-Input!$E$71),Input!$E$72)=1,I8*(1+Input!$E$73),I8)) -> 1 | K8: =IF(K$2<=Input!$E$71,1,IF(MOD((K$2-Input!$E$71),Input!$E$72)=1,J8*(1+Input!$E$73),J8)) -> 1.05177596 | L8: =IF(L$2<=Input!$E$71,1,IF(MOD((L$2-Input!$E$71),Input!$E$72)=1,K8*(1+Input!$E$73),K8)) -> 1.05177596 | M8: =IF(M$2<=Input!$E$71,1,IF(MOD((M$2-Input!$E$71),Input!$E$72)=1,L8*(1+Input!$E$73),L8)) -> 1.05177596 | N8: =IF(N$2<=Input!$E$71,1,IF(MOD((N$2-Input!$E$71),Input!$E$72)=1,M8*(1+Input!$E$73),M8)) -> 1.05177596 | O8: =IF(O$2<=Input!$E$71,1,IF(MOD((O$2-Input!$E$71),Input!$E$72)=1,N8*(1+Input!$E$73),N8)) -> 1.106232669 | P8: =IF(P$2<=Input!$E$71,1,IF(MOD((P$2-Input!$E$71),Input!$E$72)=1,O8*(1+Input!$E$73),O8)) -> 1.106232669 | Q8: =IF(Q$2<=Input!$E$71,1,IF(MOD((Q$2-Input!$E$71),Input!$E$72)=1,P8*(1+Input!$E$73),P8)) -> 1.106232669 | R8: =IF(R$2<=Input!$E$71,1,IF(MOD((R$2-Input!$E$71),Input!$E$72)=1,Q8*(1+Input!$E$73),Q8)) -> 1.106232669
A9: Rate Stability Period | H9: =IF(H$2<Input!$E$11,1,0) -> 1 | I9: =IF(I$2<Input!$E$11,1,0) -> 1 | J9: =IF(J$2<Input!$E$11,1,0) -> 1 | K9: =IF(K$2<Input!$E$11,1,0) -> 1 | L9: =IF(L$2<Input!$E$11,1,0) -> 1 | M9: =IF(M$2<Input!$E$11,1,0) -> 1 | N9: =IF(N$2<Input!$E$11,1,0) -> 1 | O9: =IF(O$2<Input!$E$11,1,0) -> 1 | P9: =IF(P$2<Input!$E$11,1,0) -> 1 | Q9: =IF(Q$2<Input!$E$11,1,0) -> 1 | R9: =IF(R$2<Input!$E$11,1,0) -> 1
A11: Integrated Financial Statements
A13: Income Statement
A16: Non-distribution Revenue | B16: $0,000s | G16: =SUM(H16:R16) -> 27214.80741 | H16: =H11802 -> 0 | I16: =I11802 -> 348.2192648 | J16: =J11802 -> 1321.315539 | K16: 2079.349935 | L16: 2697.348271 | M16: 3109.953448 | N16: 3398.154054 | O16: 3499.02777 | P16: 3544.80504 | Q16: 3589.073854 | R16: 3627.560232
A17: Non-distribution Cost | B17: $0,000s | G17: =SUM(H17:R17) -> -27214.80741 | H17: =-H$10936+SUMIF(Input!$D$377:$D$406,"Upstream",Input!H$377:H$406)*H$7-H11876 -> 0 | I17: =-I$10936+SUMIF(Input!$D$377:$D$406,"Upstream",Input!I$377:I$406)*I$7-I11876 -> -348.2192648 | J17: =-J$10936+SUMIF(Input!$D$377:$D$406,"Upstream",Input!J$377:J$406)*J$7-J11876 -> -1321.315539 | K17: =-K$10936+SUMIF(Input!$D$377:$D$406,"Upstream",Input!K$377:K$406)*K$7-K11876 -> -2079.349935 | L17: =-L$10936+SUMIF(Input!$D$377:$D$406,"Upstream",Input!L$377:L$406)*L$7-L11876 -> -2697.348271 | M17: =-M$10936+SUMIF(Input!$D$377:$D$406,"Upstream",Input!M$377:M$406)*M$7-M11876 -> -3109.953448 | N17: =-N$10936+SUMIF(Input!$D$377:$D$406,"Upstream",Input!N$377:N$406)*N$7-N11876 -> -3398.154054 | O17: =-O$10936+SUMIF(Input!$D$377:$D$406,"Upstream",Input!O$377:O$406)*O$7-O11876 -> -3499.02777 | P17: =-P$10936+SUMIF(Input!$D$377:$D$406,"Upstream",Input!P$377:P$406)*P$7-P11876 -> -3544.80504 | Q17: =-Q$10936+SUMIF(Input!$D$377:$D$406,"Upstream",Input!Q$377:Q$406)*Q$7-Q11876 -> -3589.073854 | R17: =-R$10936+SUMIF(Input!$D$377:$D$406,"Upstream",Input!R$377:R$406)*R$7-R11876 -> -3627.560232
A18: Net | B18: $0,000s | G18: =SUM(H18:R18) -> 0 | H18: =SUM(H16:H17) -> 0 | I18: =SUM(I16:I17) -> 0 | J18: =SUM(J16:J17) -> 0 | K18: 0 | L18: 0 | M18: 0 | N18: 0 | O18: 0 | P18: 0 | Q18: 0 | R18: 0
A20: Distribution Revenue | B20: $0,000s | G20: =SUM(H20:R20) -> 58140.87366 | H20: =H11795 -> 0 | I20: 584.9040319 | J20: 3033.302957 | K20: 4591.306643 | L20: 5780.195948 | M20: 6601.090908 | N20: 7140.425956 | O20: 7403.229095 | P20: 7541.271323 | Q20: 7673.266953 | R20: =R11795 -> 7791.879846
A21: Distribution O&M | B21: $0,000s | G21: =SUM(H21:R21) -> -18360.28282 | H21: =SUMIF(Input!$D$377:$D$406,"Delivery",Input!H$377:H$406)*H$7 -> 0 | I21: =SUMIF(Input!$D$377:$D$406,"Delivery",Input!I$377:I$406)*I$7 -> -555.3495733 | J21: =SUMIF(Input!$D$377:$D$406,"Delivery",Input!J$377:J$406)*J$7 -> -1442.886221 | K21: =SUMIF(Input!$D$377:$D$406,"Delivery",Input!K$377:K$406)*K$7 -> -1715.428071 | L21: =SUMIF(Input!$D$377:$D$406,"Delivery",Input!L$377:L$406)*L$7 -> -1813.254908 | M21: =SUMIF(Input!$D$377:$D$406,"Delivery",Input!M$377:M$406)*M$7 -> -1894.890929 | N21: =SUMIF(Input!$D$377:$D$406,"Delivery",Input!N$377:N$406)*N$7 -> -2067.255337 | O21: =SUMIF(Input!$D$377:$D$406,"Delivery",Input!O$377:O$406)*O$7 -> -2103.156458 | P21: =SUMIF(Input!$D$377:$D$406,"Delivery",Input!P$377:P$406)*P$7 -> -2136.736822 | Q21: =SUMIF(Input!$D$377:$D$406,"Delivery",Input!Q$377:Q$406)*Q$7 -> -2170.608205 | R21: =SUMIF(Input!$D$377:$D$406,"Delivery",Input!R$377:R$406)*R$7 -> -2460.716292
A22: Property Taxes | B22: $0,000s | G22: =SUM(H22:R22) -> -5613.865073 | H22: =H10664 -> 0 | I22: -331.2186812 | J22: -490.1762393 | K22: -546.7012192 | L22: -565.324383 | M22: -581.5868961 | N22: -590.0554385 | O22: -623.7409517 | P22: -626.2768862 | Q22: -628.7596173 | R22: -630.0247608
A23: EBITDA | B23: $0,000s | G23: =SUM(H23:R23) -> 34166.72577 | H23: =SUM(H18,H20:H22) -> 0 | I23: -301.6642226 | J23: 1100.240496 | K23: 2329.177352 | L23: 3401.616657 | M23: 4124.613083 | N23: 4483.115181 | O23: 4676.331685 | P23: 4778.257615 | Q23: 4873.899131 | R23: 4701.138793
A25: Depreciation | B25: $0,000s | G25: =SUM(H25:R25) -> -16817.15232 | H25: =H9585 -> 0 | I25: -592.4936651 | J25: -1425.358764 | K25: -1709.237786 | L25: -1778.192077 | M25: -1825.98495 | N25: -1860.495451 | O25: -1878.094913 | P25: -1888.061458 | Q25: -1925.205754 | R25: -1934.027504
A26: Increase in IDC | B26: $0,000s | G26: =SUM(H26:R26) -> 958.7426545 | H26: =H7949 -> 0 | I26: 544.2726032 | J26: 279.1436657 | K26: 45.19014708 | L26: 26.76904116 | M26: 23.55803753 | N26: 13.02948026 | O26: 6.16786305 | P26: 5.14231567 | Q26: 12.53068862 | R26: 2.938812267
A27: EBIT | G27: =SUM(H27:R27) -> 18308.3161 | H27: =SUM(H23,H25:H26) -> 0 | I27: =SUM(I23,I25:I26) -> -349.8852845 | J27: -45.97460177 | K27: 665.1297137 | L27: 1650.193621 | M27: 2322.18617 | N27: 2635.64921 | O27: 2804.404635 | P27: 2895.338472 | Q27: 2961.224066 | R27: 2770.050101
A29: Interest | B29: $0,000s | G29: =SUM(H29:R29) -> -12476.89317 | H29: =-H10688 -> 0 | I29: =-I10688 -> -481.6724093 | J29: =-J10688 -> -1166.454747 | K29: -1385.728092 | L29: -1403.08842 | M29: -1401.811571 | N29: -1388.777544 | O29: -1361.036839 | P29: -1326.661679 | Q29: -1296.714822 | R29: -1264.947049
A30: Cash Tax | B30: $0,000s | G30: =SUM(H30:R30) -> 0 | H30: =H10966 -> 0 | I30: 0 | J30: 0 | K30: 0 | L30: 0 | M30: 0 | N30: 0 | O30: 0 | P30: 0 | Q30: 0 | R30: 0
A31: Net Income | B31: $0,000s | G31: =SUM(H31:R31) -> 5831.422931 | H31: =SUM(H27,H29:H30) -> 0 | I31: =SUM(I27,I29:I30) -> -831.5576938 | J31: -1212.429348 | K31: -720.5983778 | L31: 247.1052004 | M31: 920.3745989 | N31: 1246.871666 | O31: 1443.367797 | P31: 1568.676793 | Q31: 1664.509243 | R31: 1505.103052
A33: Balance Sheet
A35: Assets
A36: Cash | B36: $0,000s | H36: =H80 -> 0 | I36: =H36+I80 -> 0 | J36: 0 | K36: 0 | L36: 2.273736754e-11 | M36: 1.818989404e-11 | N36: 2.5920599e-11 | O36: 2.5920599e-11 | P36: 2.5920599e-11 | Q36: 1.955413609e-11 | R36: 2.819433575e-11
A37: NWC | B37: $0,000s | H37: =H10675 -> 0 | I37: 185.2181279 | J37: 302.938572 | K37: 348.2833118 | L37: 413.1058225 | M37: 424.8588685 | N37: 483.460856 | O37: 450.4279209 | P37: 495.7448914 | Q37: 462.5213601 | R37: 545.2238326
A38: CWIP & IDC | B38: $0,000s | H38: =H8357 -> 0 | I38: 0 | J38: 0 | K38: 0 | L38: 0 | M38: 0 | N38: 0 | O38: 0 | P38: 0 | Q38: 0 | R38: 0
A39: PP&E | B39: $0,000s | H39: =H2631+H3449 -> 0 | I39: =I2631+I3449 -> 57313.20011 | J39: =J2631+J3449 -> 80778.90796 | K39: 81547.53155 | L39: 80996.59873 | M39: 80179.87919 | N39: 78613.86928 | O39: 76564.42723 | P39: 74435.3946 | Q39: 72770.81159 | R39: 70446.21788
A40: Sum | B40: $0,000s | H40: =SUM(H36:H39) -> 0 | I40: 57498.41824 | J40: 81081.84653 | K40: 81895.81486 | L40: 81409.70456 | M40: 80604.73806 | N40: 79097.33013 | O40: 77014.85515 | P40: 74931.13949 | Q40: 73233.33295 | R40: 70991.44172
A42: Regulatory Assets
A43: Deferred Revenue | B43: $0,000s | H43: =H10002 -> 0 | I43: 61.4633637 | J43: 477.1610083 | K43: 825.5711225 | L43: 1033.648905 | M43: 1136.78884 | N43: 1126.230758 | O43: 1079.355099 | P43: 1032.853054 | Q43: 986.8378888 | R43: 939.8456084
A44: Sum | B44: $0,000s | H44: =SUM(H43) -> 0 | I44: =SUM(I43) -> 61.4633637 | J44: 477.1610083 | K44: 825.5711225 | L44: 1033.648905 | M44: 1136.78884 | N44: 1126.230758 | O44: 1079.355099 | P44: 1032.853054 | Q44: 986.8378888 | R44: 939.8456084
A46: Liabilities
A47: Contribution from External Fund | B47: $0,000s | H47: =-H5903-H6721 -> 0 | I47: =-I5903-I6721 -> 15657.52098 | J47: 21597.62682 | K47: 21007.54573 | L47: 20417.46464 | M47: 19827.38355 | N47: 19237.30246 | O47: 18647.22137 | P47: 18057.14028 | Q47: 17467.05919 | R47: 16876.9781
A48: ST Operating Debt | B48: $0,000s | H48: =H$10676*H$10043 -> 0 | I48: =I$10676*I$10043 -> 1673.635891 | J48: =J$10676*J$10043 -> 2379.368789 | K48: 2435.530765 | L48: 2439.689597 | M48: 2431.094181 | N48: 2394.401107 | O48: 2334.705351 | P48: 2274.959968 | Q48: 2230.650951 | R48: 2164.578545
A49: LT Debt | B49: $0,000s | H49: =H$10676*H$10044+H10002 -> 0 | I49: =I$10676*I$10044+I10002 -> 25166.00172 | J49: =J$10676*J$10044+J10002 -> 36167.69284 | K49: 37358.5326 | L49: 37628.99286 | M49: 37603.20155 | N49: 37042.24736 | O49: 36099.93537 | P49: 35157.25258 | Q49: 34446.60215 | R49: 33408.52378
A50: Sum | B50: $0,000s | H50: =SUM(H47:H49) -> 0 | I50: 42497.15859 | J50: 60144.68844 | K50: 60801.60909 | L50: 60486.14709 | M50: 59861.67928 | N50: 58673.95093 | O50: 57081.86209 | P50: 55489.35283 | Q50: 54144.31229 | R50: 52450.08042
A52: Equity
A53: Retained Earnings | B53: $0,000s | G53: 0 | H53: =G53+H31+H77 -> 0 | I53: -831.5576938 | J53: -2043.987042 | K53: -2764.58542 | L53: -2517.48022 | M53: -1597.105621 | N53: -350.2339545 | O53: 1093.133842 | P53: 2661.810636 | Q53: 4326.319879 | R53: 5831.422931
A54: Share Capital | B54: $0,000s | H54: =H$10045*H$10676-H53 -> 0 | I54: 15894.28071 | J54: 23458.30614 | K54: 24684.36231 | L54: 24474.68659 | M54: 23476.95325 | N54: 21899.84392 | O54: 19919.21432 | P54: 17812.82908 | Q54: 15749.53868 | R54: 13649.78397
A55: Sum | B55: $0,000s | H55: =SUM(H53:H54) -> 0 | I55: =SUM(I53:I54) -> 15062.72301 | J55: 21414.3191 | K55: 21919.77689 | L55: 21957.20637 | M55: 21879.84763 | N55: 21549.60996 | O55: 21012.34816 | P55: 20474.63972 | Q55: 20075.85855 | R55: 19481.2069
A57: Check | B57: $0,000s | H57: =ABS(H40+H44-H50-H55) -> 0 | I57: =ABS(I40+I44-I50-I55) -> 9.094947018e-12 | J57: 1.818989404e-11 | K57: 1.818989404e-11 | L57: 2.182787284e-11 | M57: 3.274180926e-11 | N57: 4.001776688e-11 | O57: 1.455191523e-11 | P57: 5.09317033e-11 | Q57: 5.09317033e-11 | R57: 4.001776688e-11
A59: Statement of Cash Flows
A61: Cash from Operations
A62: Net Income | B62: $0,000s | G62: =SUM(H62:R62) -> 5831.422931 | H62: =H31 -> 0 | I62: -831.5576938 | J62: -1212.429348 | K62: -720.5983778 | L62: 247.1052004 | M62: 920.3745989 | N62: 1246.871666 | O62: 1443.367797 | P62: 1568.676793 | Q62: 1664.509243 | R62: 1505.103052
A63: add: Depreciation | B63: $0,000s | G63: 16817.15232 | H63: =-H25 -> 0 | I63: 592.4936651 | J63: 1425.358764 | K63: 1709.237786 | L63: 1778.192077 | M63: 1825.98495 | N63: 1860.495451 | O63: 1878.094913 | P63: 1888.061458 | Q63: 1925.205754 | R63: 1934.027504
A64: less: increase in NWC | B64: $0,000s | G64: -545.2238326 | H64: =-H37 -> 0 | I64: =-(I37-H37) -> -185.2181279 | J64: -117.7204441 | K64: -45.34473984 | L64: -64.82251061 | M64: -11.75304609 | N64: -58.60198742 | O64: 33.03293502 | P64: -45.31697041 | Q64: 33.22353123 | R64: -82.70247251
A65: less: increase in IDC | B65: $0,000s | G65: -958.7426545 | H65: =-H7949 -> 0 | I65: -544.2726032 | J65: -279.1436657 | K65: -45.19014708 | L65: -26.76904116 | M65: -23.55803753 | N65: -13.02948026 | O65: -6.16786305 | P65: -5.14231567 | Q65: -12.53068862 | R65: -2.938812267
A66: less: increase in Deferred Revenue | B66: $0,000s | G66: -939.8456084 | H66: =G43-H43 -> 0 | I66: -61.4633637 | J66: -415.6976446 | K66: -348.4101142 | L66: -208.0777826 | M66: -103.1399347 | N66: 10.55808166 | O66: 46.87565922 | P66: 46.50204533 | Q66: 46.01516472 | R66: 46.99228042
A67: Cash from Operations | B67: $0,000s | G67: 20204.76316 | H67: =SUM(H62:H66) -> 0 | I67: =SUM(I62:I66) -> -1030.018123 | J67: -599.632339 | K67: 549.6944066 | L67: 1725.627943 | M67: 2607.908531 | N67: 3046.293731 | O67: 3395.203441 | P67: 3452.781011 | Q67: 3656.423005 | R67: 3400.481552
A69: Cash from Investing
A70: CapEx | B70: $0,000s | G70: =SUM(H70:R70) -> -91427.64945 | H70: =-H$589 -> 0 | I70: =-I$589 -> -57345.6927 | J70: =-J$589 -> -25030.02461 | K70: -3022.752313 | L70: -1790.571315 | M70: -1575.788464 | N70: -871.5371414 | O70: -412.5660903 | P70: -343.9676033 | Q70: -838.1731518 | R70: -196.5760714
A71: External Funding | B71: $0,000s | G71: =SUM(H71:R71) -> 22000 | H71: =-H$3861 -> 0 | I71: =-I$3861 -> 15641.7925 | J71: =-J$3861 -> 6358.207502 | K71: 0 | L71: 0 | M71: 0 | N71: 0 | O71: 0 | P71: 0 | Q71: 0 | R71: 0
A72: Cash from Investing | B72: $0,000s | G72: =SUM(H72:R72) -> -69427.64945 | H72: =SUM(H70:H71) -> 0 | I72: =SUM(I70:I71) -> -41703.9002 | J72: =SUM(J70:J71) -> -18671.8171 | K72: -3022.752313 | L72: -1790.571315 | M72: -1575.788464 | N72: -871.5371414 | O72: -412.5660903 | P72: -343.9676033 | Q72: -838.1731518 | R72: -196.5760714
A74: Cash from Financing
A75: Net Borrowing | B75: $0,000s | G75: =SUM(H75:R75) -> 35573.10232 | H75: =H48-G48+H49-G49 -> 0 | I75: =I48-H48+I49-H49 -> 26839.63761 | J75: =J48-I48+J49-I49 -> 11707.42401 | K75: 1247.001739 | L75: 274.6190878 | M75: -34.38672327 | N75: -597.6472608 | O75: -1002.007752 | P75: -1002.428169 | Q75: -754.9594494 | R75: -1104.150775
A76: Net Equity Injection | B76: $0,000s | G76: =SUM(H76:R76) -> 13649.78397 | H76: =H54-G54 -> 0 | I76: =I54-H54 -> 15894.28071 | J76: =J54-I54 -> 7564.02543 | K76: 1226.056167 | L76: -209.6757162 | M76: -997.733344 | N76: -1577.109329 | O76: -1980.629599 | P76: -2106.385238 | Q76: -2063.290403 | R76: -2099.754705
A77: Dividends | B77: $0,000s | G77: =SUM(H77:R77) -> 0 | H77: 0 | I77: 0 | J77: 0 | K77: 0 | L77: 0 | M77: 0 | N77: 0 | O77: 0 | P77: 0 | Q77: 0 | R77: 0
A78: Cash from Financing | B78: $0,000s | G78: =SUM(H78:R78) -> 49222.88629 | H78: =SUM(H75:H77) -> 0 | I78: 42733.91832 | J78: 19271.44944 | K78: 2473.057906 | L78: 64.94337159 | M78: -1032.120067 | N78: -2174.75659 | O78: -2982.63735 | P78: -3108.813407 | Q78: -2818.249853 | R78: -3203.905481
A80: Net Change in Cash | B80: $0,000s | G80: =SUM(H80:R80) -> 2.819433575e-11 | H80: =H67+H72+H78 -> 0 | I80: 0 | J80: 0 | K80: 0 | L80: 2.273736754e-11 | M80: -4.547473509e-12 | N80: 7.730704965e-12 | O80: 0 | P80: 0 | Q80: -6.366462912e-12 | R80: 8.640199667e-12
A82: Check | B82: $0,000s | H82: =ABS(H36-G36-H80) -> 0 | I82: 0 | J82: 0 | K82: 0 | L82: 0 | M82: 0 | N82: 0 | O82: 0 | P82: 0 | Q82: 0 | R82: 0
A84: Operational Forecast
A86: Volume Forecast by Tiers and Customer Type
A88: Tier 1
A89: Customer Type | C89: Rate Class
A90: =Input!C479 -> Existing Residential | B90: m3 | C90: =Input!D$479 -> Rate 1 - General Firm Service | G90: =SUM(H90:R90) -> 33928092.47 | I90: =Input!I553*Input!I498 -> 431066.5607 | J90: =Input!J553*Input!J498 -> 1581078.047 | K90: =Input!K553*Input!K498 -> 2770641.518 | L90: =Input!L553*Input!L498 -> 3494092.366 | M90: =Input!M553*Input!M498 -> 3964210.253 | N90: =Input!N553*Input!N498 -> 4268109.675 | O90: =Input!O553*Input!O498 -> 4354723.513 | P90: =Input!P553*Input!P498 -> 4354723.513 | Q90: =Input!Q553*Input!Q498 -> 4354723.513 | R90: =Input!R553*Input!R498 -> 4354723.513
A91: =Input!C480 -> New Residential | B91: m3 | C91: =Input!D$480 -> Rate 1 - General Firm Service | G91: 2608454.906 | I91: =Input!I581*Input!I499 -> 22841.9809 | J91: =Input!J581*Input!J499 -> 73988.15553 | K91: =Input!K581*Input!K499 -> 130099.9782 | L91: =Input!L581*Input!L499 -> 185715.236 | M91: =Input!M581*Input!M499 -> 241330.4939 | N91: =Input!N581*Input!N499 -> 297442.3165 | O91: =Input!O581*Input!O499 -> 353554.1392 | P91: =Input!P581*Input!P499 -> 401224.3602 | Q91: =Input!Q581*Input!Q499 -> 439956.4147 | R91: =Input!R581*Input!R499 -> 462301.8308
A92: =Input!C481 -> Small Commercial | B92: m3 | C92: =Input!D$481 -> Rate 1 - General Firm Service | G92: 3187733.91 | I92: =Input!I609*Input!I500 -> 32949.70214 | J92: =Input!J609*Input!J500 -> 119218.0132 | K92: =Input!K609*Input!K500 -> 215071.6921 | L92: =Input!L609*Input!L500 -> 301340.0032 | M92: =Input!M609*Input!M500 -> 378022.9463 | N92: =Input!N609*Input!N500 -> 420558.0164 | O92: =Input!O609*Input!O500 -> 430143.3843 | P92: =Input!P609*Input!P500 -> 430143.3843 | Q92: =Input!Q609*Input!Q500 -> 430143.3843 | R92: =Input!R609*Input!R500 -> 430143.3843
A93: =Input!C482 -> Small Agricultural | B93: m3 | C93: =Input!D$482 -> Rate 1 - General Firm Service | G93: 14384.82947 | I93: =Input!I637*Input!I501 -> 0 | J93: =Input!J637*Input!J501 -> 0 | K93: =Input!K637*Input!K501 -> 0 | L93: =Input!L637*Input!L501 -> 599.3678945 | M93: =Input!M637*Input!M501 -> 1798.103683 | N93: =Input!N637*Input!N501 -> 2397.471578 | O93: =Input!O637*Input!O501 -> 2397.471578 | P93: =Input!P637*Input!P501 -> 2397.471578 | Q93: =Input!Q637*Input!Q501 -> 2397.471578 | R93: =Input!R637*Input!R501 -> 2397.471578
A94: =Input!C483 -> Medium Commercial | B94: m3 | C94: =Input!D$483 -> Rate 6 - Large Volume General Firm Service | G94: 5077992.134 | I94: =Input!I665*Input!I502 -> 49157.71669 | J94: =Input!J665*Input!J502 -> 181883.5518 | K94: =Input!K665*Input!K502 -> 344104.0168 | L94: =Input!L665*Input!L502 -> 501408.7102 | M94: =Input!M665*Input!M502 -> 619387.2303 | N94: =Input!N665*Input!N502 -> 668544.947 | O94: =Input!O665*Input!O502 -> 678376.4903 | P94: =Input!P665*Input!P502 -> 678376.4903 | Q94: =Input!Q665*Input!Q502 -> 678376.4903 | R94: =Input!R665*Input!R502 -> 678376.4903
A95: =Input!C484 -> Large Commercial | B95: m3 | C95: =Input!D$484 -> Rate 6 - Large Volume General Firm Service | G95: 1657718.655 | I95: =Input!I693*Input!I503 -> 17572.98928 | J95: =Input!J693*Input!J503 -> 58576.63094 | K95: =Input!K693*Input!K503 -> 117153.2619 | L95: =Input!L693*Input!L503 -> 169872.2297 | M95: =Input!M693*Input!M503 -> 193302.8821 | N95: =Input!N693*Input!N503 -> 210875.8714 | O95: =Input!O693*Input!O503 -> 222591.1976 | P95: =Input!P693*Input!P503 -> 222591.1976 | Q95: =Input!Q693*Input!Q503 -> 222591.1976 | R95: =Input!R693*Input!R503 -> 222591.1976
A96: =Input!C485 -> Farm 1 | B96: m3 | C96: =Input!D$485 -> Rate 6 - Large Volume General Firm Service | G96: 78511.86691 | I96: =Input!I721*Input!I504 -> 0 | J96: =Input!J721*Input!J504 -> 4618.345112 | K96: =Input!K721*Input!K504 -> 9236.690224 | L96: =Input!L721*Input!L504 -> 9236.690224 | M96: =Input!M721*Input!M504 -> 9236.690224 | N96: =Input!N721*Input!N504 -> 9236.690224 | O96: =Input!O721*Input!O504 -> 9236.690224 | P96: =Input!P721*Input!P504 -> 9236.690224 | Q96: =Input!Q721*Input!Q504 -> 9236.690224 | R96: =Input!R721*Input!R504 -> 9236.690224
A97: =Input!C486 -> Farm 2 | B97: m3 | C97: =Input!D$486 -> Rate 6 - Large Volume General Firm Service | G97: 78000 | I97: =Input!I749*Input!I505 -> 0 | J97: =Input!J749*Input!J505 -> 0 | K97: =Input!K749*Input!K505 -> 0 | L97: =Input!L749*Input!L505 -> 6000 | M97: =Input!M749*Input!M505 -> 12000 | N97: =Input!N749*Input!N505 -> 12000 | O97: =Input!O749*Input!O505 -> 12000 | P97: =Input!P749*Input!P505 -> 12000 | Q97: =Input!Q749*Input!Q505 -> 12000 | R97: =Input!R749*Input!R505 -> 12000
A98: =Input!C487 -> Farm 3 | B98: m3 | C98: =Input!D$487 -> Rate 6 - Large Volume General Firm Service | G98: 87728.22962 | I98: =Input!I777*Input!I506 -> 0 | J98: =Input!J777*Input!J506 -> 0 | K98: =Input!K777*Input!K506 -> 5848.548641 | L98: =Input!L777*Input!L506 -> 11697.09728 | M98: =Input!M777*Input!M506 -> 11697.09728 | N98: =Input!N777*Input!N506 -> 11697.09728 | O98: =Input!O777*Input!O506 -> 11697.09728 | P98: =Input!P777*Input!P506 -> 11697.09728 | Q98: =Input!Q777*Input!Q506 -> 11697.09728 | R98: =Input!R777*Input!R506 -> 11697.09728
A99: =Input!C488 -> Dryer 1 | B99: m3 | C99: =Input!D$488 -> Rate 11 - Large Volume Seasonal Service | G99: 0 | I99: =Input!I805*Input!I507 -> 0 | J99: =Input!J805*Input!J507 -> 0 | K99: =Input!K805*Input!K507 -> 0 | L99: =Input!L805*Input!L507 -> 0 | M99: =Input!M805*Input!M507 -> 0 | N99: =Input!N805*Input!N507 -> 0 | O99: =Input!O805*Input!O507 -> 0 | P99: =Input!P805*Input!P507 -> 0 | Q99: =Input!Q805*Input!Q507 -> 0 | R99: =Input!R805*Input!R507 -> 0
A100: =Input!C489 -> Dryer 2 | B100: m3 | C100: =Input!D$489 -> Rate 11 - Large Volume Seasonal Service | G100: 0 | I100: =Input!I833*Input!I508 -> 0 | J100: =Input!J833*Input!J508 -> 0 | K100: =Input!K833*Input!K508 -> 0 | L100: =Input!L833*Input!L508 -> 0 | M100: =Input!M833*Input!M508 -> 0 | N100: =Input!N833*Input!N508 -> 0 | O100: =Input!O833*Input!O508 -> 0 | P100: =Input!P833*Input!P508 -> 0 | Q100: =Input!Q833*Input!Q508 -> 0 | R100: =Input!R833*Input!R508 -> 0
A101: =Input!C490 -> Dryer 3 | B101: m3 | C101: =Input!D$490 -> Rate 11 - Large Volume Seasonal Service | G101: 0 | I101: =Input!I861*Input!I509 -> 0 | J101: =Input!J861*Input!J509 -> 0 | K101: =Input!K861*Input!K509 -> 0 | L101: =Input!L861*Input!L509 -> 0 | M101: =Input!M861*Input!M509 -> 0 | N101: =Input!N861*Input!N509 -> 0 | O101: =Input!O861*Input!O509 -> 0 | P101: =Input!P861*Input!P509 -> 0 | Q101: =Input!Q861*Input!Q509 -> 0 | R101: =Input!R861*Input!R509 -> 0
A102: =Input!C491 -> Dryer 4 | B102: m3 | C102: =Input!D$491 -> Rate 11 - Large Volume Seasonal Service | G102: 0 | I102: =Input!I889*Input!I510 -> 0 | J102: =Input!J889*Input!J510 -> 0 | K102: =Input!K889*Input!K510 -> 0 | L102: =Input!L889*Input!L510 -> 0 | M102: =Input!M889*Input!M510 -> 0 | N102: =Input!N889*Input!N510 -> 0 | O102: =Input!O889*Input!O510 -> 0 | P102: =Input!P889*Input!P510 -> 0 | Q102: =Input!Q889*Input!Q510 -> 0 | R102: =Input!R889*Input!R510 -> 0
A103: =Input!C492 -> Dryer 5 | B103: m3 | C103: =Input!D$492 -> Rate 11 - Large Volume Seasonal Service | G103: 0 | I103: =Input!I917*Input!I511 -> 0 | J103: =Input!J917*Input!J511 -> 0 | K103: =Input!K917*Input!K511 -> 0 | L103: =Input!L917*Input!L511 -> 0 | M103: =Input!M917*Input!M511 -> 0 | N103: =Input!N917*Input!N511 -> 0 | O103: =Input!O917*Input!O511 -> 0 | P103: =Input!P917*Input!P511 -> 0 | Q103: =Input!Q917*Input!Q511 -> 0 | R103: =Input!R917*Input!R511 -> 0
A104: =Input!C493 -> Industrial 1 | B104: m3 | C104: =Input!D$493 -> Rate 16 - Contracted Firm Service | G104: 0 | I104: =Input!I945*Input!I512 -> 0 | J104: =Input!J945*Input!J512 -> 0 | K104: =Input!K945*Input!K512 -> 0 | L104: =Input!L945*Input!L512 -> 0 | M104: =Input!M945*Input!M512 -> 0 | N104: =Input!N945*Input!N512 -> 0 | O104: =Input!O945*Input!O512 -> 0 | P104: =Input!P945*Input!P512 -> 0 | Q104: =Input!Q945*Input!Q512 -> 0 | R104: =Input!R945*Input!R512 -> 0
A105: =Input!C494 -> Industrial 2 | B105: m3 | C105: =Input!D$494 -> Rate 16 - Contracted Firm Service | G105: 0 | I105: =Input!I973*Input!I513 -> 0 | J105: =Input!J973*Input!J513 -> 0 | K105: =Input!K973*Input!K513 -> 0 | L105: =Input!L973*Input!L513 -> 0 | M105: =Input!M973*Input!M513 -> 0 | N105: =Input!N973*Input!N513 -> 0 | O105: =Input!O973*Input!O513 -> 0 | P105: =Input!P973*Input!P513 -> 0 | Q105: =Input!Q973*Input!Q513 -> 0 | R105: =Input!R973*Input!R513 -> 0
A107: Tier 2
A108: Customer Type | C108: Rate Class
A109: =Input!C479 -> Existing Residential | B109: m3 | C109: =Input!D$479 -> Rate 1 - General Firm Service | G109: =SUM(H109:R109) -> 38887549.03 | I109: =Input!I554*Input!I498 -> 494077.9393 | J109: =Input!J554*Input!J498 -> 1812192.953 | K109: =Input!K554*Input!K498 -> 3175641.482 | L109: =Input!L554*Input!L498 -> 4004843.134 | M109: =Input!M554*Input!M498 -> 4543680.747 | N109: =Input!N554*Input!N498 -> 4892002.825 | O109: =Input!O554*Input!O498 -> 4991277.487 | P109: =Input!P554*Input!P498 -> 4991277.487 | Q109: =Input!Q554*Input!Q498 -> 4991277.487 | R109: =Input!R554*Input!R498 -> 4991277.487
A110: =Input!C480 -> New Residential | B110: m3 | C110: =Input!D$480 -> Rate 1 - General Firm Service | G110: 2817894.094 | I110: =Input!I582*Input!I499 -> 24676.0191 | J110: =Input!J582*Input!J499 -> 79928.84447 | K110: =Input!K582*Input!K499 -> 140546.0218 | L110: =Input!L582*Input!L499 -> 200626.764 | M110: =Input!M582*Input!M499 -> 260707.5061 | N110: =Input!N582*Input!N499 -> 321324.6835 | O110: =Input!O582*Input!O499 -> 381941.8608 | P110: =Input!P582*Input!P499 -> 433439.6398 | Q110: =Input!Q582*Input!Q499 -> 475281.5853 | R110: =Input!R582*Input!R499 -> 499421.1692
A111: =Input!C481 -> Small Commercial | B111: m3 | C111: =Input!D$481 -> Rate 1 - General Firm Service | G111: 6584748.389 | I111: =Input!I610*Input!I500 -> 68062.61255 | J111: =Input!J610*Input!J500 -> 246262.9072 | K111: =Input!K610*Input!K500 -> 444263.2347 | L111: =Input!L610*Input!L500 -> 622463.5293 | M111: =Input!M610*Input!M500 -> 780863.7913 | N111: =Input!N610*Input!N500 -> 868726.4366 | O111: =Input!O610*Input!O500 -> 888526.4693 | P111: =Input!P610*Input!P500 -> 888526.4693 | Q111: =Input!Q610*Input!Q500 -> 888526.4693 | R111: =Input!R610*Input!R500 -> 888526.4693
A112: =Input!C482 -> Small Agricultural | B112: m3 | C112: =Input!D$482 -> Rate 1 - General Firm Service | G112: 29808.78581 | I112: =Input!I638*Input!I501 -> 0 | J112: =Input!J638*Input!J501 -> 0 | K112: =Input!K638*Input!K501 -> 0 | L112: =Input!L638*Input!L501 -> 1242.032742 | M112: =Input!M638*Input!M501 -> 3726.098226 | N112: =Input!N638*Input!N501 -> 4968.130969 | O112: =Input!O638*Input!O501 -> 4968.130969 | P112: =Input!P638*Input!P501 -> 4968.130969 | Q112: =Input!Q638*Input!Q501 -> 4968.130969 | R112: =Input!R638*Input!R501 -> 4968.130969
A113: =Input!C483 -> Medium Commercial | B113: m3 | C113: =Input!D$483 -> Rate 6 - Large Volume General Firm Service | G113: 8832902.366 | I113: =Input!I666*Input!I502 -> 85507.28331 | J113: =Input!J666*Input!J502 -> 316376.9482 | K113: =Input!K666*Input!K502 -> 598550.9832 | L113: =Input!L666*Input!L502 -> 872174.2898 | M113: =Input!M666*Input!M502 -> 1077391.77 | N113: =Input!N666*Input!N502 -> 1162899.053 | O113: =Input!O666*Input!O502 -> 1180000.51 | P113: =Input!P666*Input!P502 -> 1180000.51 | Q113: =Input!Q666*Input!Q502 -> 1180000.51 | R113: =Input!R666*Input!R502 -> 1180000.51
A114: =Input!C484 -> Large Commercial | B114: m3 | C114: =Input!D$484 -> Rate 6 - Large Volume General Firm Service | G114: 5772169.656 | I114: =Input!I694*Input!I503 -> 61189.07763 | J114: =Input!J694*Input!J503 -> 203963.5921 | K114: =Input!K694*Input!K503 -> 407927.1842 | L114: =Input!L694*Input!L503 -> 591494.4171 | M114: =Input!M694*Input!M503 -> 673079.8539 | N114: =Input!N694*Input!N503 -> 734268.9315 | O114: =Input!O694*Input!O503 -> 775061.65 | P114: =Input!P694*Input!P503 -> 775061.65 | Q114: =Input!Q694*Input!Q503 -> 775061.65 | R114: =Input!R694*Input!R503 -> 775061.65
A115: =Input!C485 -> Farm 1 | B115: m3 | C115: =Input!D$485 -> Rate 6 - Large Volume General Firm Service | G115: 101226.8057 | I115: =Input!I722*Input!I504 -> 0 | J115: =Input!J722*Input!J504 -> 5954.517985 | K115: =Input!K722*Input!K504 -> 11909.03597 | L115: =Input!L722*Input!L504 -> 11909.03597 | M115: =Input!M722*Input!M504 -> 11909.03597 | N115: =Input!N722*Input!N504 -> 11909.03597 | O115: =Input!O722*Input!O504 -> 11909.03597 | P115: =Input!P722*Input!P504 -> 11909.03597 | Q115: =Input!Q722*Input!Q504 -> 11909.03597 | R115: =Input!R722*Input!R504 -> 11909.03597
A116: =Input!C486 -> Farm 2 | B116: m3 | C116: =Input!D$486 -> Rate 6 - Large Volume General Firm Service | G116: 357225.5785 | I116: =Input!I750*Input!I505 -> 0 | J116: =Input!J750*Input!J505 -> 0 | K116: =Input!K750*Input!K505 -> 0 | L116: =Input!L750*Input!L505 -> 27478.89065 | M116: =Input!M750*Input!M505 -> 54957.78131 | N116: =Input!N750*Input!N505 -> 54957.78131 | O116: =Input!O750*Input!O505 -> 54957.78131 | P116: =Input!P750*Input!P505 -> 54957.78131 | Q116: =Input!Q750*Input!Q505 -> 54957.78131 | R116: =Input!R750*Input!R505 -> 54957.78131
A117: =Input!C487 -> Farm 3 | B117: m3 | C117: =Input!D$487 -> Rate 6 - Large Volume General Firm Service | G117: 302735.8783 | I117: =Input!I778*Input!I506 -> 0 | J117: =Input!J778*Input!J506 -> 0 | K117: =Input!K778*Input!K506 -> 20182.39188 | L117: =Input!L778*Input!L506 -> 40364.78377 | M117: =Input!M778*Input!M506 -> 40364.78377 | N117: =Input!N778*Input!N506 -> 40364.78377 | O117: =Input!O778*Input!O506 -> 40364.78377 | P117: =Input!P778*Input!P506 -> 40364.78377 | Q117: =Input!Q778*Input!Q506 -> 40364.78377 | R117: =Input!R778*Input!R506 -> 40364.78377
A118: =Input!C488 -> Dryer 1 | B118: m3 | C118: =Input!D$488 -> Rate 11 - Large Volume Seasonal Service | G118: 0 | I118: =Input!I806*Input!I507 -> 0 | J118: =Input!J806*Input!J507 -> 0 | K118: =Input!K806*Input!K507 -> 0 | L118: =Input!L806*Input!L507 -> 0 | M118: =Input!M806*Input!M507 -> 0 | N118: =Input!N806*Input!N507 -> 0 | O118: =Input!O806*Input!O507 -> 0 | P118: =Input!P806*Input!P507 -> 0 | Q118: =Input!Q806*Input!Q507 -> 0 | R118: =Input!R806*Input!R507 -> 0
A119: =Input!C489 -> Dryer 2 | B119: m3 | C119: =Input!D$489 -> Rate 11 - Large Volume Seasonal Service | G119: 0 | I119: =Input!I834*Input!I508 -> 0 | J119: =Input!J834*Input!J508 -> 0 | K119: =Input!K834*Input!K508 -> 0 | L119: =Input!L834*Input!L508 -> 0 | M119: =Input!M834*Input!M508 -> 0 | N119: =Input!N834*Input!N508 -> 0 | O119: =Input!O834*Input!O508 -> 0 | P119: =Input!P834*Input!P508 -> 0 | Q119: =Input!Q834*Input!Q508 -> 0 | R119: =Input!R834*Input!R508 -> 0
A120: =Input!C490 -> Dryer 3 | B120: m3 | C120: =Input!D$490 -> Rate 11 - Large Volume Seasonal Service | G120: 0 | I120: =Input!I862*Input!I509 -> 0 | J120: =Input!J862*Input!J509 -> 0 | K120: =Input!K862*Input!K509 -> 0 | L120: =Input!L862*Input!L509 -> 0 | M120: =Input!M862*Input!M509 -> 0 | N120: =Input!N862*Input!N509 -> 0 | O120: =Input!O862*Input!O509 -> 0 | P120: =Input!P862*Input!P509 -> 0 | Q120: =Input!Q862*Input!Q509 -> 0 | R120: =Input!R862*Input!R509 -> 0
A121: =Input!C491 -> Dryer 4 | B121: m3 | C121: =Input!D$491 -> Rate 11 - Large Volume Seasonal Service | G121: 0 | I121: =Input!I890*Input!I510 -> 0 | J121: =Input!J890*Input!J510 -> 0 | K121: =Input!K890*Input!K510 -> 0 | L121: =Input!L890*Input!L510 -> 0 | M121: =Input!M890*Input!M510 -> 0 | N121: =Input!N890*Input!N510 -> 0 | O121: =Input!O890*Input!O510 -> 0 | P121: =Input!P890*Input!P510 -> 0 | Q121: =Input!Q890*Input!Q510 -> 0 | R121: =Input!R890*Input!R510 -> 0
A122: =Input!C492 -> Dryer 5 | B122: m3 | C122: =Input!D$492 -> Rate 11 - Large Volume Seasonal Service | G122: 0 | I122: =Input!I918*Input!I511 -> 0 | J122: =Input!J918*Input!J511 -> 0 | K122: =Input!K918*Input!K511 -> 0 | L122: =Input!L918*Input!L511 -> 0 | M122: =Input!M918*Input!M511 -> 0 | N122: =Input!N918*Input!N511 -> 0 | O122: =Input!O918*Input!O511 -> 0 | P122: =Input!P918*Input!P511 -> 0 | Q122: =Input!Q918*Input!Q511 -> 0 | R122: =Input!R918*Input!R511 -> 0
A123: =Input!C493 -> Industrial 1 | B123: m3 | C123: =Input!D$493 -> Rate 16 - Contracted Firm Service | G123: 0 | I123: =Input!I946*Input!I512 -> 0 | J123: =Input!J946*Input!J512 -> 0 | K123: =Input!K946*Input!K512 -> 0 | L123: =Input!L946*Input!L512 -> 0 | M123: =Input!M946*Input!M512 -> 0 | N123: =Input!N946*Input!N512 -> 0 | O123: =Input!O946*Input!O512 -> 0 | P123: =Input!P946*Input!P512 -> 0 | Q123: =Input!Q946*Input!Q512 -> 0 | R123: =Input!R946*Input!R512 -> 0
A124: =Input!C494 -> Industrial 2 | B124: m3 | C124: =Input!D$494 -> Rate 16 - Contracted Firm Service | G124: 0 | I124: =Input!I974*Input!I513 -> 0 | J124: =Input!J974*Input!J513 -> 0 | K124: =Input!K974*Input!K513 -> 0 | L124: =Input!L974*Input!L513 -> 0 | M124: =Input!M974*Input!M513 -> 0 | N124: =Input!N974*Input!N513 -> 0 | O124: =Input!O974*Input!O513 -> 0 | P124: =Input!P974*Input!P513 -> 0 | Q124: =Input!Q974*Input!Q513 -> 0 | R124: =Input!R974*Input!R513 -> 0
A126: Tier 3
A127: Customer Type | C127: Rate Class
A128: =Input!C479 -> Existing Residential | B128: m3 | C128: =Input!D$479 -> Rate 1 - General Firm Service | G128: =SUM(H128:R128) -> 0 | I128: =Input!I555*Input!I498 -> 0 | J128: =Input!J555*Input!J498 -> 0 | K128: =Input!K555*Input!K498 -> 0 | L128: =Input!L555*Input!L498 -> 0 | M128: =Input!M555*Input!M498 -> 0 | N128: =Input!N555*Input!N498 -> 0 | O128: =Input!O555*Input!O498 -> 0 | P128: =Input!P555*Input!P498 -> 0 | Q128: =Input!Q555*Input!Q498 -> 0 | R128: =Input!R555*Input!R498 -> 0
A129: =Input!C480 -> New Residential | B129: m3 | C129: =Input!D$480 -> Rate 1 - General Firm Service | G129: 0 | I129: =Input!I583*Input!I499 -> 0 | J129: =Input!J583*Input!J499 -> 0 | K129: =Input!K583*Input!K499 -> 0 | L129: =Input!L583*Input!L499 -> 0 | M129: =Input!M583*Input!M499 -> 0 | N129: =Input!N583*Input!N499 -> 0 | O129: =Input!O583*Input!O499 -> 0 | P129: =Input!P583*Input!P499 -> 0 | Q129: =Input!Q583*Input!Q499 -> 0 | R129: =Input!R583*Input!R499 -> 0
A130: =Input!C481 -> Small Commercial | B130: m3 | C130: =Input!D$481 -> Rate 1 - General Firm Service | G130: 2713244.201 | I130: =Input!I611*Input!I500 -> 28045.18531 | J130: =Input!J611*Input!J500 -> 101472.5796 | K130: =Input!K611*Input!K500 -> 183058.5732 | L130: =Input!L611*Input!L500 -> 256485.9675 | M130: =Input!M611*Input!M500 -> 321754.7624 | N130: =Input!N611*Input!N500 -> 357958.5471 | O130: =Input!O611*Input!O500 -> 366117.1464 | P130: =Input!P611*Input!P500 -> 366117.1464 | Q130: =Input!Q611*Input!Q500 -> 366117.1464 | R130: =Input!R611*Input!R500 -> 366117.1464
A131: =Input!C482 -> Small Agricultural | B131: m3 | C131: =Input!D$482 -> Rate 1 - General Firm Service | G131: 12446.38472 | I131: =Input!I639*Input!I501 -> 0 | J131: =Input!J639*Input!J501 -> 0 | K131: =Input!K639*Input!K501 -> 0 | L131: =Input!L639*Input!L501 -> 518.5993633 | M131: =Input!M639*Input!M501 -> 1555.79809 | N131: =Input!N639*Input!N501 -> 2074.397453 | O131: =Input!O639*Input!O501 -> 2074.397453 | P131: =Input!P639*Input!P501 -> 2074.397453 | Q131: =Input!Q639*Input!Q501 -> 2074.397453 | R131: =Input!R639*Input!R501 -> 2074.397453
A132: =Input!C483 -> Medium Commercial | B132: m3 | C132: =Input!D$483 -> Rate 6 - Large Volume General Firm Service | G132: 0 | I132: =Input!I667*Input!I502 -> 0 | J132: =Input!J667*Input!J502 -> 0 | K132: =Input!K667*Input!K502 -> 0 | L132: =Input!L667*Input!L502 -> 0 | M132: =Input!M667*Input!M502 -> 0 | N132: =Input!N667*Input!N502 -> 0 | O132: =Input!O667*Input!O502 -> 0 | P132: =Input!P667*Input!P502 -> 0 | Q132: =Input!Q667*Input!Q502 -> 0 | R132: =Input!R667*Input!R502 -> 0
A133: =Input!C484 -> Large Commercial | B133: m3 | C133: =Input!D$484 -> Rate 6 - Large Volume General Firm Service | G133: 3279539.188 | I133: =Input!I695*Input!I503 -> 34765.43309 | J133: =Input!J695*Input!J503 -> 115884.777 | K133: =Input!K695*Input!K503 -> 231769.5539 | L133: =Input!L695*Input!L503 -> 336065.8532 | M133: =Input!M695*Input!M503 -> 382419.764 | N133: =Input!N695*Input!N503 -> 417185.1971 | O133: =Input!O695*Input!O503 -> 440362.1525 | P133: =Input!P695*Input!P503 -> 440362.1525 | Q133: =Input!Q695*Input!Q503 -> 440362.1525 | R133: =Input!R695*Input!R503 -> 440362.1525
A134: =Input!C485 -> Farm 1 | B134: m3 | C134: =Input!D$485 -> Rate 6 - Large Volume General Firm Service | G134: 0 | I134: =Input!I723*Input!I504 -> 0 | J134: =Input!J723*Input!J504 -> 0 | K134: =Input!K723*Input!K504 -> 0 | L134: =Input!L723*Input!L504 -> 0 | M134: =Input!M723*Input!M504 -> 0 | N134: =Input!N723*Input!N504 -> 0 | O134: =Input!O723*Input!O504 -> 0 | P134: =Input!P723*Input!P504 -> 0 | Q134: =Input!Q723*Input!Q504 -> 0 | R134: =Input!R723*Input!R504 -> 0
A135: =Input!C486 -> Farm 2 | B135: m3 | C135: =Input!D$486 -> Rate 6 - Large Volume General Firm Service | G135: 664352.1837 | I135: =Input!I751*Input!I505 -> 0 | J135: =Input!J751*Input!J505 -> 0 | K135: =Input!K751*Input!K505 -> 0 | L135: =Input!L751*Input!L505 -> 51104.01413 | M135: =Input!M751*Input!M505 -> 102208.0283 | N135: =Input!N751*Input!N505 -> 102208.0283 | O135: =Input!O751*Input!O505 -> 102208.0283 | P135: =Input!P751*Input!P505 -> 102208.0283 | Q135: =Input!Q751*Input!Q505 -> 102208.0283 | R135: =Input!R751*Input!R505 -> 102208.0283
A136: =Input!C487 -> Farm 3 | B136: m3 | C136: =Input!D$487 -> Rate 6 - Large Volume General Firm Service | G136: 162708.0894 | I136: =Input!I779*Input!I506 -> 0 | J136: =Input!J779*Input!J506 -> 0 | K136: =Input!K779*Input!K506 -> 10847.20596 | L136: =Input!L779*Input!L506 -> 21694.41192 | M136: =Input!M779*Input!M506 -> 21694.41192 | N136: =Input!N779*Input!N506 -> 21694.41192 | O136: =Input!O779*Input!O506 -> 21694.41192 | P136: =Input!P779*Input!P506 -> 21694.41192 | Q136: =Input!Q779*Input!Q506 -> 21694.41192 | R136: =Input!R779*Input!R506 -> 21694.41192
A137: =Input!C488 -> Dryer 1 | B137: m3 | C137: =Input!D$488 -> Rate 11 - Large Volume Seasonal Service | G137: 3214150.382 | I137: =Input!I807*Input!I507 -> 169165.8096 | J137: =Input!J807*Input!J507 -> 338331.6191 | K137: =Input!K807*Input!K507 -> 338331.6191 | L137: =Input!L807*Input!L507 -> 338331.6191 | M137: =Input!M807*Input!M507 -> 338331.6191 | N137: =Input!N807*Input!N507 -> 338331.6191 | O137: =Input!O807*Input!O507 -> 338331.6191 | P137: =Input!P807*Input!P507 -> 338331.6191 | Q137: =Input!Q807*Input!Q507 -> 338331.6191 | R137: =Input!R807*Input!R507 -> 338331.6191
A138: =Input!C489 -> Dryer 2 | B138: m3 | C138: =Input!D$489 -> Rate 11 - Large Volume Seasonal Service | G138: 2791235.858 | I138: =Input!I835*Input!I508 -> 0 | J138: =Input!J835*Input!J508 -> 0 | K138: =Input!K835*Input!K508 -> 186082.3905 | L138: =Input!L835*Input!L508 -> 372164.781 | M138: =Input!M835*Input!M508 -> 372164.781 | N138: =Input!N835*Input!N508 -> 372164.781 | O138: =Input!O835*Input!O508 -> 372164.781 | P138: =Input!P835*Input!P508 -> 372164.781 | Q138: =Input!Q835*Input!Q508 -> 372164.781 | R138: =Input!R835*Input!R508 -> 372164.781
A139: =Input!C490 -> Dryer 3 | B139: m3 | C139: =Input!D$490 -> Rate 11 - Large Volume Seasonal Service | G139: 761246.143 | I139: =Input!I863*Input!I509 -> 0 | J139: =Input!J863*Input!J509 -> 0 | K139: =Input!K863*Input!K509 -> 50749.74287 | L139: =Input!L863*Input!L509 -> 101499.4857 | M139: =Input!M863*Input!M509 -> 101499.4857 | N139: =Input!N863*Input!N509 -> 101499.4857 | O139: =Input!O863*Input!O509 -> 101499.4857 | P139: =Input!P863*Input!P509 -> 101499.4857 | Q139: =Input!Q863*Input!Q509 -> 101499.4857 | R139: =Input!R863*Input!R509 -> 101499.4857
A140: =Input!C491 -> Dryer 4 | B140: m3 | C140: =Input!D$491 -> Rate 11 - Large Volume Seasonal Service | G140: 1319493.315 | I140: =Input!I891*Input!I510 -> 0 | J140: =Input!J891*Input!J510 -> 0 | K140: =Input!K891*Input!K510 -> 0 | L140: =Input!L891*Input!L510 -> 101499.4857 | M140: =Input!M891*Input!M510 -> 202998.9715 | N140: =Input!N891*Input!N510 -> 202998.9715 | O140: =Input!O891*Input!O510 -> 202998.9715 | P140: =Input!P891*Input!P510 -> 202998.9715 | Q140: =Input!Q891*Input!Q510 -> 202998.9715 | R140: =Input!R891*Input!R510 -> 202998.9715
A141: =Input!C492 -> Dryer 5 | B141: m3 | C141: =Input!D$492 -> Rate 11 - Large Volume Seasonal Service | G141: 2537487.143 | I141: =Input!I919*Input!I511 -> 0 | J141: =Input!J919*Input!J511 -> 0 | K141: =Input!K919*Input!K511 -> 169165.8096 | L141: =Input!L919*Input!L511 -> 338331.6191 | M141: =Input!M919*Input!M511 -> 338331.6191 | N141: =Input!N919*Input!N511 -> 338331.6191 | O141: =Input!O919*Input!O511 -> 338331.6191 | P141: =Input!P919*Input!P511 -> 338331.6191 | Q141: =Input!Q919*Input!Q511 -> 338331.6191 | R141: =Input!R919*Input!R511 -> 338331.6191
A142: =Input!C493 -> Industrial 1 | B142: m3 | C142: =Input!D$493 -> Rate 16 - Contracted Firm Service | G142: 145123585.2 | I142: =Input!I947*Input!I512 -> 2636388.167 | J142: =Input!J947*Input!J512 -> 15861997 | K142: =Input!K947*Input!K512 -> 15835779 | L142: =Input!L947*Input!L512 -> 15818329 | M142: =Input!M947*Input!M512 -> 15818329 | N142: =Input!N947*Input!N512 -> 15818329 | O142: =Input!O947*Input!O512 -> 15861997 | P142: =Input!P947*Input!P512 -> 15835779 | Q142: =Input!Q947*Input!Q512 -> 15818329 | R142: =Input!R947*Input!R512 -> 15818329
A143: =Input!C494 -> Industrial 2 | B143: m3 | C143: =Input!D$494 -> Rate 16 - Contracted Firm Service | G143: 69202375 | I143: =Input!I975*Input!I513 -> 1258225 | J143: =Input!J975*Input!J513 -> 7549350 | K143: =Input!K975*Input!K513 -> 7549350 | L143: =Input!L975*Input!L513 -> 7549350 | M143: =Input!M975*Input!M513 -> 7549350 | N143: =Input!N975*Input!N513 -> 7549350 | O143: =Input!O975*Input!O513 -> 7549350 | P143: =Input!P975*Input!P513 -> 7549350 | Q143: =Input!Q975*Input!Q513 -> 7549350 | R143: =Input!R975*Input!R513 -> 7549350
A145: Volume Forecast by Tiers and Rate Class
A147: Tier 1
A148: =Input!C$517 -> Rate 1 - General Firm Service | B148: m3 | G148: =SUM(H148:R148) -> 39738666.12 | I148: =SUMIF($C$90:$C$105,$A148,I$90:I$105) -> 486858.2437 | J148: 1774284.216 | K148: 3115813.188 | L148: 3981746.973 | M148: 4585361.797 | N148: 4988507.479 | O148: 5140818.508 | P148: 5188488.729 | Q148: 5227220.784 | R148: 5249566.2
A149: =Input!C$518 -> Rate 6 - Large Volume General Firm Service | B149: m3 | G149: =SUM(H149:R149) -> 6979950.886 | I149: 66730.70597 | J149: 245078.5278 | K149: 476342.5176 | L149: 698214.7275 | M149: 845623.8999 | N149: 912354.6059 | O149: 933901.4754 | P149: 933901.4754 | Q149: 933901.4754 | R149: 933901.4754
A150: =Input!C$519 -> Rate 11 - Large Volume Seasonal Service | B150: m3 | G150: =SUM(H150:R150) -> 0 | I150: 0 | J150: 0 | K150: 0 | L150: 0 | M150: 0 | N150: 0 | O150: 0 | P150: 0 | Q150: 0 | R150: 0
A151: =Input!C$520 -> Rate 16 - Contracted Firm Service | B151: m3 | G151: =SUM(H151:R151) -> 0 | I151: 0 | J151: 0 | K151: 0 | L151: 0 | M151: 0 | N151: 0 | O151: 0 | P151: 0 | Q151: 0 | R151: 0
A153: Tier 2
A154: =Input!C$517 -> Rate 1 - General Firm Service | B154: m3 | G154: =SUM(H154:R154) -> 48320000.3 | I154: =SUMIF($C$109:$C$124,$A154,I$109:I$124) -> 586816.5709 | J154: 2138384.704 | K154: 3760450.739 | L154: 4829175.46 | M154: 5588978.143 | N154: 6087022.076 | O154: 6266713.948 | P154: 6318211.727 | Q154: 6360053.672 | R154: 6384193.256
A155: =Input!C$518 -> Rate 6 - Large Volume General Firm Service | B155: m3 | G155: =SUM(H155:R155) -> 15366260.28 | I155: 146696.3609 | J155: 526295.0583 | K155: 1038569.595 | L155: 1543421.417 | M155: 1857703.225 | N155: 2004399.586 | O155: 2062293.761 | P155: 2062293.761 | Q155: 2062293.761 | R155: 2062293.761
A156: =Input!C$519 -> Rate 11 - Large Volume Seasonal Service | B156: m3 | G156: =SUM(H156:R156) -> 0 | I156: 0 | J156: 0 | K156: 0 | L156: 0 | M156: 0 | N156: 0 | O156: 0 | P156: 0 | Q156: 0 | R156: 0
A157: =Input!C$520 -> Rate 16 - Contracted Firm Service | B157: m3 | G157: =SUM(H157:R157) -> 0 | I157: 0 | J157: 0 | K157: 0 | L157: 0 | M157: 0 | N157: 0 | O157: 0 | P157: 0 | Q157: 0 | R157: 0
A159: Tier 3
A160: =Input!C$517 -> Rate 1 - General Firm Service | B160: m3 | G160: =SUM(H160:R160) -> 2725690.585 | I160: =SUMIF($C$128:$C$143,$A160,I$128:I$143) -> 28045.18531 | J160: 101472.5796 | K160: 183058.5732 | L160: 257004.5668 | M160: 323310.5605 | N160: 360032.9445 | O160: 368191.5439 | P160: 368191.5439 | Q160: 368191.5439 | R160: 368191.5439
A161: =Input!C$518 -> Rate 6 - Large Volume General Firm Service | B161: m3 | G161: =SUM(H161:R161) -> 4106599.461 | I161: 34765.43309 | J161: 115884.777 | K161: 242616.7599 | L161: 408864.2793 | M161: 506322.2042 | N161: 541087.6373 | O161: 564264.5927 | P161: 564264.5927 | Q161: 564264.5927 | R161: 564264.5927
A162: =Input!C$519 -> Rate 11 - Large Volume Seasonal Service | B162: m3 | G162: =SUM(H162:R162) -> 10623612.84 | I162: 169165.8096 | J162: 338331.6191 | K162: 744329.5621 | L162: 1251826.991 | M162: 1353326.476 | N162: 1353326.476 | O162: 1353326.476 | P162: 1353326.476 | Q162: 1353326.476 | R162: 1353326.476
A163: =Input!C$520 -> Rate 16 - Contracted Firm Service | B163: m3 | G163: =SUM(H163:R163) -> 214325960.2 | I163: 3894613.167 | J163: 23411347 | K163: 23385129 | L163: 23367679 | M163: 23367679 | N163: 23367679 | O163: 23411347 | P163: 23385129 | Q163: 23367679 | R163: 23367679
A165: Volume Forecast by Rate Class
A166: =Input!C$517 -> Rate 1 - General Firm Service | B166: m3 | G166: =SUM(H166:R166) -> 90784357 | I166: =I148+I154+I160 -> 1101720 | J166: 4014141.5 | K166: 7059322.5 | L166: 9067927 | M166: 10497650.5 | N166: 11435562.5 | O166: 11775724 | P166: 11874892 | Q166: 11955466 | R166: 12001951
A167: =Input!C$518 -> Rate 6 - Large Volume General Firm Service | B167: m3 | G167: =SUM(H167:R167) -> 26452810.63 | I167: =I149+I155+I161 -> 248192.5 | J167: 887258.3631 | K167: 1757528.873 | L167: 2650500.424 | M167: 3209649.329 | N167: 3457841.829 | O167: 3560459.829 | P167: 3560459.829 | Q167: 3560459.829 | R167: 3560459.829
A168: =Input!C$519 -> Rate 11 - Large Volume Seasonal Service | B168: m3 | G168: =SUM(H168:R168) -> 10623612.84 | I168: =I150+I156+I162 -> 169165.8096 | J168: 338331.6191 | K168: 744329.5621 | L168: 1251826.991 | M168: 1353326.476 | N168: 1353326.476 | O168: 1353326.476 | P168: 1353326.476 | Q168: 1353326.476 | R168: 1353326.476
A169: =Input!C$520 -> Rate 16 - Contracted Firm Service | B169: m3 | G169: =SUM(H169:R169) -> 214325960.2 | I169: =I151+I157+I163 -> 3894613.167 | J169: 23411347 | K169: 23385129 | L169: 23367679 | M169: 23367679 | N169: 23367679 | O169: 23411347 | P169: 23385129 | Q169: 23367679 | R169: 23367679
A170: Sum | B170: m3 | G170: =SUM(H170:R170) -> 342186740.6 | I170: =SUM(I166:I169) -> 5413691.476 | J170: 28651078.48 | K170: 32946309.93 | L170: 36337933.41 | M170: 38428305.31 | N170: 39614409.81 | O170: 40100857.31 | P170: 40173807.31 | Q170: 40236931.31 | R170: 40283416.31
A172: Commodity Cost
A173: =Input!C$517 -> Rate 1 - General Firm Service | B173: $0,000s | G173: =SUM(H173:R173) -> -12158.94235 | I173: =(I166*Input!$E$21*(1+inflation)^I$1)/1000 -> -137.5464066 | J173: =(J166*Input!$E$21*(1+inflation)^J$1)/1000 -> -507.5180619 | K173: =(K166*Input!$E$21*(1+inflation)^K$1)/1000 -> -903.8631027 | L173: =(L166*Input!$E$21*(1+inflation)^L$1)/1000 -> -1175.786476 | M173: =(M166*Input!$E$21*(1+inflation)^M$1)/1000 -> -1378.45745 | N173: =(N166*Input!$E$21*(1+inflation)^N$1)/1000 -> -1520.686173 | O173: =(O166*Input!$E$21*(1+inflation)^O$1)/1000 -> -1585.807594 | P173: =(P166*Input!$E$21*(1+inflation)^P$1)/1000 -> -1619.471665 | Q173: =(Q166*Input!$E$21*(1+inflation)^Q$1)/1000 -> -1651.167014 | R173: =(R166*Input!$E$21*(1+inflation)^R$1)/1000 -> -1678.638403
A174: =Input!C$518 -> Rate 6 - Large Volume General Firm Service | B174: $0,000s | G174: =SUM(H174:R174) -> -3547.91208 | I174: =(I167*Input!$E$21*(1+inflation)^I$1)/1000 -> -30.98608222 | J174: =(J167*Input!$E$21*(1+inflation)^J$1)/1000 -> -112.1783188 | K174: =(K167*Input!$E$21*(1+inflation)^K$1)/1000 -> -225.0308723 | L174: =(L167*Input!$E$21*(1+inflation)^L$1)/1000 -> -343.6753023 | M174: =(M167*Input!$E$21*(1+inflation)^M$1)/1000 -> -421.4624052 | N174: =(N167*Input!$E$21*(1+inflation)^N$1)/1000 -> -459.8192924 | O174: =(O167*Input!$E$21*(1+inflation)^O$1)/1000 -> -479.4783094 | P174: =(P167*Input!$E$21*(1+inflation)^P$1)/1000 -> -485.5676839 | Q174: =(Q167*Input!$E$21*(1+inflation)^Q$1)/1000 -> -491.7343935 | R174: =(R167*Input!$E$21*(1+inflation)^R$1)/1000 -> -497.9794203
A175: =Input!C$519 -> Rate 11 - Large Volume Seasonal Service | B175: $0,000s | G175: =SUM(H175:R175) -> -1422.188016 | I175: =(I168*Input!$E$21*(1+inflation)^I$1)/1000 -> -21.11983918 | J175: =(J168*Input!$E$21*(1+inflation)^J$1)/1000 -> -42.77612227 | K175: =(K168*Input!$E$21*(1+inflation)^K$1)/1000 -> -95.30263384 | L175: =(L168*Input!$E$21*(1+inflation)^L$1)/1000 -> -162.31728 | M175: =(M168*Input!$E$21*(1+inflation)^M$1)/1000 -> -177.7067129 | N175: =(N168*Input!$E$21*(1+inflation)^N$1)/1000 -> -179.9635882 | O175: =(O168*Input!$E$21*(1+inflation)^O$1)/1000 -> -182.2491257 | P175: =(P168*Input!$E$21*(1+inflation)^P$1)/1000 -> -184.5636896 | Q175: =(Q168*Input!$E$21*(1+inflation)^Q$1)/1000 -> -186.9076485 | R175: =(R168*Input!$E$21*(1+inflation)^R$1)/1000 -> -189.2813756
A176: =Input!C$520 -> Rate 16 - Contracted Firm Service | B176: $0,000s | G176: =SUM(H176:R176) -> 0 | I176: 0 | J176: 0 | K176: 0 | L176: 0 | M176: 0 | N176: 0 | O176: 0 | P176: 0 | Q176: 0 | R176: 0
A177: Sum | B177: $0,000s | G177: =SUM(H177:R177) -> -17129.04244 | I177: =SUM(I173:I176) -> -189.652328 | J177: -662.4725029 | K177: -1224.196609 | L177: -1681.779058 | M177: -1977.626568 | N177: -2160.469054 | O177: -2247.535029 | P177: -2289.603038 | Q177: -2329.809056 | R177: -2365.899199
A179: PP&E Continuity Including the External Funded Assets
A181: CWIP
A183: Opening CWIP
A184: CapEx #
A185: =Input!C$169 -> 1 | B185: $0,000s | H185: 0 | I185: =H797 -> 0 | J185: =I797 -> 0 | K185: =J797 -> 0 | L185: =K797 -> 0 | M185: =L797 -> 0 | N185: =M797 -> 0 | O185: =N797 -> 0 | P185: =O797 -> 0 | Q185: =P797 -> 0 | R185: =Q797 -> 0
A186: =Input!C$170 -> 2 | B186: $0,000s | H186: 0 | I186: 0 | J186: 0 | K186: 0 | L186: 0 | M186: 0 | N186: 0 | O186: 0 | P186: 0 | Q186: 0 | R186: 0
A187: =Input!C$171 -> 3 | B187: $0,000s | H187: 0 | I187: 0 | J187: 0 | K187: 0 | L187: 0 | M187: 0 | N187: 0 | O187: 0 | P187: 0 | Q187: 0 | R187: 0
A188: =Input!C$172 -> 4 | B188: $0,000s | H188: 0 | I188: 0 | J188: 0 | K188: 0 | L188: 0 | M188: 0 | N188: 0 | O188: 0 | P188: 0 | Q188: 0 | R188: 0
A189: =Input!C$173 -> 5 | B189: $0,000s | H189: 0 | I189: 0 | J189: 0 | K189: 0 | L189: 0 | M189: 0 | N189: 0 | O189: 0 | P189: 0 | Q189: 0 | R189: 0
A190: =Input!C$174 -> 6 | B190: $0,000s | H190: 0 | I190: 0 | J190: 0 | K190: 0 | L190: 0 | M190: 0 | N190: 0 | O190: 0 | P190: 0 | Q190: 0 | R190: 0
A191: =Input!C$175 -> 7 | B191: $0,000s | H191: 0 | I191: 0 | J191: 0 | K191: 0 | L191: 0 | M191: 0 | N191: 0 | O191: 0 | P191: 0 | Q191: 0 | R191: 0
A192: =Input!C$176 -> 8 | B192: $0,000s | H192: 0 | I192: 0 | J192: 0 | K192: 0 | L192: 0 | M192: 0 | N192: 0 | O192: 0 | P192: 0 | Q192: 0 | R192: 0
A193: =Input!C$177 -> 9 | B193: $0,000s | H193: 0 | I193: 0 | J193: 0 | K193: 0 | L193: 0 | M193: 0 | N193: 0 | O193: 0 | P193: 0 | Q193: 0 | R193: 0
A194: =Input!C$178 -> 10 | B194: $0,000s | H194: 0 | I194: 0 | J194: 0 | K194: 0 | L194: 0 | M194: 0 | N194: 0 | O194: 0 | P194: 0 | Q194: 0 | R194: 0
A195: =Input!C$179 -> 11 | B195: $0,000s | H195: 0 | I195: 0 | J195: 0 | K195: 0 | L195: 0 | M195: 0 | N195: 0 | O195: 0 | P195: 0 | Q195: 0 | R195: 0
A196: =Input!C$180 -> 12 | B196: $0,000s | H196: 0 | I196: 0 | J196: 0 | K196: 0 | L196: 0 | M196: 0 | N196: 0 | O196: 0 | P196: 0 | Q196: 0 | R196: 0
A197: =Input!C$181 -> 13 | B197: $0,000s | H197: 0 | I197: 0 | J197: 0 | K197: 0 | L197: 0 | M197: 0 | N197: 0 | O197: 0 | P197: 0 | Q197: 0 | R197: 0
A198: =Input!C$182 -> 14 | B198: $0,000s | H198: 0 | I198: 0 | J198: 0 | K198: 0 | L198: 0 | M198: 0 | N198: 0 | O198: 0 | P198: 0 | Q198: 0 | R198: 0
A199: =Input!C$183 -> 15 | B199: $0,000s | H199: 0 | I199: 0 | J199: 0 | K199: 0 | L199: 0 | M199: 0 | N199: 0 | O199: 0 | P199: 0 | Q199: 0 | R199: 0
A200: =Input!C$184 -> 16 | B200: $0,000s | H200: 0 | I200: 0 | J200: 0 | K200: 0 | L200: 0 | M200: 0 | N200: 0 | O200: 0 | P200: 0 | Q200: 0 | R200: 0
A201: =Input!C$185 -> 17 | B201: $0,000s | H201: 0 | I201: 0 | J201: 0 | K201: 0 | L201: 0 | M201: 0 | N201: 0 | O201: 0 | P201: 0 | Q201: 0 | R201: 0
A202: =Input!C$186 -> 18 | B202: $0,000s | H202: 0 | I202: 0 | J202: 0 | K202: 0 | L202: 0 | M202: 0 | N202: 0 | O202: 0 | P202: 0 | Q202: 0 | R202: 0
A203: =Input!C$187 -> 19 | B203: $0,000s | H203: 0 | I203: 0 | J203: 0 | K203: 0 | L203: 0 | M203: 0 | N203: 0 | O203: 0 | P203: 0 | Q203: 0 | R203: 0
A204: =Input!C$188 -> 20 | B204: $0,000s | H204: 0 | I204: 0 | J204: 0 | K204: 0 | L204: 0 | M204: 0 | N204: 0 | O204: 0 | P204: 0 | Q204: 0 | R204: 0
A205: =Input!C$189 -> 21 | B205: $0,000s | H205: 0 | I205: 0 | J205: 0 | K205: 0 | L205: 0 | M205: 0 | N205: 0 | O205: 0 | P205: 0 | Q205: 0 | R205: 0
A206: =Input!C$190 -> 22 | B206: $0,000s | H206: 0 | I206: 0 | J206: 0 | K206: 0 | L206: 0 | M206: 0 | N206: 0 | O206: 0 | P206: 0 | Q206: 0 | R206: 0
A207: =Input!C$191 -> 23 | B207: $0,000s | H207: 0 | I207: 0 | J207: =I819 -> 0 | K207: =J819 -> 0 | L207: 0 | M207: 0 | N207: 0 | O207: 0 | P207: 0 | Q207: 0 | R207: 0
A208: =Input!C$192 -> 24 | B208: $0,000s | H208: 0 | I208: 0 | J208: =I820 -> 0 | K208: =J820 -> 0 | L208: 0 | M208: 0 | N208: 0 | O208: 0 | P208: 0 | Q208: 0 | R208: 0
A209: =Input!C$193 -> 25 | B209: $0,000s | H209: 0 | I209: 0 | J209: 0 | K209: 0 | L209: 0 | M209: 0 | N209: 0 | O209: 0 | P209: 0 | Q209: 0 | R209: 0
A210: =Input!C$194 -> 26 | B210: $0,000s | H210: 0 | I210: 0 | J210: 0 | K210: 0 | L210: 0 | M210: 0 | N210: 0 | O210: 0 | P210: 0 | Q210: 0 | R210: 0
A211: =Input!C$195 -> 27 | B211: $0,000s | H211: 0 | I211: 0 | J211: 0 | K211: 0 | L211: 0 | M211: 0 | N211: 0 | O211: 0 | P211: 0 | Q211: 0 | R211: 0
A212: =Input!C$196 -> 28 | B212: $0,000s | H212: 0 | I212: 0 | J212: 0 | K212: 0 | L212: 0 | M212: 0 | N212: 0 | O212: 0 | P212: 0 | Q212: 0 | R212: 0
A213: =Input!C$197 -> 29 | B213: $0,000s | H213: 0 | I213: 0 | J213: 0 | K213: 0 | L213: 0 | M213: 0 | N213: 0 | O213: 0 | P213: 0 | Q213: 0 | R213: 0
A214: =Input!C$198 -> 30 | B214: $0,000s | H214: 0 | I214: 0 | J214: 0 | K214: 0 | L214: 0 | M214: 0 | N214: 0 | O214: 0 | P214: 0 | Q214: 0 | R214: 0
A215: =Input!C$199 -> 31 | B215: $0,000s | H215: 0 | I215: 0 | J215: 0 | K215: 0 | L215: 0 | M215: 0 | N215: 0 | O215: 0 | P215: 0 | Q215: 0 | R215: 0
A216: =Input!C$200 -> 32 | B216: $0,000s | H216: 0 | I216: 0 | J216: 0 | K216: 0 | L216: 0 | M216: 0 | N216: 0 | O216: 0 | P216: 0 | Q216: 0 | R216: 0
A217: =Input!C$201 -> 33 | B217: $0,000s | H217: 0 | I217: 0 | J217: 0 | K217: 0 | L217: 0 | M217: 0 | N217: 0 | O217: 0 | P217: 0 | Q217: 0 | R217: 0
A218: =Input!C$202 -> 34 | B218: $0,000s | H218: 0 | I218: 0 | J218: 0 | K218: 0 | L218: 0 | M218: 0 | N218: 0 | O218: 0 | P218: 0 | Q218: 0 | R218: 0
A219: =Input!C$203 -> 35 | B219: $0,000s | H219: 0 | I219: 0 | J219: 0 | K219: 0 | L219: 0 | M219: 0 | N219: 0 | O219: 0 | P219: 0 | Q219: 0 | R219: 0
A220: =Input!C$204 -> 36 | B220: $0,000s | H220: 0 | I220: 0 | J220: 0 | K220: 0 | L220: 0 | M220: 0 | N220: 0 | O220: 0 | P220: 0 | Q220: 0 | R220: 0
A221: =Input!C$205 -> 37 | B221: $0,000s | H221: 0 | I221: 0 | J221: 0 | K221: 0 | L221: 0 | M221: 0 | N221: 0 | O221: 0 | P221: 0 | Q221: 0 | R221: 0
A222: =Input!C$206 -> 38 | B222: $0,000s | H222: 0 | I222: 0 | J222: 0 | K222: 0 | L222: 0 | M222: 0 | N222: 0 | O222: 0 | P222: 0 | Q222: 0 | R222: 0
A223: =Input!C$207 -> 39 | B223: $0,000s | H223: 0 | I223: 0 | J223: 0 | K223: 0 | L223: 0 | M223: 0 | N223: 0 | O223: 0 | P223: 0 | Q223: 0 | R223: 0
A224: =Input!C$208 -> 40 | B224: $0,000s | H224: 0 | I224: 0 | J224: 0 | K224: 0 | L224: 0 | M224: 0 | N224: 0 | O224: 0 | P224: 0 | Q224: 0 | R224: 0
A225: =Input!C$209 -> 41 | B225: $0,000s | H225: 0 | I225: 0 | J225: 0 | K225: 0 | L225: 0 | M225: 0 | N225: 0 | O225: 0 | P225: 0 | Q225: 0 | R225: 0
A226: =Input!C$210 -> 42 | B226: $0,000s | H226: 0 | I226: 0 | J226: 0 | K226: 0 | L226: 0 | M226: 0 | N226: 0 | O226: 0 | P226: 0 | Q226: 0 | R226: 0
A227: =Input!C$211 -> 43 | B227: $0,000s | H227: 0 | I227: 0 | J227: 0 | K227: 0 | L227: 0 | M227: 0 | N227: 0 | O227: 0 | P227: 0 | Q227: 0 | R227: 0
A228: =Input!C$212 -> 44 | B228: $0,000s | H228: 0 | I228: 0 | J228: 0 | K228: 0 | L228: 0 | M228: 0 | N228: 0 | O228: 0 | P228: 0 | Q228: 0 | R228: 0
A229: =Input!C$213 -> 45 | B229: $0,000s | H229: 0 | I229: 0 | J229: 0 | K229: 0 | L229: 0 | M229: 0 | N229: 0 | O229: 0 | P229: 0 | Q229: 0 | R229: 0
A230: =Input!C$214 -> 46 | B230: $0,000s | H230: 0 | I230: 0 | J230: 0 | K230: 0 | L230: 0 | M230: 0 | N230: 0 | O230: 0 | P230: 0 | Q230: 0 | R230: 0
A231: =Input!C$215 -> 47 | B231: $0,000s | H231: 0 | I231: 0 | J231: 0 | K231: 0 | L231: 0 | M231: 0 | N231: 0 | O231: 0 | P231: 0 | Q231: 0 | R231: 0
A232: =Input!C$216 -> 48 | B232: $0,000s | H232: 0 | I232: 0 | J232: 0 | K232: 0 | L232: 0 | M232: 0 | N232: 0 | O232: 0 | P232: 0 | Q232: 0 | R232: 0
A233: =Input!C$217 -> 49 | B233: $0,000s | H233: 0 | I233: 0 | J233: 0 | K233: 0 | L233: 0 | M233: 0 | N233: 0 | O233: 0 | P233: 0 | Q233: 0 | R233: 0
A234: =Input!C$218 -> 50 | B234: $0,000s | H234: 0 | I234: 0 | J234: 0 | K234: 0 | L234: 0 | M234: 0 | N234: 0 | O234: 0 | P234: 0 | Q234: 0 | R234: 0
A235: =Input!C$219 -> 51 | B235: $0,000s | H235: 0 | I235: 0 | J235: 0 | K235: 0 | L235: 0 | M235: 0 | N235: 0 | O235: 0 | P235: 0 | Q235: 0 | R235: 0
... 4210 more rows

Sheet Output
C2: Master Check | E2: =Input!D2 -> 3.399235338e-10
A9: EXHIBIT 1 - Summary of Projected Revenue
C11: Summary of Projected Revenue Requirement
C12: (Thousands of Dollars)
D14: Col. 1 | E14: Col. 2 | F14: Col. 3 | G14: Col. 4 | H14: Col. 5 | I14: Col. 6 | J14: Col. 7 | K14: Col. 8 | L14: Col. 9 | M14: Col. 10 | N14: Col. 11
C16: Description | D16: =Calculation!I$2 -> 2019 | E16: =Calculation!J$2 -> 2020 | F16: =Calculation!K$2 -> 2021 | G16: =Calculation!L$2 -> 2022 | H16: =Calculation!M$2 -> 2023 | I16: =Calculation!N$2 -> 2024 | J16: =Calculation!O$2 -> 2025 | K16: =Calculation!P$2 -> 2026 | L16: =Calculation!Q$2 -> 2027 | M16: =Calculation!R$2 -> 2028 | N16: Sum | Z16: Check
B17: Row 1 | C17: CIP Distribution Revenue Requirement | D17: 1332.492019 | E17: 4388.984365 | F17: 6155.922334 | G17: 7534.171887 | H17: 8488.867305 | I17: 9122.04958 | J17: 9406.087115 | K17: 9567.338287 | L17: 9722.806588 | M17: 9864.541871 | N17: =SUM(D17:M17) -> 75583.26135
B18: Row 2 | C18: less External Funding Impact | D18: =-D552 -> -645.8171609 | E18: =-E552 -> -1530.81848 | F18: -1753.883983 | G18: -1721.646673 | H18: -1689.409363 | I18: -1657.172053 | J18: -1624.934743 | K18: -1592.697433 | L18: -1560.460123 | M18: -1528.222813 | N18: =SUM(D18:M18) -> -15305.06282
B19: Row 3 | C19: less Tax Holidays | D19: =-D573 -> -113.9263522 | E19: =-E573 -> -189.0699892 | F19: -214.0702208 | G19: -223.140401 | H19: -231.0497736 | I19: -235.1878616 | J19: -248.8558361 | K19: -250.057152 | L19: -251.2373529 | M19: -251.7970905 | N19: =SUM(D19:M19) -> -2208.39203
B20: Row 4 | C20: Rate Smoothing Adjustment | D20: =SUM(D17:D19)-(Calculation!I$20-Calculation!I10684) -> -10.15552616 | E20: =SUM(E17:E19)-(Calculation!J$20-Calculation!J10684) -> -360.5670972 | F20: =SUM(F17:F19)-(Calculation!K$20-Calculation!K10684) -> -397.8289448 | G20: =SUM(G17:G19)-(Calculation!L$20-Calculation!L10684) -> -183.8749001 | H20: =SUM(H17:H19)-(Calculation!M$20-Calculation!M10684) -> -24.76143022 | I20: =SUM(I17:I19)-(Calculation!N$20-Calculation!N10684) -> 97.83222027 | J20: =SUM(J17:J19)-(Calculation!O$20-Calculation!O10684) -> 137.9513162 | K20: =SUM(K17:K19)-(Calculation!P$20-Calculation!P10684) -> 192.3619051 | L20: =SUM(L17:L19)-(Calculation!Q$20-Calculation!Q10684) -> 247.0500791 | M20: =SUM(M17:M19)-(Calculation!R$20-Calculation!R10684) -> 301.9923779 | N20: =SUM(D20:M20) -> 6.821210263e-13
B21: Row 5 | C21: add LEAP Funding | D21: =Calculation!I10684 -> 2 | E21: =Calculation!J10684 -> 3.639963548 | F21: =Calculation!K10684 -> 5.509567971 | G21: =Calculation!L10684 -> 6.936235137 | H21: =Calculation!M10684 -> 7.92130909 | I21: =Calculation!N10684 -> 8.568511148 | J21: =Calculation!O10684 -> 8.883874913 | K21: =Calculation!P10684 -> 9.049525588 | L21: =Calculation!Q10684 -> 9.207920344 | M21: =Calculation!R10684 -> 9.350255815 | N21: =SUM(D21:M21) -> 71.06716355
B22: Row 6 | C22: Distribution Revenue Requirement | D22: =SUM(D17:D21) -> 564.5929796 | E22: 2312.168762 | F22: 3795.648753 | G22: 5412.446148 | H22: 6551.568048 | I22: 7336.090397 | J22: 7679.131727 | K22: 7925.995133 | L22: 8167.367111 | M22: 8395.864602 | N22: 58140.87366 | Z22: =N22-E516 -> 0
B23: Row 7
B24: Row 8 | C24: add Upstream Recovery Charge | D24: =Calculation!I11855 -> 49.23445932 | E24: =Calculation!J11855 -> 239.1759074 | F24: =Calculation!K11855 -> 309.8046374 | G24: =Calculation!L11855 -> 365.8141584 | H24: =Calculation!M11855 -> 403.3511245 | I24: =Calculation!N11855 -> 466.7974624 | J24: =Calculation!O11855 -> 460.4335088 | K24: =Calculation!P11855 -> 451.9484704 | L24: =Calculation!Q11855 -> 443.4966197 | M24: =Calculation!R11855 -> 435.0606815 | N24: =SUM(D24:M24) -> 3625.11703
B25: Row 9 | C25: add Transportation and Storage Charge | D25: =Calculation!I11862 -> 79.99247748 | E25: =Calculation!J11862 -> 371.5471287 | F25: =Calculation!K11862 -> 512.5586889 | G25: =Calculation!L11862 -> 630.0750541 | H25: =Calculation!M11862 -> 712.3257552 | I25: =Calculation!N11862 -> 763.3875385 | J25: =Calculation!O11862 -> 789.3792317 | K25: =Calculation!P11862 -> 802.0535318 | L25: =Calculation!Q11862 -> 814.628179 | M25: =Calculation!R11862 -> 826.3903513 | N25: =SUM(D25:M25) -> 6302.337937
B26: Row 10 | C26: add Gas Supply Charge | D26: =Calculation!I11869 -> 189.652328 | E26: =Calculation!J11869 -> 662.4725029 | F26: =Calculation!K11869 -> 1224.196609 | G26: =Calculation!L11869 -> 1681.779058 | H26: =Calculation!M11869 -> 1977.626568 | I26: =Calculation!N11869 -> 2160.469054 | J26: =Calculation!O11869 -> 2247.535029 | K26: =Calculation!P11869 -> 2289.603038 | L26: =Calculation!Q11869 -> 2329.809056 | M26: =Calculation!R11869 -> 2365.899199 | N26: =SUM(D26:M26) -> 17129.04244
B27: Row 11 | C27: add Other Charge | D27: =Calculation!I11876 -> 29.34 | E27: =Calculation!J11876 -> 48.12 | F27: =Calculation!K11876 -> 32.79 | G27: =Calculation!L11876 -> 19.68 | H27: =Calculation!M11876 -> 16.65 | I27: =Calculation!N11876 -> 7.5 | J27: =Calculation!O11876 -> 1.68 | K27: =Calculation!P11876 -> 1.2 | L27: =Calculation!Q11876 -> 1.14 | M27: =Calculation!R11876 -> 0.21 | N27: =SUM(D27:M27) -> 158.31
B28: Row 12 | C28: Non-distribution Revenue Requirement | D28: =SUM(D24:D27) -> 348.2192648 | E28: =SUM(E24:E27) -> 1321.315539 | F28: 2079.349935 | G28: 2697.348271 | H28: 3109.953448 | I28: 3398.154054 | J28: 3499.02777 | K28: 3544.80504 | L28: 3589.073854 | M28: 3627.560232 | N28: 27214.80741 | Z28: =N28-N531 -> 0
B29: Row 13
B30: Row 14 | C30: Total EPCOR Revenue Requirement | D30: =D22+D28 -> 912.8122444 | E30: 3633.484301 | F30: 5874.998688 | G30: 8109.794418 | H30: 9661.521496 | I30: 10734.24445 | J30: 11178.1595 | K30: 11470.80017 | L30: 11756.44097 | M30: 12023.42483 | N30: 85355.68107 | Z30: =N30-Calculation!G16-Calculation!G20 -> 0
C33: Pro-forma Financial Statements
C34: (Thousands of Dollars)
D38: =Calculation!I$2 -> 2019 | E38: =Calculation!J$2 -> 2020 | F38: =Calculation!K$2 -> 2021 | G38: =Calculation!L$2 -> 2022 | H38: =Calculation!M$2 -> 2023 | I38: =Calculation!N$2 -> 2024 | J38: =Calculation!O$2 -> 2025 | K38: =Calculation!P$2 -> 2026 | L38: =Calculation!Q$2 -> 2027 | M38: =Calculation!R$2 -> 2028 | Z38: Check
C40: Income Statement
C42: Non-distribution Revenue | D42: =Calculation!I16 -> 348.2192648 | E42: =Calculation!J16 -> 1321.315539 | F42: =Calculation!K16 -> 2079.349935 | G42: =Calculation!L16 -> 2697.348271 | H42: =Calculation!M16 -> 3109.953448 | I42: =Calculation!N16 -> 3398.154054 | J42: =Calculation!O16 -> 3499.02777 | K42: =Calculation!P16 -> 3544.80504 | L42: =Calculation!Q16 -> 3589.073854 | M42: =Calculation!R16 -> 3627.560232
C43: Less: Non-distribution Cost | D43: =Calculation!I17 -> -348.2192648 | E43: =Calculation!J17 -> -1321.315539 | F43: =Calculation!K17 -> -2079.349935 | G43: =Calculation!L17 -> -2697.348271 | H43: =Calculation!M17 -> -3109.953448 | I43: =Calculation!N17 -> -3398.154054 | J43: =Calculation!O17 -> -3499.02777 | K43: =Calculation!P17 -> -3544.80504 | L43: =Calculation!Q17 -> -3589.073854 | M43: =Calculation!R17 -> -3627.560232
C44: Net Non-distribution Revenue | D44: =SUM(D42:D43) -> 0 | E44: =SUM(E42:E43) -> 0 | F44: 0 | G44: 0 | H44: 0 | I44: 0 | J44: 0 | K44: 0 | L44: 0 | M44: 0
C46: Distribution Revenue | D46: =Calculation!I20 -> 584.9040319 | E46: =Calculation!J20 -> 3033.302957 | F46: =Calculation!K20 -> 4591.306643 | G46: =Calculation!L20 -> 5780.195948 | H46: =Calculation!M20 -> 6601.090908 | I46: =Calculation!N20 -> 7140.425956 | J46: =Calculation!O20 -> 7403.229095 | K46: =Calculation!P20 -> 7541.271323 | L46: =Calculation!Q20 -> 7673.266953 | M46: =Calculation!R20 -> 7791.879846
C47: Less: Distribution O&M | D47: =Calculation!I21 -> -555.3495733 | E47: =Calculation!J21 -> -1442.886221 | F47: =Calculation!K21 -> -1715.428071 | G47: =Calculation!L21 -> -1813.254908 | H47: =Calculation!M21 -> -1894.890929 | I47: =Calculation!N21 -> -2067.255337 | J47: =Calculation!O21 -> -2103.156458 | K47: =Calculation!P21 -> -2136.736822 | L47: =Calculation!Q21 -> -2170.608205 | M47: =Calculation!R21 -> -2460.716292
C48: Property Taxes | D48: =Calculation!I22 -> -331.2186812 | E48: =Calculation!J22 -> -490.1762393 | F48: =Calculation!K22 -> -546.7012192 | G48: =Calculation!L22 -> -565.324383 | H48: =Calculation!M22 -> -581.5868961 | I48: =Calculation!N22 -> -590.0554385 | J48: =Calculation!O22 -> -623.7409517 | K48: =Calculation!P22 -> -626.2768862 | L48: =Calculation!Q22 -> -628.7596173 | M48: =Calculation!R22 -> -630.0247608
C49: EBITDA | D49: =SUM(D46:D48)+D44 -> -301.6642226 | E49: 1100.240496 | F49: 2329.177352 | G49: 3401.616657 | H49: 4124.613083 | I49: 4483.115181 | J49: 4676.331685 | K49: 4778.257615 | L49: 4873.899131 | M49: 4701.138793
C51: Less: Depreciation | D51: =Calculation!I25 -> -592.4936651 | E51: =Calculation!J25 -> -1425.358764 | F51: =Calculation!K25 -> -1709.237786 | G51: =Calculation!L25 -> -1778.192077 | H51: =Calculation!M25 -> -1825.98495 | I51: =Calculation!N25 -> -1860.495451 | J51: =Calculation!O25 -> -1878.094913 | K51: =Calculation!P25 -> -1888.061458 | L51: =Calculation!Q25 -> -1925.205754 | M51: =Calculation!R25 -> -1934.027504
C52: Add: Capitalized IDC | D52: =Calculation!I26 -> 544.2726032 | E52: =Calculation!J26 -> 279.1436657 | F52: =Calculation!K26 -> 45.19014708 | G52: =Calculation!L26 -> 26.76904116 | H52: =Calculation!M26 -> 23.55803753 | I52: =Calculation!N26 -> 13.02948026 | J52: =Calculation!O26 -> 6.16786305 | K52: =Calculation!P26 -> 5.14231567 | L52: =Calculation!Q26 -> 12.53068862 | M52: =Calculation!R26 -> 2.938812267
C53: EBIT | D53: =SUM(D51:D52)+D49 -> -349.8852845 | E53: -45.97460177 | F53: 665.1297137 | G53: 1650.193621 | H53: 2322.18617 | I53: 2635.64921 | J53: 2804.404635 | K53: 2895.338472 | L53: 2961.224066 | M53: 2770.050101
C55: Less: Interest Expense | D55: =Calculation!I29 -> -481.6724093 | E55: =Calculation!J29 -> -1166.454747 | F55: =Calculation!K29 -> -1385.728092 | G55: =Calculation!L29 -> -1403.08842 | H55: =Calculation!M29 -> -1401.811571 | I55: =Calculation!N29 -> -1388.777544 | J55: =Calculation!O29 -> -1361.036839 | K55: =Calculation!P29 -> -1326.661679 | L55: =Calculation!Q29 -> -1296.714822 | M55: =Calculation!R29 -> -1264.947049
C56: Less: Cash Tax | D56: =Calculation!I30 -> 0 | E56: =Calculation!J30 -> 0 | F56: =Calculation!K30 -> 0 | G56: =Calculation!L30 -> 0 | H56: =Calculation!M30 -> 0 | I56: =Calculation!N30 -> 0 | J56: =Calculation!O30 -> 0 | K56: =Calculation!P30 -> 0 | L56: =Calculation!Q30 -> 0 | M56: =Calculation!R30 -> 0
C57: Net Income | D57: =SUM(D55:D56)+D53 -> -831.5576938 | E57: -1212.429348 | F57: -720.5983778 | G57: 247.1052004 | H57: 920.3745989 | I57: 1246.871666 | J57: 1443.367797 | K57: 1568.676793 | L57: 1664.509243 | M57: 1505.103052 | Z57: =SUM(D57:M57)-Calculation!G31 -> 0
C59: Balance Sheet
C61: Cash | D61: =Calculation!I36 -> 0 | E61: =Calculation!J36 -> 0 | F61: =Calculation!K36 -> 0 | G61: =Calculation!L36 -> 2.273736754e-11 | H61: =Calculation!M36 -> 1.818989404e-11 | I61: =Calculation!N36 -> 2.5920599e-11 | J61: =Calculation!O36 -> 2.5920599e-11 | K61: =Calculation!P36 -> 2.5920599e-11 | L61: =Calculation!Q36 -> 1.955413609e-11 | M61: =Calculation!R36 -> 2.819433575e-11
C62: NWC | D62: =Calculation!I37 -> 185.2181279 | E62: =Calculation!J37 -> 302.938572 | F62: =Calculation!K37 -> 348.2833118 | G62: =Calculation!L37 -> 413.1058225 | H62: =Calculation!M37 -> 424.8588685 | I62: =Calculation!N37 -> 483.460856 | J62: =Calculation!O37 -> 450.4279209 | K62: =Calculation!P37 -> 495.7448914 | L62: =Calculation!Q37 -> 462.5213601 | M62: =Calculation!R37 -> 545.2238326
C63: PP&E | D63: =Calculation!I39 -> 57313.20011 | E63: =Calculation!J39 -> 80778.90796 | F63: =Calculation!K39 -> 81547.53155 | G63: =Calculation!L39 -> 80996.59873 | H63: =Calculation!M39 -> 80179.87919 | I63: =Calculation!N39 -> 78613.86928 | J63: =Calculation!O39 -> 76564.42723 | K63: =Calculation!P39 -> 74435.3946 | L63: =Calculation!Q39 -> 72770.81159 | M63: =Calculation!R39 -> 70446.21788
C64: Assets | D64: =SUM(D61:D63) -> 57498.41824 | E64: 81081.84653 | F64: 81895.81486 | G64: 81409.70456 | H64: 80604.73806 | I64: 79097.33013 | J64: 77014.85515 | K64: 74931.13949 | L64: 73233.33295 | M64: 70991.44172
C66: Deferred Revenue | D66: =Calculation!I$43 -> 61.4633637 | E66: =Calculation!J$43 -> 477.1610083 | F66: =Calculation!K$43 -> 825.5711225 | G66: =Calculation!L$43 -> 1033.648905 | H66: =Calculation!M$43 -> 1136.78884 | I66: =Calculation!N$43 -> 1126.230758 | J66: =Calculation!O$43 -> 1079.355099 | K66: =Calculation!P$43 -> 1032.853054 | L66: =Calculation!Q$43 -> 986.8378888 | M66: =Calculation!R$43 -> 939.8456084
C67: Assets and Regulatory Assets | D67: =D64+D66 -> 57559.88161 | E67: =E64+E66 -> 81559.00754 | F67: 82721.38598 | G67: 82443.35346 | H67: 81741.5269 | I67: 80223.56089 | J67: 78094.21025 | K67: 75963.99254 | L67: 74220.17084 | M67: 71931.28732
C69: Contribution from Grant | D69: =Calculation!I47 -> 15657.52098 | E69: =Calculation!J47 -> 21597.62682 | F69: =Calculation!K47 -> 21007.54573 | G69: =Calculation!L47 -> 20417.46464 | H69: =Calculation!M47 -> 19827.38355 | I69: =Calculation!N47 -> 19237.30246 | J69: =Calculation!O47 -> 18647.22137 | K69: =Calculation!P47 -> 18057.14028 | L69: =Calculation!Q47 -> 17467.05919 | M69: =Calculation!R47 -> 16876.9781
C70: ST Operating Debt | D70: =Calculation!I48 -> 1673.635891 | E70: =Calculation!J48 -> 2379.368789 | F70: =Calculation!K48 -> 2435.530765 | G70: =Calculation!L48 -> 2439.689597 | H70: =Calculation!M48 -> 2431.094181 | I70: =Calculation!N48 -> 2394.401107 | J70: =Calculation!O48 -> 2334.705351 | K70: =Calculation!P48 -> 2274.959968 | L70: =Calculation!Q48 -> 2230.650951 | M70: =Calculation!R48 -> 2164.578545
C71: LT Debt | D71: =Calculation!I49 -> 25166.00172 | E71: =Calculation!J49 -> 36167.69284 | F71: =Calculation!K49 -> 37358.5326 | G71: =Calculation!L49 -> 37628.99286 | H71: =Calculation!M49 -> 37603.20155 | I71: =Calculation!N49 -> 37042.24736 | J71: =Calculation!O49 -> 36099.93537 | K71: =Calculation!P49 -> 35157.25258 | L71: =Calculation!Q49 -> 34446.60215 | M71: =Calculation!R49 -> 33408.52378
C72: Liabilities | D72: =SUM(D69:D71) -> 42497.15859 | E72: =SUM(E69:E71) -> 60144.68844 | F72: 60801.60909 | G72: 60486.14709 | H72: 59861.67928 | I72: 58673.95093 | J72: 57081.86209 | K72: 55489.35283 | L72: 54144.31229 | M72: 52450.08042
C74: Retained Earnings | D74: =Calculation!I53 -> -831.5576938 | E74: =Calculation!J53 -> -2043.987042 | F74: =Calculation!K53 -> -2764.58542 | G74: =Calculation!L53 -> -2517.48022 | H74: =Calculation!M53 -> -1597.105621 | I74: =Calculation!N53 -> -350.2339545 | J74: =Calculation!O53 -> 1093.133842 | K74: =Calculation!P53 -> 2661.810636 | L74: =Calculation!Q53 -> 4326.319879 | M74: =Calculation!R53 -> 5831.422931
C75: Share Capital | D75: =Calculation!I54 -> 15894.28071 | E75: =Calculation!J54 -> 23458.30614 | F75: =Calculation!K54 -> 24684.36231 | G75: =Calculation!L54 -> 24474.68659 | H75: =Calculation!M54 -> 23476.95325 | I75: =Calculation!N54 -> 21899.84392 | J75: =Calculation!O54 -> 19919.21432 | K75: =Calculation!P54 -> 17812.82908 | L75: =Calculation!Q54 -> 15749.53868 | M75: =Calculation!R54 -> 13649.78397
C76: Equities | D76: =SUM(D74:D75) -> 15062.72301 | E76: =SUM(E74:E75) -> 21414.3191 | F76: 21919.77689 | G76: 21957.20637 | H76: 21879.84763 | I76: 21549.60996 | J76: 21012.34816 | K76: 20474.63972 | L76: 20075.85855 | M76: 19481.2069
C78: Liabilities and Equities | D78: =D72+D76 -> 57559.88161 | E78: =E72+E76 -> 81559.00754 | F78: 82721.38598 | G78: 82443.35346 | H78: 81741.5269 | I78: 80223.56089 | J78: 78094.21025 | K78: 75963.99254 | L78: 74220.17084 | M78: 71931.28732
C80: Statement of Cash Flow
C82: Net Income | D82: =D57 -> -831.5576938 | E82: -1212.429348 | F82: -720.5983778 | G82: 247.1052004 | H82: 920.3745989 | I82: 1246.871666 | J82: 1443.367797 | K82: 1568.676793 | L82: 1664.509243 | M82: 1505.103052
C83: add: Depreciation | D83: =Calculation!I63 -> 592.4936651 | E83: =Calculation!J63 -> 1425.358764 | F83: =Calculation!K63 -> 1709.237786 | G83: =Calculation!L63 -> 1778.192077 | H83: =Calculation!M63 -> 1825.98495 | I83: =Calculation!N63 -> 1860.495451 | J83: =Calculation!O63 -> 1878.094913 | K83: =Calculation!P63 -> 1888.061458 | L83: =Calculation!Q63 -> 1925.205754 | M83: =Calculation!R63 -> 1934.027504
C84: less: increase in NWC | D84: =Calculation!I64 -> -185.2181279 | E84: =Calculation!J64 -> -117.7204441 | F84: =Calculation!K64 -> -45.34473984 | G84: =Calculation!L64 -> -64.82251061 | H84: =Calculation!M64 -> -11.75304609 | I84: =Calculation!N64 -> -58.60198742 | J84: =Calculation!O64 -> 33.03293502 | K84: =Calculation!P64 -> -45.31697041 | L84: =Calculation!Q64 -> 33.22353123 | M84: =Calculation!R64 -> -82.70247251
C85: less: increase in IDC | D85: =Calculation!I65 -> -544.2726032 | E85: =Calculation!J65 -> -279.1436657 | F85: =Calculation!K65 -> -45.19014708 | G85: =Calculation!L65 -> -26.76904116 | H85: =Calculation!M65 -> -23.55803753 | I85: =Calculation!N65 -> -13.02948026 | J85: =Calculation!O65 -> -6.16786305 | K85: =Calculation!P65 -> -5.14231567 | L85: =Calculation!Q65 -> -12.53068862 | M85: =Calculation!R65 -> -2.938812267
C86: less: increase in Deferred Revenue | D86: =Calculation!I66 -> -61.4633637 | E86: =Calculation!J66 -> -415.6976446 | F86: =Calculation!K66 -> -348.4101142 | G86: =Calculation!L66 -> -208.0777826 | H86: =Calculation!M66 -> -103.1399347 | I86: =Calculation!N66 -> 10.55808166 | J86: =Calculation!O66 -> 46.87565922 | K86: =Calculation!P66 -> 46.50204533 | L86: =Calculation!Q66 -> 46.01516472 | M86: =Calculation!R66 -> 46.99228042
C87: Cash from Operations | D87: =SUM(D82:D86) -> -1030.018123 | E87: =SUM(E82:E86) -> -599.632339 | F87: 549.6944066 | G87: 1725.627943 | H87: 2607.908531 | I87: 3046.293731 | J87: 3395.203441 | K87: 3452.781011 | L87: 3656.423005 | M87: 3400.481552
C89: CapEx | D89: =Calculation!I70 -> -57345.6927 | E89: =Calculation!J70 -> -25030.02461 | F89: =Calculation!K70 -> -3022.752313 | G89: =Calculation!L70 -> -1790.571315 | H89: =Calculation!M70 -> -1575.788464 | I89: =Calculation!N70 -> -871.5371414 | J89: =Calculation!O70 -> -412.5660903 | K89: =Calculation!P70 -> -343.9676033 | L89: =Calculation!Q70 -> -838.1731518 | M89: =Calculation!R70 -> -196.5760714
C90: Grant Funding | D90: =Calculation!I71 -> 15641.7925 | E90: =Calculation!J71 -> 6358.207502 | F90: =Calculation!K71 -> 0 | G90: =Calculation!L71 -> 0 | H90: =Calculation!M71 -> 0 | I90: =Calculation!N71 -> 0 | J90: =Calculation!O71 -> 0 | K90: =Calculation!P71 -> 0 | L90: =Calculation!Q71 -> 0 | M90: =Calculation!R71 -> 0
C91: Cash from Investing | D91: =SUM(D88:D90) -> -41703.9002 | E91: -18671.8171 | F91: -3022.752313 | G91: -1790.571315 | H91: -1575.788464 | I91: -871.5371414 | J91: -412.5660903 | K91: -343.9676033 | L91: -838.1731518 | M91: -196.5760714
C93: Net Borrowing | D93: =Calculation!I75 -> 26839.63761 | E93: =Calculation!J75 -> 11707.42401 | F93: =Calculation!K75 -> 1247.001739 | G93: =Calculation!L75 -> 274.6190878 | H93: =Calculation!M75 -> -34.38672327 | I93: =Calculation!N75 -> -597.6472608 | J93: =Calculation!O75 -> -1002.007752 | K93: =Calculation!P75 -> -1002.428169 | L93: =Calculation!Q75 -> -754.9594494 | M93: =Calculation!R75 -> -1104.150775
C94: Net Equity Injection | D94: =Calculation!I76 -> 15894.28071 | E94: =Calculation!J76 -> 7564.02543 | F94: =Calculation!K76 -> 1226.056167 | G94: =Calculation!L76 -> -209.6757162 | H94: =Calculation!M76 -> -997.733344 | I94: =Calculation!N76 -> -1577.109329 | J94: =Calculation!O76 -> -1980.629599 | K94: =Calculation!P76 -> -2106.385238 | L94: =Calculation!Q76 -> -2063.290403 | M94: =Calculation!R76 -> -2099.754705
C95: Dividends | D95: =Calculation!I77 -> 0 | E95: =Calculation!J77 -> 0 | F95: =Calculation!K77 -> 0 | G95: =Calculation!L77 -> 0 | H95: =Calculation!M77 -> 0 | I95: =Calculation!N77 -> 0 | J95: =Calculation!O77 -> 0 | K95: =Calculation!P77 -> 0 | L95: =Calculation!Q77 -> 0 | M95: =Calculation!R77 -> 0
C96: Cash from Financing | D96: =SUM(D93:D95) -> 42733.91832 | E96: 19271.44944 | F96: 2473.057906 | G96: 64.94337159 | H96: -1032.120067 | I96: -2174.75659 | J96: -2982.63735 | K96: -3108.813407 | L96: -2818.249853 | M96: -3203.905481
C98: Net Change in Cash | D98: =ROUND(D87+D91+D96,3) -> 0 | E98: =ROUND(E87+E91+E96,3) -> 0 | F98: 0 | G98: 0 | H98: 0 | I98: 0 | J98: 0 | K98: 0 | L98: 0 | M98: 0 | Z98: =SUM(D98:M98)-Calculation!G80 -> -2.819433575e-11
C100: Check | D100: =D67-D78 -> 0 | E100: =E67-E78 -> 0 | F100: 0 | G100: 0 | H100: 0 | I100: 0 | J100: 0 | K100: 0 | L100: 0 | M100: 0
C101: Check | E101: =E61-D61-E98 -> 0 | F101: 0 | G101: 2.273736754e-11 | H101: -4.547473509e-12 | I101: 7.730704965e-12 | J101: 0 | K101: 0 | L101: -6.366462912e-12 | M101: 8.640199667e-12
A105: EXHIBIT 2 - Fixed Asset Tables
C107: Summary of Projected Utility Rate Base
C108: (Thousands of Dollars)
D110: Col. 1 | E110: Col. 2 | F110: Col. 3 | G110: Col. 4 | H110: Col. 5 | I110: Col. 6 | J110: Col. 7 | K110: Col. 8 | L110: Col. 9 | M110: Col. 10 | Z110: Check
C112: Description | D112: =Calculation!I$2 -> 2019 | E112: =Calculation!J$2 -> 2020 | F112: =Calculation!K$2 -> 2021 | G112: =Calculation!L$2 -> 2022 | H112: =Calculation!M$2 -> 2023 | I112: =Calculation!N$2 -> 2024 | J112: =Calculation!O$2 -> 2025 | K112: =Calculation!P$2 -> 2026 | L112: =Calculation!Q$2 -> 2027 | M112: =Calculation!R$2 -> 2028
B113: Row 1
B114: Row 2 | C114: Fixed Assets
B115: Row 3 | C115: Gross Book Value | D115: =AVERAGE(Calculation!H9175:I9175) -> 21124.0864 | E115: =AVERAGE(Calculation!I9175:J9175) -> 51723.65319 | F115: =AVERAGE(Calculation!J9175:K9175) -> 62733.1048 | G115: =AVERAGE(Calculation!K9175:L9175) -> 65175.74621 | H115: =AVERAGE(Calculation!L9175:M9175) -> 66884.08964 | I115: =AVERAGE(Calculation!M9175:N9175) -> 68126.0462 | J115: =AVERAGE(Calculation!N9175:O9175) -> 68777.69649 | K115: =AVERAGE(Calculation!O9175:P9175) -> 69161.61842 | L115: =AVERAGE(Calculation!P9175:Q9175) -> 69761.5253 | M115: =AVERAGE(Calculation!Q9175:R9175) -> 70286.63466
B116: Row 4 | C116: Accumulated Depreciation | D116: =AVERAGE(Calculation!H9993:I9993) -> -296.2468325 | E116: =AVERAGE(Calculation!I9993:J9993) -> -1305.173047 | F116: =AVERAGE(Calculation!J9993:K9993) -> -2872.471322 | G116: =AVERAGE(Calculation!K9993:L9993) -> -4616.186253 | H116: =AVERAGE(Calculation!L9993:M9993) -> -6418.274767 | I116: =AVERAGE(Calculation!M9993:N9993) -> -8261.514967 | J116: =AVERAGE(Calculation!N9993:O9993) -> -10130.81015 | K116: =AVERAGE(Calculation!O9993:P9993) -> -12013.88833 | L116: =AVERAGE(Calculation!P9993:Q9993) -> -13920.52194 | M116: =AVERAGE(Calculation!Q9993:R9993) -> -15850.13857
B117: Row 5 | C117: Net Book Value | D117: =SUM(D115:D116) -> 20827.83957 | E117: =SUM(E115:E116) -> 50418.48014 | F117: 59860.63348 | G117: 60559.55996 | H117: 60465.81487 | I117: 59864.53123 | J117: 58646.88634 | K117: 57147.73009 | L117: 55841.00336 | M117: 54436.49609
B118: Row 6
B119: Row 7 | C119: Allowance for Working Capital
B120: Row 8 | C120: Working Capital | D120: =Calculation!I10669 -> 92.60906395 | E120: =Calculation!J10669 -> 244.0783499 | F120: =Calculation!K10669 -> 325.6109419 | G120: =Calculation!L10669 -> 380.6945671 | H120: =Calculation!M10669 -> 418.9823455 | I120: =Calculation!N10669 -> 454.1598622 | J120: =Calculation!O10669 -> 466.9443885 | K120: =Calculation!P10669 -> 473.0864061 | L120: =Calculation!Q10669 -> 479.1331257 | M120: =Calculation!R10669 -> 503.8725964
B121: Row 9
B122: Row 10 | C122: Rate Base
B123: Row 11 | C123: Rate Base | D123: =D117+D120 -> 20920.44863 | E123: =E117+E120 -> 50662.55849 | F123: 60186.24442 | G123: 60940.25452 | H123: 60884.79722 | I123: 60318.69109 | J123: 59113.83072 | K123: 57620.81649 | L123: 56320.13649 | M123: 54940.36869 | Z123: =SUM(D123:M123)-SUM(Calculation!H10670:R10670) -> 0
C125: Projected Fixed Assets Including External Funded Fixed Assets
C126: (Thousands of Dollars)
D128: Col. 1 | E128: Col. 2 | F128: Col. 3 | G128: Col. 4 | H128: Col. 5 | I128: Col. 6 | J128: Col. 7 | K128: Col. 8 | L128: Col. 9 | M128: Col. 10 | Z128: Check
C130: Description | D130: =Calculation!I$2 -> 2019 | E130: =Calculation!J$2 -> 2020 | F130: =Calculation!K$2 -> 2021 | G130: =Calculation!L$2 -> 2022 | H130: =Calculation!M$2 -> 2023 | I130: =Calculation!N$2 -> 2024 | J130: =Calculation!O$2 -> 2025 | K130: =Calculation!P$2 -> 2026 | L130: =Calculation!Q$2 -> 2027 | M130: =Calculation!R$2 -> 2028
B131: Row 1
B132: Row 2 | C132: Gross Fixed Assets
B133: Row 3 | C133: Opening Balance | D133: 0 | E133: =D138 -> 58123.8101 | F133: =E138 -> 83528.03357 | G133: 86595.97603 | H133: 88413.31639 | I133: 90012.66289 | J133: 90897.22951 | K133: 91315.96346 | L133: 91665.07338 | M133: 92515.77722
B134: Row 4 | C134: Capital Expenditure | D134: =-SUMIF(Input!$F$169:$F$368,D$130,Input!$Z$169:$Z$368) -> 57199.79532 | E134: =-SUMIF(Input!$F$169:$F$368,E$130,Input!$Z$169:$Z$368) -> 24882.27433 | F134: =-SUMIF(Input!$F$169:$F$368,F$130,Input!$Z$169:$Z$368) -> 2873.125613 | G134: =-SUMIF(Input!$F$169:$F$368,G$130,Input!$Z$169:$Z$368) -> 1639.044356 | H134: =-SUMIF(Input!$F$169:$F$368,H$130,Input!$Z$169:$Z$368) -> 1422.337112 | I134: =-SUMIF(Input!$F$169:$F$368,I$130,Input!$Z$169:$Z$368) -> 716.136958 | J134: =-SUMIF(Input!$F$169:$F$368,J$130,Input!$Z$169:$Z$368) -> 255.1923246 | K134: =-SUMIF(Input!$F$169:$F$368,K$130,Input!$Z$169:$Z$368) -> 184.5951908 | L134: =-SUMIF(Input!$F$169:$F$368,L$130,Input!$Z$169:$Z$368) -> 676.7767096 | M134: =-SUMIF(Input!$F$169:$F$368,M$130,Input!$Z$169:$Z$368) -> 33.12989435
B135: Row 5 | C135: Interest During Construction | D135: =-Calculation!I1609 -> 778.117401 | E135: =-Calculation!J1609 -> 374.1988679 | F135: =-Calculation!K1609 -> 45.19014708 | G135: =-Calculation!L1609 -> 26.76904116 | H135: =-Calculation!M1609 -> 23.55803753 | I135: =-Calculation!N1609 -> 13.02948026 | J135: =-Calculation!O1609 -> 6.16786305 | K135: =-Calculation!P1609 -> 5.14231567 | L135: =-Calculation!Q1609 -> 12.53068862 | M135: =-Calculation!R1609 -> 2.938812267
B136: Row 6 | C136: Capitalized Overhead | D136: =-SUMIF(Input!$F$169:$F$368,D$130,Input!$AA$169:$AA$368) -> 145.8973747 | E136: =-SUMIF(Input!$F$169:$F$368,E$130,Input!$AA$169:$AA$368) -> 147.7502713 | F136: =-SUMIF(Input!$F$169:$F$368,F$130,Input!$AA$169:$AA$368) -> 149.6266998 | G136: =-SUMIF(Input!$F$169:$F$368,G$130,Input!$AA$169:$AA$368) -> 151.5269589 | H136: =-SUMIF(Input!$F$169:$F$368,H$130,Input!$AA$169:$AA$368) -> 153.4513512 | I136: =-SUMIF(Input!$F$169:$F$368,I$130,Input!$AA$169:$AA$368) -> 155.4001834 | J136: =-SUMIF(Input!$F$169:$F$368,J$130,Input!$AA$169:$AA$368) -> 157.3737657 | K136: =-SUMIF(Input!$F$169:$F$368,K$130,Input!$AA$169:$AA$368) -> 159.3724126 | L136: =-SUMIF(Input!$F$169:$F$368,L$130,Input!$AA$169:$AA$368) -> 161.3964422 | M136: =-SUMIF(Input!$F$169:$F$368,M$130,Input!$AA$169:$AA$368) -> 163.446177
B137: Row 8 | C137: Retirement | D137: =Calculation!I$8971 -> 0 | E137: =Calculation!J$8971 -> 0 | F137: =Calculation!K$8971 -> 0 | G137: =Calculation!L$8971 -> 0 | H137: =Calculation!M$8971 -> 0 | I137: =Calculation!N$8971 -> 0 | J137: =Calculation!O$8971 -> 0 | K137: =Calculation!P$8971 -> 0 | L137: =Calculation!Q$8971 -> 0 | M137: =Calculation!R$8971 -> 0
B138: Row 9 | C138: Closing Balance | D138: =SUM(D133:D137) -> 58123.8101 | E138: 83528.03357 | F138: 86595.97603 | G138: 88413.31639 | H138: 90012.66289 | I138: 90897.22951 | J138: 91315.96346 | K138: 91665.07338 | L138: 92515.77722 | M138: 92715.29211 | Z138: =SUM(D138:M138)-SUM(Calculation!$H$2631:$R$2631) -> 0
B139: Row 10
B140: Row 13 | C140: Accumulated Depreciation
B141: Row 14 | C141: Opening Balance | D141: 0 | E141: =D144 -> -810.609983 | F141: =E144 -> -2749.12561 | G141: -5048.444485 | H141: -7416.717652 | I141: -9832.783692 | J141: -12283.36023 | K141: -14751.53624 | L141: -17229.67878 | M141: -19744.96563
B142: Row 15 | C142: Depreciation | D142: =Calculation!I3041 -> -810.609983 | E142: =Calculation!J3041 -> -1938.515627 | F142: =Calculation!K3041 -> -2299.318875 | G142: =Calculation!L3041 -> -2368.273167 | H142: =Calculation!M3041 -> -2416.06604 | I142: =Calculation!N3041 -> -2450.576541 | J142: =Calculation!O3041 -> -2468.176003 | K142: =Calculation!P3041 -> -2478.142548 | L142: =Calculation!Q3041 -> -2515.286844 | M142: =Calculation!R3041 -> -2524.108594
B143: Row 16 | C143: Retirement | D143: =Calculation!I3245 -> 0 | E143: =Calculation!J3245 -> 0 | F143: =Calculation!K3245 -> 0 | G143: =Calculation!L3245 -> 0 | H143: =Calculation!M3245 -> 0 | I143: =Calculation!N3245 -> 0 | J143: =Calculation!O3245 -> 0 | K143: =Calculation!P3245 -> 0 | L143: =Calculation!Q3245 -> 0 | M143: =Calculation!R3245 -> 0
B144: Row 17 | C144: Closing Balance | D144: =SUM(D141:D143) -> -810.609983 | E144: =SUM(E141:E143) -> -2749.12561 | F144: -5048.444485 | G144: -7416.717652 | H144: -9832.783692 | I144: -12283.36023 | J144: -14751.53624 | K144: -17229.67878 | L144: -19744.96563 | M144: -22269.07422 | Z144: =SUM(D144:M144)-SUM(Calculation!$H$3449:$R$3449) -> 0
B145: Row 18
B146: Row 19 | C146: Net Fixed Assets | D146: =D138+D144 -> 57313.20011 | E146: =E138+E144 -> 80778.90796 | F146: 81547.53155 | G146: 80996.59873 | H146: 80179.87919 | I146: 78613.86928 | J146: 76564.42723 | K146: 74435.3946 | L146: 72770.81159 | M146: =M138+M144 -> 70446.21788
C148: Projected External Funded Fixed Assets
C149: (Thousands of Dollars)
D151: Col. 1 | E151: Col. 2 | F151: Col. 3 | G151: Col. 4 | H151: Col. 5 | I151: Col. 6 | J151: Col. 7 | K151: Col. 8 | L151: Col. 9 | M151: Col. 10 | Z151: Check
C153: Description | D153: =Calculation!I$2 -> 2019 | E153: =Calculation!J$2 -> 2020 | F153: =Calculation!K$2 -> 2021 | G153: =Calculation!L$2 -> 2022 | H153: =Calculation!M$2 -> 2023 | I153: =Calculation!N$2 -> 2024 | J153: =Calculation!O$2 -> 2025 | K153: =Calculation!P$2 -> 2026 | L153: =Calculation!Q$2 -> 2027 | M153: =Calculation!R$2 -> 2028
B154: Row 1
B155: Row 2 | C155: Gross Fixed Assets
B156: Row 3 | C156: Opening Balance | D156: 0 | E156: =D160 -> 15875.6373 | F156: =E160 -> 22328.9 | G156: 22328.9 | H156: 22328.9 | I156: 22328.9 | J156: 22328.9 | K156: 22328.9 | L156: 22328.9 | M156: 22328.9
B157: Row 4 | C157: Grant Funding | D157: =-Calculation!I3861 -> 15641.7925 | E157: =-Calculation!J3861 -> 6358.207502 | F157: =-Calculation!K3861 -> 0 | G157: =-Calculation!L3861 -> 0 | H157: =-Calculation!M3861 -> 0 | I157: =-Calculation!N3861 -> 0 | J157: =-Calculation!O3861 -> 0 | K157: =-Calculation!P3861 -> 0 | L157: =-Calculation!Q3861 -> 0 | M157: =-Calculation!R3861 -> 0
B158: Row 5 | C158: Reduction in Interest During Construction | D158: =-Calculation!I4677 -> 233.8447978 | E158: =-Calculation!J4677 -> 95.05520216 | F158: =-Calculation!K4677 -> 0 | G158: =-Calculation!L4677 -> 0 | H158: =-Calculation!M4677 -> 0 | I158: =-Calculation!N4677 -> 0 | J158: =-Calculation!O4677 -> 0 | K158: =-Calculation!P4677 -> 0 | L158: =-Calculation!Q4677 -> 0 | M158: =-Calculation!R4677 -> 0
B159: Row 6 | C159: Retirement | D159: =-Calculation!H5699 -> 0 | E159: =-Calculation!I5699 -> 0 | F159: =-Calculation!J5699 -> 0 | G159: =-Calculation!K5699 -> 0 | H159: =-Calculation!L5699 -> 0 | I159: =-Calculation!M5699 -> 0 | J159: =-Calculation!N5699 -> 0 | K159: =-Calculation!O5699 -> 0 | L159: =-Calculation!P5699 -> 0 | M159: =-Calculation!Q5699 -> 0
B160: Row 7 | C160: Closing Balance | D160: =SUM(D156:D159) -> 15875.6373 | E160: 22328.9 | F160: 22328.9 | G160: 22328.9 | H160: 22328.9 | I160: 22328.9 | J160: 22328.9 | K160: 22328.9 | L160: 22328.9 | M160: 22328.9 | Z160: =SUM(D160:M160)+SUM(Calculation!H5903:R5903) -> 0
B161: Row 8
B162: Row 9 | C162: Accumulated Depreciation
B163: Row 10 | C163: Opening Balance | D163: 0 | E163: =D166 -> -218.1163179 | F163: =E166 -> -731.2731808 | G163: -1321.354271 | H163: -1911.435361 | I163: -2501.51645 | J163: -3091.59754 | K163: -3681.67863 | L163: -4271.75972 | M163: -4861.84081
B164: Row 11 | C164: Depreciation | D164: =-Calculation!I6313 -> -218.1163179 | E164: =-Calculation!J6313 -> -513.1568629 | F164: =-Calculation!K6313 -> -590.0810899 | G164: =-Calculation!L6313 -> -590.0810899 | H164: =-Calculation!M6313 -> -590.0810899 | I164: =-Calculation!N6313 -> -590.0810899 | J164: =-Calculation!O6313 -> -590.0810899 | K164: =-Calculation!P6313 -> -590.0810899 | L164: =-Calculation!Q6313 -> -590.0810899 | M164: =-Calculation!R6313 -> -590.0810899
B165: Row 12 | C165: Retirement | D165: =-Calculation!I6517 -> 0 | E165: =-Calculation!J6517 -> 0 | F165: =-Calculation!K6517 -> 0 | G165: =-Calculation!L6517 -> 0 | H165: =-Calculation!M6517 -> 0 | I165: =-Calculation!N6517 -> 0 | J165: =-Calculation!O6517 -> 0 | K165: =-Calculation!P6517 -> 0 | L165: =-Calculation!Q6517 -> 0 | M165: =-Calculation!R6517 -> 0
B166: Row 13 | C166: Closing Balance | D166: =SUM(D163:D165) -> -218.1163179 | E166: -731.2731808 | F166: -1321.354271 | G166: -1911.435361 | H166: -2501.51645 | I166: -3091.59754 | J166: -3681.67863 | K166: -4271.75972 | L166: -4861.84081 | M166: -5451.9219 | Z166: =SUM(D166:M166)+SUM(Calculation!$H$6721:$R$6721) -> 0
B167: Row 14
B168: Row 15 | C168: Net Fixed Assets | D168: =D160+D166 -> 15657.52098 | E168: =E160+E166 -> 21597.62682 | F168: 21007.54573 | G168: 20417.46464 | H168: 19827.38355 | I168: 19237.30246 | J168: 18647.22137 | K168: 18057.14028 | L168: 17467.05919 | M168: 16876.9781
C170: Projected Fixed Assets Net of External Funded Fixed Assets
C171: (Thousands of Dollars)
D173: Col. 1 | E173: Col. 2 | F173: Col. 3 | G173: Col. 4 | H173: Col. 5 | I173: Col. 6 | J173: Col. 7 | K173: Col. 8 | L173: Col. 9 | M173: Col. 10 | Z173: Check
C175: Description | D175: =Calculation!I$2 -> 2019 | E175: =Calculation!J$2 -> 2020 | F175: =Calculation!K$2 -> 2021 | G175: =Calculation!L$2 -> 2022 | H175: =Calculation!M$2 -> 2023 | I175: =Calculation!N$2 -> 2024 | J175: =Calculation!O$2 -> 2025 | K175: =Calculation!P$2 -> 2026 | L175: =Calculation!Q$2 -> 2027 | M175: =Calculation!R$2 -> 2028
B176: Row 1
B177: Row 2 | C177: Gross Fixed Assets
B178: Row 3 | C178: Opening Balance | D178: 0 | E178: =D183 -> 42248.1728 | F178: =E183 -> 61199.13357 | G178: 64267.07603 | H178: 66084.41639 | I178: 67683.76289 | J178: 68568.32951 | K178: 68987.06346 | L178: 69336.17338 | M178: 70186.87722
B179: Row 4 | C179: Capital Expenditure | D179: =D134-D157 -> 41558.00282 | E179: =E134-E157 -> 18524.06683 | F179: 2873.125613 | G179: 1639.044356 | H179: 1422.337112 | I179: 716.136958 | J179: 255.1923246 | K179: 184.5951908 | L179: 676.7767096 | M179: 33.12989435
B180: Row 5 | C180: Interest During Construction | D180: =Calculation!I7949 -> 544.2726032 | E180: =Calculation!J7949 -> 279.1436657 | F180: =Calculation!K7949 -> 45.19014708 | G180: =Calculation!L7949 -> 26.76904116 | H180: =Calculation!M7949 -> 23.55803753 | I180: =Calculation!N7949 -> 13.02948026 | J180: =Calculation!O7949 -> 6.16786305 | K180: =Calculation!P7949 -> 5.14231567 | L180: =Calculation!Q7949 -> 12.53068862 | M180: =Calculation!R7949 -> 2.938812267
B181: Row 6 | C181: Capitalized Overhead | D181: =D136 -> 145.8973747 | E181: =E136 -> 147.7502713 | F181: 149.6266998 | G181: 151.5269589 | H181: 153.4513512 | I181: 155.4001834 | J181: 157.3737657 | K181: 159.3724126 | L181: 161.3964422 | M181: 163.446177
B182: Row 8 | C182: Retirement | D182: =Calculation!I8971 -> 0 | E182: =Calculation!J8971 -> 0 | F182: =Calculation!K8971 -> 0 | G182: =Calculation!L8971 -> 0 | H182: =Calculation!M8971 -> 0 | I182: =Calculation!N8971 -> 0 | J182: =Calculation!O8971 -> 0 | K182: =Calculation!P8971 -> 0 | L182: =Calculation!Q8971 -> 0 | M182: =Calculation!R8971 -> 0
B183: Row 9 | C183: Closing Balance | D183: =SUM(D178:D182) -> 42248.1728 | E183: 61199.13357 | F183: 64267.07603 | G183: 66084.41639 | H183: 67683.76289 | I183: 68568.32951 | J183: 68987.06346 | K183: 69336.17338 | L183: 70186.87722 | M183: 70386.39211 | Z183: =SUM(D183:M183)-SUM(Calculation!$H$9175:$R$9175) -> 0
B184: Row 10
B185: Row 13 | C185: Accumulated Depreciation
B186: Row 14 | C186: Opening Balance | D186: 0 | E186: =D189 -> -592.4936651 | F186: =E189 -> -2017.852429 | G186: -3727.090215 | H186: -5505.282292 | I186: -7331.267242 | J186: -9191.762693 | K186: -11069.85761 | L186: -12957.91906 | M186: -14883.12482
B187: Row 15 | C187: Depreciation | D187: =Calculation!I9585 -> -592.4936651 | E187: =Calculation!J9585 -> -1425.358764 | F187: =Calculation!K9585 -> -1709.237786 | G187: =Calculation!L9585 -> -1778.192077 | H187: =Calculation!M9585 -> -1825.98495 | I187: =Calculation!N9585 -> -1860.495451 | J187: =Calculation!O9585 -> -1878.094913 | K187: =Calculation!P9585 -> -1888.061458 | L187: =Calculation!Q9585 -> -1925.205754 | M187: =Calculation!R9585 -> -1934.027504
B188: Row 16 | C188: Retirement | D188: =Calculation!I9789 -> 0 | E188: =Calculation!J9789 -> 0 | F188: =Calculation!K9789 -> 0 | G188: =Calculation!L9789 -> 0 | H188: =Calculation!M9789 -> 0 | I188: =Calculation!N9789 -> 0 | J188: =Calculation!O9789 -> 0 | K188: =Calculation!P9789 -> 0 | L188: =Calculation!Q9789 -> 0 | M188: =Calculation!R9789 -> 0
B189: Row 17 | C189: Closing Balance | D189: =SUM(D186:D188) -> -592.4936651 | E189: -2017.852429 | F189: -3727.090215 | G189: -5505.282292 | H189: -7331.267242 | I189: -9191.762693 | J189: -11069.85761 | K189: -12957.91906 | L189: -14883.12482 | M189: -16817.15232 | Z189: =SUM(D189:M189)-SUM(Calculation!$H$9993:$R$9993) -> 0
B190: Row 18
B191: Row 19 | C191: Net Fixed Assets (Year End) | D191: =D183+D189 -> 41655.67914 | E191: 59181.28114 | F191: 60539.98582 | G191: 60579.13409 | H191: 60352.49565 | I191: 59376.56682 | J191: 57917.20586 | K191: 56378.25432 | L191: 55303.7524 | M191: 53569.23978 | Z191: =ABS(SUM(D191:M191)-SUM($D$211:$M$211)-SUM($D$217:$M$217)-SUM($D$236:$M$236)-SUM($D$242:$M$242)-SUM($D$261:$M$261)-SUM($D$267:$M$267)-SUM($D$286:$M$286)-SUM($D$292:$M$292)-SUM(D311:M311)-SUM(D317:M317)-SUM(D336:M336)-SUM(D342:M342)-SUM(D361:M361)-SUM(D367:M367)-SUM(D386:M386)-SUM(D392:M392)-SUM(D411:M411)-SUM(D417:M417)-SUM(D436:M436)-SUM(D442:M442)) -> 1.71667125e-11
B192: Row 20 | C192: Net Fixed Assets (Mid-year) | D192: =AVERAGE(D178,D183)+AVERAGE(D186,D189) -> 20827.83957 | E192: 50418.48014 | F192: 59860.63348 | G192: 60559.55996 | H192: 60465.81487 | I192: 59864.53123 | J192: 58646.88634 | K192: 57147.73009 | L192: 55841.00336 | M192: 54436.49609 | Z192: =ABS(SUM(D192:M192)-SUM(Calculation!$H$10668:$R$10668)) -> 0
C196: Asset Category | D196: =Input!C$46 -> CIAC to Union - Owen Sound Reinforcement
C197: ="Projected Continuity Schedule of "&$D196 -> Projected Continuity Schedule of CIAC to Union - Owen Sound Reinforcement
C198: (Thousands of Dollars)
D200: Col. 1 | E200: Col. 2 | F200: Col. 3 | G200: Col. 4 | H200: Col. 5 | I200: Col. 6 | J200: Col. 7 | K200: Col. 8 | L200: Col. 9 | M200: Col. 10
C202: Description | D202: =Calculation!I$2 -> 2019 | E202: =Calculation!J$2 -> 2020 | F202: =Calculation!K$2 -> 2021 | G202: =Calculation!L$2 -> 2022 | H202: =Calculation!M$2 -> 2023 | I202: =Calculation!N$2 -> 2024 | J202: =Calculation!O$2 -> 2025 | K202: =Calculation!P$2 -> 2026 | L202: =Calculation!Q$2 -> 2027 | M202: =Calculation!R$2 -> 2028
B203: Row 1
B204: Row 2 | C204: Gross Fixed Assets
B205: Row 3 | C205: Opening Balance | D205: 0 | E205: =D211 -> 2363.133949 | F205: =E211 -> 2363.133949 | G205: 2363.133949 | H205: 2363.133949 | I205: 2363.133949 | J205: 2363.133949 | K205: 2363.133949 | L205: 2363.133949 | M205: 2363.133949
B206: Row 4 | C206: Capital Expenditure | D206: =-SUMIFS(Input!$Z$169:$Z$368,Input!$F$169:$F$368,D202,Input!$Q$169:$Q$368,$D196) -> 2363.133949 | E206: =-SUMIFS(Input!$Z$169:$Z$368,Input!$F$169:$F$368,E202,Input!$Q$169:$Q$368,$D196) -> 0 | F206: =-SUMIFS(Input!$Z$169:$Z$368,Input!$F$169:$F$368,F202,Input!$Q$169:$Q$368,$D196) -> 0 | G206: =-SUMIFS(Input!$Z$169:$Z$368,Input!$F$169:$F$368,G202,Input!$Q$169:$Q$368,$D196) -> 0 | H206: =-SUMIFS(Input!$Z$169:$Z$368,Input!$F$169:$F$368,H202,Input!$Q$169:$Q$368,$D196) -> 0 | I206: =-SUMIFS(Input!$Z$169:$Z$368,Input!$F$169:$F$368,I202,Input!$Q$169:$Q$368,$D196) -> 0 | J206: =-SUMIFS(Input!$Z$169:$Z$368,Input!$F$169:$F$368,J202,Input!$Q$169:$Q$368,$D196) -> 0 | K206: =-SUMIFS(Input!$Z$169:$Z$368,Input!$F$169:$F$368,K202,Input!$Q$169:$Q$368,$D196) -> 0 | L206: =-SUMIFS(Input!$Z$169:$Z$368,Input!$F$169:$F$368,L202,Input!$Q$169:$Q$368,$D196) -> 0 | M206: =-SUMIFS(Input!$Z$169:$Z$368,Input!$F$169:$F$368,M202,Input!$Q$169:$Q$368,$D196) -> 0
B207: Row 5 | C207: Interest During Construction | D207: =SUMIFS(Calculation!I$7749:I$7948,Input!$F$169:$F$368,D202,Input!$Q$169:$Q$368,$D196) -> 0 | E207: =SUMIFS(Calculation!J$7749:J$7948,Input!$F$169:$F$368,E202,Input!$Q$169:$Q$368,$D196) -> 0 | F207: =SUMIFS(Calculation!K$7749:K$7948,Input!$F$169:$F$368,F202,Input!$Q$169:$Q$368,$D196) -> 0 | G207: =SUMIFS(Calculation!L$7749:L$7948,Input!$F$169:$F$368,G202,Input!$Q$169:$Q$368,$D196) -> 0 | H207: =SUMIFS(Calculation!M$7749:M$7948,Input!$F$169:$F$368,H202,Input!$Q$169:$Q$368,$D196) -> 0 | I207: =SUMIFS(Calculation!N$7749:N$7948,Input!$F$169:$F$368,I202,Input!$Q$169:$Q$368,$D196) -> 0 | J207: =SUMIFS(Calculation!O$7749:O$7948,Input!$F$169:$F$368,J202,Input!$Q$169:$Q$368,$D196) -> 0 | K207: =SUMIFS(Calculation!P$7749:P$7948,Input!$F$169:$F$368,K202,Input!$Q$169:$Q$368,$D196) -> 0 | L207: =SUMIFS(Calculation!Q$7749:Q$7948,Input!$F$169:$F$368,L202,Input!$Q$169:$Q$368,$D196) -> 0 | M207: =SUMIFS(Calculation!R$7749:R$7948,Input!$F$169:$F$368,M202,Input!$Q$169:$Q$368,$D196) -> 0
B208: Row 6 | C208: Capitalized Overhead | D208: =-SUMIFS(Input!$AA$169:$AA$368,Input!$F$169:$F$368,D202,Input!$Q$169:$Q$368,$D196) -> 0 | E208: =-SUMIFS(Input!$AA$169:$AA$368,Input!$F$169:$F$368,E202,Input!$Q$169:$Q$368,$D196) -> 0 | F208: =-SUMIFS(Input!$AA$169:$AA$368,Input!$F$169:$F$368,F202,Input!$Q$169:$Q$368,$D196) -> 0 | G208: =-SUMIFS(Input!$AA$169:$AA$368,Input!$F$169:$F$368,G202,Input!$Q$169:$Q$368,$D196) -> 0 | H208: =-SUMIFS(Input!$AA$169:$AA$368,Input!$F$169:$F$368,H202,Input!$Q$169:$Q$368,$D196) -> 0 | I208: =-SUMIFS(Input!$AA$169:$AA$368,Input!$F$169:$F$368,I202,Input!$Q$169:$Q$368,$D196) -> 0 | J208: =-SUMIFS(Input!$AA$169:$AA$368,Input!$F$169:$F$368,J202,Input!$Q$169:$Q$368,$D196) -> 0 | K208: =-SUMIFS(Input!$AA$169:$AA$368,Input!$F$169:$F$368,K202,Input!$Q$169:$Q$368,$D196) -> 0 | L208: =-SUMIFS(Input!$AA$169:$AA$368,Input!$F$169:$F$368,L202,Input!$Q$169:$Q$368,$D196) -> 0 | M208: =-SUMIFS(Input!$AA$169:$AA$368,Input!$F$169:$F$368,M202,Input!$Q$169:$Q$368,$D196) -> 0
B209: Row 7 | C209: Grant Funding | D209: =-SUMIFS(Input!$U$169:$U$368,Input!$F$169:$F$368,D202,Input!$Q$169:$Q$368,$D196) -> 0 | E209: =-SUMIFS(Input!$U$169:$U$368,Input!$F$169:$F$368,E202,Input!$Q$169:$Q$368,$D196) -> 0 | F209: =-SUMIFS(Input!$U$169:$U$368,Input!$F$169:$F$368,F202,Input!$Q$169:$Q$368,$D196) -> 0 | G209: =-SUMIFS(Input!$U$169:$U$368,Input!$F$169:$F$368,G202,Input!$Q$169:$Q$368,$D196) -> 0 | H209: =-SUMIFS(Input!$U$169:$U$368,Input!$F$169:$F$368,H202,Input!$Q$169:$Q$368,$D196) -> 0 | I209: =-SUMIFS(Input!$U$169:$U$368,Input!$F$169:$F$368,I202,Input!$Q$169:$Q$368,$D196) -> 0 | J209: =-SUMIFS(Input!$U$169:$U$368,Input!$F$169:$F$368,J202,Input!$Q$169:$Q$368,$D196) -> 0 | K209: =-SUMIFS(Input!$U$169:$U$368,Input!$F$169:$F$368,K202,Input!$Q$169:$Q$368,$D196) -> 0 | L209: =-SUMIFS(Input!$U$169:$U$368,Input!$F$169:$F$368,L202,Input!$Q$169:$Q$368,$D196) -> 0 | M209: =-SUMIFS(Input!$U$169:$U$368,Input!$F$169:$F$368,M202,Input!$Q$169:$Q$368,$D196) -> 0
B210: Row 8 | C210: Retirement | D210: =SUMIFS(Calculation!I$8771:I$8970,Input!$F$169:$F$368,D202,Input!$Q$169:$Q$368,$D196) -> 0 | E210: =SUMIFS(Calculation!J$8771:J$8970,Input!$F$169:$F$368,E202,Input!$Q$169:$Q$368,$D196) -> 0 | F210: =SUMIFS(Calculation!K$8771:K$8970,Input!$F$169:$F$368,F202,Input!$Q$169:$Q$368,$D196) -> 0 | G210: =SUMIFS(Calculation!L$8771:L$8970,Input!$F$169:$F$368,G202,Input!$Q$169:$Q$368,$D196) -> 0 | H210: =SUMIFS(Calculation!M$8771:M$8970,Input!$F$169:$F$368,H202,Input!$Q$169:$Q$368,$D196) -> 0 | I210: =SUMIFS(Calculation!N$8771:N$8970,Input!$F$169:$F$368,I202,Input!$Q$169:$Q$368,$D196) -> 0 | J210: =SUMIFS(Calculation!O$8771:O$8970,Input!$F$169:$F$368,J202,Input!$Q$169:$Q$368,$D196) -> 0 | K210: =SUMIFS(Calculation!P$8771:P$8970,Input!$F$169:$F$368,K202,Input!$Q$169:$Q$368,$D196) -> 0 | L210: =SUMIFS(Calculation!Q$8771:Q$8970,Input!$F$169:$F$368,L202,Input!$Q$169:$Q$368,$D196) -> 0 | M210: =SUMIFS(Calculation!R$8771:R$8970,Input!$F$169:$F$368,M202,Input!$Q$169:$Q$368,$D196) -> 0
B211: Row 9 | C211: Closing Balance | D211: =SUM(D205:D210) -> 2363.133949 | E211: 2363.133949 | F211: 2363.133949 | G211: 2363.133949 | H211: 2363.133949 | I211: 2363.133949 | J211: 2363.133949 | K211: 2363.133949 | L211: 2363.133949 | M211: 2363.133949
B212: Row 10
B213: Row 11 | C213: Accumulated Depreciation
B214: Row 12 | C214: Opening Balance | D214: 0 | E214: =D217 -> -23.1679799 | F214: =E217 -> -69.50393969 | G214: -115.8398995 | H214: -162.1758593 | I214: -208.5118191 | J214: -254.8477789 | K214: -301.1837387 | L214: -347.5196985 | M214: -393.8556582
B215: Row 13 | C215: Depreciation | D215: =SUMIFS(Calculation!I$9385:I$9584,Input!$Q$169:$Q$368,$D196) -> -23.1679799 | E215: =SUMIFS(Calculation!J$9385:J$9584,Input!$Q$169:$Q$368,$D196) -> -46.33595979 | F215: =SUMIFS(Calculation!K$9385:K$9584,Input!$Q$169:$Q$368,$D196) -> -46.33595979 | G215: =SUMIFS(Calculation!L$9385:L$9584,Input!$Q$169:$Q$368,$D196) -> -46.33595979 | H215: =SUMIFS(Calculation!M$9385:M$9584,Input!$Q$169:$Q$368,$D196) -> -46.33595979 | I215: =SUMIFS(Calculation!N$9385:N$9584,Input!$Q$169:$Q$368,$D196) -> -46.33595979 | J215: =SUMIFS(Calculation!O$9385:O$9584,Input!$Q$169:$Q$368,$D196) -> -46.33595979 | K215: =SUMIFS(Calculation!P$9385:P$9584,Input!$Q$169:$Q$368,$D196) -> -46.33595979 | L215: =SUMIFS(Calculation!Q$9385:Q$9584,Input!$Q$169:$Q$368,$D196) -> -46.33595979 | M215: =SUMIFS(Calculation!R$9385:R$9584,Input!$Q$169:$Q$368,$D196) -> -46.33595979
B216: Row 14 | C216: Retirement | D216: =SUMIFS(Calculation!I$9589:I$9788,Input!$Q$169:$Q$368,$D196) -> 0 | E216: =SUMIFS(Calculation!J$9589:J$9788,Input!$Q$169:$Q$368,$D196) -> 0 | F216: =SUMIFS(Calculation!K$9589:K$9788,Input!$Q$169:$Q$368,$D196) -> 0 | G216: =SUMIFS(Calculation!L$9589:L$9788,Input!$Q$169:$Q$368,$D196) -> 0 | H216: =SUMIFS(Calculation!M$9589:M$9788,Input!$Q$169:$Q$368,$D196) -> 0 | I216: =SUMIFS(Calculation!N$9589:N$9788,Input!$Q$169:$Q$368,$D196) -> 0 | J216: =SUMIFS(Calculation!O$9589:O$9788,Input!$Q$169:$Q$368,$D196) -> 0 | K216: =SUMIFS(Calculation!P$9589:P$9788,Input!$Q$169:$Q$368,$D196) -> 0 | L216: =SUMIFS(Calculation!Q$9589:Q$9788,Input!$Q$169:$Q$368,$D196) -> 0 | M216: =SUMIFS(Calculation!R$9589:R$9788,Input!$Q$169:$Q$368,$D196) -> 0
B217: Row 15 | C217: Closing Balance | D217: =SUM(D214:D216) -> -23.1679799 | E217: -69.50393969 | F217: -115.8398995 | G217: -162.1758593 | H217: -208.5118191 | I217: -254.8477789 | J217: -301.1837387 | K217: -347.5196985 | L217: -393.8556582 | M217: -440.191618
B218: Row 16
B219: Row 17 | C219: Net Asset | D219: =D211+D217 -> 2339.96597 | E219: =E211+E217 -> 2293.63001 | F219: 2247.29405 | G219: 2200.95809 | H219: 2154.62213 | I219: 2108.286171 | J219: 2061.950211 | K219: 2015.614251 | L219: 1969.278291 | M219: 1922.942331
C221: Asset Category | D221: =Input!C$47 -> CIAC to Union - Station
C222: ="Projected Continuity Schedule of "&$D221 -> Projected Continuity Schedule of CIAC to Union - Station
C223: (Thousands of Dollars)
D225: Col. 1 | E225: Col. 2 | F225: Col. 3 | G225: Col. 4 | H225: Col. 5 | I225: Col. 6 | J225: Col. 7 | K225: Col. 8 | L225: Col. 9 | M225: Col. 10
C227: Description | D227: =Calculation!I$2 -> 2019 | E227: =Calculation!J$2 -> 2020 | F227: =Calculation!K$2 -> 2021 | G227: =Calculation!L$2 -> 2022 | H227: =Calculation!M$2 -> 2023 | I227: =Calculation!N$2 -> 2024 | J227: =Calculation!O$2 -> 2025 | K227: =Calculation!P$2 -> 2026 | L227: =Calculation!Q$2 -> 2027 | M227: =Calculation!R$2 -> 2028
B228: Row 1
B229: Row 2 | C229: Gross Fixed Assets
B230: Row 3 | C230: Opening Balance | D230: 0 | E230: =D236 -> 2934.572055 | F230: 2934.572055 | G230: 2934.572055 | H230: 2934.572055 | I230: 2934.572055 | J230: 2934.572055 | K230: 2934.572055 | L230: 2934.572055 | M230: 2934.572055
B231: Row 4 | C231: Capital Expenditure | D231: =-SUMIFS(Input!$Z$169:$Z$368,Input!$F$169:$F$368,D227,Input!$Q$169:$Q$368,$D221) -> 2934.572055 | E231: =-SUMIFS(Input!$Z$169:$Z$368,Input!$F$169:$F$368,E227,Input!$Q$169:$Q$368,$D221) -> 0 | F231: =-SUMIFS(Input!$Z$169:$Z$368,Input!$F$169:$F$368,F227,Input!$Q$169:$Q$368,$D221) -> 0 | G231: =-SUMIFS(Input!$Z$169:$Z$368,Input!$F$169:$F$368,G227,Input!$Q$169:$Q$368,$D221) -> 0 | H231: =-SUMIFS(Input!$Z$169:$Z$368,Input!$F$169:$F$368,H227,Input!$Q$169:$Q$368,$D221) -> 0 | I231: =-SUMIFS(Input!$Z$169:$Z$368,Input!$F$169:$F$368,I227,Input!$Q$169:$Q$368,$D221) -> 0 | J231: =-SUMIFS(Input!$Z$169:$Z$368,Input!$F$169:$F$368,J227,Input!$Q$169:$Q$368,$D221) -> 0 | K231: =-SUMIFS(Input!$Z$169:$Z$368,Input!$F$169:$F$368,K227,Input!$Q$169:$Q$368,$D221) -> 0 | L231: =-SUMIFS(Input!$Z$169:$Z$368,Input!$F$169:$F$368,L227,Input!$Q$169:$Q$368,$D221) -> 0 | M231: =-SUMIFS(Input!$Z$169:$Z$368,Input!$F$169:$F$368,M227,Input!$Q$169:$Q$368,$D221) -> 0
B232: Row 5 | C232: Interest During Construction | D232: =SUMIFS(Calculation!I$7749:I$7948,Input!$F$169:$F$368,D227,Input!$Q$169:$Q$368,$D221) -> 0 | E232: =SUMIFS(Calculation!J$7749:J$7948,Input!$F$169:$F$368,E227,Input!$Q$169:$Q$368,$D221) -> 0 | F232: =SUMIFS(Calculation!K$7749:K$7948,Input!$F$169:$F$368,F227,Input!$Q$169:$Q$368,$D221) -> 0 | G232: =SUMIFS(Calculation!L$7749:L$7948,Input!$F$169:$F$368,G227,Input!$Q$169:$Q$368,$D221) -> 0 | H232: =SUMIFS(Calculation!M$7749:M$7948,Input!$F$169:$F$368,H227,Input!$Q$169:$Q$368,$D221) -> 0 | I232: =SUMIFS(Calculation!N$7749:N$7948,Input!$F$169:$F$368,I227,Input!$Q$169:$Q$368,$D221) -> 0 | J232: =SUMIFS(Calculation!O$7749:O$7948,Input!$F$169:$F$368,J227,Input!$Q$169:$Q$368,$D221) -> 0 | K232: =SUMIFS(Calculation!P$7749:P$7948,Input!$F$169:$F$368,K227,Input!$Q$169:$Q$368,$D221) -> 0 | L232: =SUMIFS(Calculation!Q$7749:Q$7948,Input!$F$169:$F$368,L227,Input!$Q$169:$Q$368,$D221) -> 0 | M232: =SUMIFS(Calculation!R$7749:R$7948,Input!$F$169:$F$368,M227,Input!$Q$169:$Q$368,$D221) -> 0
B233: Row 6 | C233: Capitalized Overhead | D233: =-SUMIFS(Input!$AA$169:$AA$368,Input!$F$169:$F$368,D227,Input!$Q$169:$Q$368,$D221) -> 0 | E233: =-SUMIFS(Input!$AA$169:$AA$368,Input!$F$169:$F$368,E227,Input!$Q$169:$Q$368,$D221) -> 0 | F233: =-SUMIFS(Input!$AA$169:$AA$368,Input!$F$169:$F$368,F227,Input!$Q$169:$Q$368,$D221) -> 0 | G233: =-SUMIFS(Input!$AA$169:$AA$368,Input!$F$169:$F$368,G227,Input!$Q$169:$Q$368,$D221) -> 0 | H233: =-SUMIFS(Input!$AA$169:$AA$368,Input!$F$169:$F$368,H227,Input!$Q$169:$Q$368,$D221) -> 0 | I233: =-SUMIFS(Input!$AA$169:$AA$368,Input!$F$169:$F$368,I227,Input!$Q$169:$Q$368,$D221) -> 0 | J233: =-SUMIFS(Input!$AA$169:$AA$368,Input!$F$169:$F$368,J227,Input!$Q$169:$Q$368,$D221) -> 0 | K233: =-SUMIFS(Input!$AA$169:$AA$368,Input!$F$169:$F$368,K227,Input!$Q$169:$Q$368,$D221) -> 0 | L233: =-SUMIFS(Input!$AA$169:$AA$368,Input!$F$169:$F$368,L227,Input!$Q$169:$Q$368,$D221) -> 0 | M233: =-SUMIFS(Input!$AA$169:$AA$368,Input!$F$169:$F$368,M227,Input!$Q$169:$Q$368,$D221) -> 0
B234: Row 7 | C234: Grant Funding | D234: =-SUMIFS(Input!$U$169:$U$368,Input!$F$169:$F$368,D227,Input!$Q$169:$Q$368,$D221) -> 0 | E234: =-SUMIFS(Input!$U$169:$U$368,Input!$F$169:$F$368,E227,Input!$Q$169:$Q$368,$D221) -> 0 | F234: =-SUMIFS(Input!$U$169:$U$368,Input!$F$169:$F$368,F227,Input!$Q$169:$Q$368,$D221) -> 0 | G234: =-SUMIFS(Input!$U$169:$U$368,Input!$F$169:$F$368,G227,Input!$Q$169:$Q$368,$D221) -> 0 | H234: =-SUMIFS(Input!$U$169:$U$368,Input!$F$169:$F$368,H227,Input!$Q$169:$Q$368,$D221) -> 0 | I234: =-SUMIFS(Input!$U$169:$U$368,Input!$F$169:$F$368,I227,Input!$Q$169:$Q$368,$D221) -> 0 | J234: =-SUMIFS(Input!$U$169:$U$368,Input!$F$169:$F$368,J227,Input!$Q$169:$Q$368,$D221) -> 0 | K234: =-SUMIFS(Input!$U$169:$U$368,Input!$F$169:$F$368,K227,Input!$Q$169:$Q$368,$D221) -> 0 | L234: =-SUMIFS(Input!$U$169:$U$368,Input!$F$169:$F$368,L227,Input!$Q$169:$Q$368,$D221) -> 0 | M234: =-SUMIFS(Input!$U$169:$U$368,Input!$F$169:$F$368,M227,Input!$Q$169:$Q$368,$D221) -> 0
B235: Row 8 | C235: Retirement | D235: =SUMIFS(Calculation!I$8771:I$8970,Input!$F$169:$F$368,D227,Input!$Q$169:$Q$368,$D221) -> 0 | E235: =SUMIFS(Calculation!J$8771:J$8970,Input!$F$169:$F$368,E227,Input!$Q$169:$Q$368,$D221) -> 0 | F235: =SUMIFS(Calculation!K$8771:K$8970,Input!$F$169:$F$368,F227,Input!$Q$169:$Q$368,$D221) -> 0 | G235: =SUMIFS(Calculation!L$8771:L$8970,Input!$F$169:$F$368,G227,Input!$Q$169:$Q$368,$D221) -> 0 | H235: =SUMIFS(Calculation!M$8771:M$8970,Input!$F$169:$F$368,H227,Input!$Q$169:$Q$368,$D221) -> 0 | I235: =SUMIFS(Calculation!N$8771:N$8970,Input!$F$169:$F$368,I227,Input!$Q$169:$Q$368,$D221) -> 0 | J235: =SUMIFS(Calculation!O$8771:O$8970,Input!$F$169:$F$368,J227,Input!$Q$169:$Q$368,$D221) -> 0 | K235: =SUMIFS(Calculation!P$8771:P$8970,Input!$F$169:$F$368,K227,Input!$Q$169:$Q$368,$D221) -> 0 | L235: =SUMIFS(Calculation!Q$8771:Q$8970,Input!$F$169:$F$368,L227,Input!$Q$169:$Q$368,$D221) -> 0 | M235: =SUMIFS(Calculation!R$8771:R$8970,Input!$F$169:$F$368,M227,Input!$Q$169:$Q$368,$D221) -> 0
B236: Row 9 | C236: Closing Balance | D236: =SUM(D230:D235) -> 2934.572055 | E236: 2934.572055 | F236: 2934.572055 | G236: 2934.572055 | H236: 2934.572055 | I236: 2934.572055 | J236: 2934.572055 | K236: 2934.572055 | L236: 2934.572055 | M236: 2934.572055
B237: Row 10
B238: Row 11 | C238: Accumulated Depreciation
B239: Row 12 | C239: Opening Balance | D239: 0 | E239: =D242 -> -38.6127902 | F239: -115.8383706 | G239: -193.063951 | H239: -270.2895314 | I239: -347.5151118 | J239: -424.7406922 | K239: -501.9662726 | L239: -579.1918529 | M239: -656.4174333
B240: Row 13 | C240: Depreciation | D240: =SUMIFS(Calculation!I$9385:I$9584,Input!$Q$169:$Q$368,$D221) -> -38.6127902 | E240: =SUMIFS(Calculation!J$9385:J$9584,Input!$Q$169:$Q$368,$D221) -> -77.22558039 | F240: =SUMIFS(Calculation!K$9385:K$9584,Input!$Q$169:$Q$368,$D221) -> -77.22558039 | G240: =SUMIFS(Calculation!L$9385:L$9584,Input!$Q$169:$Q$368,$D221) -> -77.22558039 | H240: =SUMIFS(Calculation!M$9385:M$9584,Input!$Q$169:$Q$368,$D221) -> -77.22558039 | I240: =SUMIFS(Calculation!N$9385:N$9584,Input!$Q$169:$Q$368,$D221) -> -77.22558039 | J240: =SUMIFS(Calculation!O$9385:O$9584,Input!$Q$169:$Q$368,$D221) -> -77.22558039 | K240: =SUMIFS(Calculation!P$9385:P$9584,Input!$Q$169:$Q$368,$D221) -> -77.22558039 | L240: =SUMIFS(Calculation!Q$9385:Q$9584,Input!$Q$169:$Q$368,$D221) -> -77.22558039 | M240: =SUMIFS(Calculation!R$9385:R$9584,Input!$Q$169:$Q$368,$D221) -> -77.22558039
B241: Row 14 | C241: Retirement | D241: =SUMIFS(Calculation!I$9589:I$9788,Input!$Q$169:$Q$368,$D221) -> 0 | E241: =SUMIFS(Calculation!J$9589:J$9788,Input!$Q$169:$Q$368,$D221) -> 0 | F241: =SUMIFS(Calculation!K$9589:K$9788,Input!$Q$169:$Q$368,$D221) -> 0 | G241: =SUMIFS(Calculation!L$9589:L$9788,Input!$Q$169:$Q$368,$D221) -> 0 | H241: =SUMIFS(Calculation!M$9589:M$9788,Input!$Q$169:$Q$368,$D221) -> 0 | I241: =SUMIFS(Calculation!N$9589:N$9788,Input!$Q$169:$Q$368,$D221) -> 0 | J241: =SUMIFS(Calculation!O$9589:O$9788,Input!$Q$169:$Q$368,$D221) -> 0 | K241: =SUMIFS(Calculation!P$9589:P$9788,Input!$Q$169:$Q$368,$D221) -> 0 | L241: =SUMIFS(Calculation!Q$9589:Q$9788,Input!$Q$169:$Q$368,$D221) -> 0 | M241: =SUMIFS(Calculation!R$9589:R$9788,Input!$Q$169:$Q$368,$D221) -> 0
B242: Row 15 | C242: Closing Balance | D242: =SUM(D239:D241) -> -38.6127902 | E242: =SUM(E239:E241) -> -115.8383706 | F242: -193.063951 | G242: -270.2895314 | H242: -347.5151118 | I242: -424.7406922 | J242: -501.9662726 | K242: -579.1918529 | L242: -656.4174333 | M242: -733.6430137
B243: Row 16
B244: Row 17 | C244: Net Asset | D244: =D236+D242 -> 2895.959265 | E244: =E236+E242 -> 2818.733684 | F244: 2741.508104 | G244: 2664.282524 | H244: 2587.056943 | I244: 2509.831363 | J244: 2432.605782 | K244: 2355.380202 | L244: 2278.154622 | M244: 2200.929041
C246: Asset Category | D246: =Input!C$48 -> Distribution Mains - Metallic
C247: ="Projected Continuity Schedule of "&$D246 -> Projected Continuity Schedule of Distribution Mains - Metallic
C248: (Thousands of Dollars)
D250: Col. 1 | E250: Col. 2 | F250: Col. 3 | G250: Col. 4 | H250: Col. 5 | I250: Col. 6 | J250: Col. 7 | K250: Col. 8 | L250: Col. 9 | M250: Col. 10
C252: Description | D252: =Calculation!I$2 -> 2019 | E252: =Calculation!J$2 -> 2020 | F252: =Calculation!K$2 -> 2021 | G252: =Calculation!L$2 -> 2022 | H252: =Calculation!M$2 -> 2023 | I252: =Calculation!N$2 -> 2024 | J252: =Calculation!O$2 -> 2025 | K252: =Calculation!P$2 -> 2026 | L252: =Calculation!Q$2 -> 2027 | M252: =Calculation!R$2 -> 2028
B253: Row 1
B254: Row 2 | C254: Gross Fixed Assets
B255: Row 3 | C255: Opening Balance | D255: 0 | E255: =D261 -> 25913.15029 | F255: 25913.15029 | G255: 25913.15029 | H255: 25913.15029 | I255: 25913.15029 | J255: 25913.15029 | K255: 25913.15029 | L255: 25913.15029 | M255: 25913.15029
B256: Row 4 | C256: Capital Expenditure | D256: =-SUMIFS(Input!$Z$169:$Z$368,Input!$F$169:$F$368,D252,Input!$Q$169:$Q$368,$D246) -> 36719.51504 | E256: =-SUMIFS(Input!$Z$169:$Z$368,Input!$F$169:$F$368,E252,Input!$Q$169:$Q$368,$D246) -> 0 | F256: =-SUMIFS(Input!$Z$169:$Z$368,Input!$F$169:$F$368,F252,Input!$Q$169:$Q$368,$D246) -> 0 | G256: =-SUMIFS(Input!$Z$169:$Z$368,Input!$F$169:$F$368,G252,Input!$Q$169:$Q$368,$D246) -> 0 | H256: =-SUMIFS(Input!$Z$169:$Z$368,Input!$F$169:$F$368,H252,Input!$Q$169:$Q$368,$D246) -> 0 | I256: =-SUMIFS(Input!$Z$169:$Z$368,Input!$F$169:$F$368,I252,Input!$Q$169:$Q$368,$D246) -> 0 | J256: =-SUMIFS(Input!$Z$169:$Z$368,Input!$F$169:$F$368,J252,Input!$Q$169:$Q$368,$D246) -> 0 | K256: =-SUMIFS(Input!$Z$169:$Z$368,Input!$F$169:$F$368,K252,Input!$Q$169:$Q$368,$D246) -> 0 | L256: =-SUMIFS(Input!$Z$169:$Z$368,Input!$F$169:$F$368,L252,Input!$Q$169:$Q$368,$D246) -> 0 | M256: =-SUMIFS(Input!$Z$169:$Z$368,Input!$F$169:$F$368,M252,Input!$Q$169:$Q$368,$D246) -> 0
B257: Row 5 | C257: Interest During Construction | D257: =SUMIFS(Calculation!I$7749:I$7948,Input!$F$169:$F$368,D252,Input!$Q$169:$Q$368,$D246) -> 381.6952528 | E257: =SUMIFS(Calculation!J$7749:J$7948,Input!$F$169:$F$368,E252,Input!$Q$169:$Q$368,$D246) -> 0 | F257: =SUMIFS(Calculation!K$7749:K$7948,Input!$F$169:$F$368,F252,Input!$Q$169:$Q$368,$D246) -> 0 | G257: =SUMIFS(Calculation!L$7749:L$7948,Input!$F$169:$F$368,G252,Input!$Q$169:$Q$368,$D246) -> 0 | H257: =SUMIFS(Calculation!M$7749:M$7948,Input!$F$169:$F$368,H252,Input!$Q$169:$Q$368,$D246) -> 0 | I257: =SUMIFS(Calculation!N$7749:N$7948,Input!$F$169:$F$368,I252,Input!$Q$169:$Q$368,$D246) -> 0 | J257: =SUMIFS(Calculation!O$7749:O$7948,Input!$F$169:$F$368,J252,Input!$Q$169:$Q$368,$D246) -> 0 | K257: =SUMIFS(Calculation!P$7749:P$7948,Input!$F$169:$F$368,K252,Input!$Q$169:$Q$368,$D246) -> 0 | L257: =SUMIFS(Calculation!Q$7749:Q$7948,Input!$F$169:$F$368,L252,Input!$Q$169:$Q$368,$D246) -> 0 | M257: =SUMIFS(Calculation!R$7749:R$7948,Input!$F$169:$F$368,M252,Input!$Q$169:$Q$368,$D246) -> 0
B258: Row 6 | C258: Capitalized Overhead | D258: =-SUMIFS(Input!$AA$169:$AA$368,Input!$F$169:$F$368,D252,Input!$Q$169:$Q$368,$D246) -> 104.1578912 | E258: =-SUMIFS(Input!$AA$169:$AA$368,Input!$F$169:$F$368,E252,Input!$Q$169:$Q$368,$D246) -> 0 | F258: =-SUMIFS(Input!$AA$169:$AA$368,Input!$F$169:$F$368,F252,Input!$Q$169:$Q$368,$D246) -> 0 | G258: =-SUMIFS(Input!$AA$169:$AA$368,Input!$F$169:$F$368,G252,Input!$Q$169:$Q$368,$D246) -> 0 | H258: =-SUMIFS(Input!$AA$169:$AA$368,Input!$F$169:$F$368,H252,Input!$Q$169:$Q$368,$D246) -> 0 | I258: =-SUMIFS(Input!$AA$169:$AA$368,Input!$F$169:$F$368,I252,Input!$Q$169:$Q$368,$D246) -> 0 | J258: =-SUMIFS(Input!$AA$169:$AA$368,Input!$F$169:$F$368,J252,Input!$Q$169:$Q$368,$D246) -> 0 | K258: =-SUMIFS(Input!$AA$169:$AA$368,Input!$F$169:$F$368,K252,Input!$Q$169:$Q$368,$D246) -> 0 | L258: =-SUMIFS(Input!$AA$169:$AA$368,Input!$F$169:$F$368,L252,Input!$Q$169:$Q$368,$D246) -> 0 | M258: =-SUMIFS(Input!$AA$169:$AA$368,Input!$F$169:$F$368,M252,Input!$Q$169:$Q$368,$D246) -> 0
... 3020 more rows

Sheet Check
A1: CHECK
C3: Tab | D3: Check | E3: Value
C4: Input | D4: Functionalization of O&M and Flow-through Costs | E4: =SUM(Input!$F$377:$F$406) -> 2.220446049e-16
C5: Input | D5: Functionalization of NWC | E5: =SUM(Input!F431:F461) -> 3.330669074e-16
C6: Input | D6: Functionalization of Depreciation | E6: =Output!Z971 -> 0
C7: Input | D7: Functionalization of Property Taxes | E7: =Output!Z994 -> 0
C8: Input | D8: Classification of O&M and Flow-through Costs | E8: =SUM(Input!E377:E406) -> 2.220446049e-16
C9: Input | D9: Classification of NWC | E9: =Input!E461 -> 0
C10: Input | D10: Functionalization and Classification Table | E10: =SUM(Input!D118:Q118) -> 0
C11: Input | D11: Classification and Allocation Factor Mapping | E11: =SUM(Input!$V$123:$V$136) -> 0
C12: Input | D12: Tier Volumes | E12: =SUM(Input!I558:R558,Input!I586:R586,Input!I614:R614,Input!I642:R642,Input!I670:R670,Input!I698:R698,Input!I726:R726,Input!I754:R754,Input!I782:R782,Input!I810:R810,Input!I838:R838,Input!I866:R866,Input!I894:R894,Input!I922:R922,Input!I950:R950,Input!I978:R978) -> 0
C13: Input | D13: Capital Cost After Grant | E13: =SUM(Input!AJ169:AJ368) -> 0
C14: Input | D14: Upstream Revenue to Cost | E14: =Calculation!R10021 -> 0
C15: Calculation | D15: Balance Sheet | E15: =SUM(Calculation!H57:R57) -> 2.964952728e-10
C16: Calculation | D16: Cash Flow | E16: =SUM(Calculation!H82:R82) -> 0
C17: Calculation | D17: Tax Delta | E17: =Calculation!G10969 -> 0
C18: Calculation | D18: Classification of CIAC to Union Rate Base | E18: =SUM(Calculation!I10732:R10732) -> 0
C19: Calculation | D19: Classification of CIAC to Union Depreciation | E19: =SUM(Calculation!I10777:R10777) -> 0
C20: Calculation | D20: Classification of Deferred Revenue Rate Base | E20: =SUM(Calculation!I10839:R10839) -> 0
C21: Calculation | D21: Classification of Deferred Revenue Disposition | E21: =SUM(Calculation!$I$10884:$R$10884) -> 0
C22: Calculation | D22: System Charge | E22: =SUM(Calculation!I10950:R10950) -> 0
C23: Calculation | D23: Rate 16 Transportation and Storage Charge | E23: =SUM(Calculation!I12294:R12294) -> 0
C24: Calculation | D24: Deferred Revenue Account | E24: =SUM(Calculation!H10006:R10006) -> 4.689582056e-13
C25: Output | D25: Revenue to Cost Table Including Flow-through | E25: =Output!S845 -> 0
C26: Output | D26: Revenue to Cost Table Excluding Flow-through | E26: =Output!S873 -> 4.547473509e-13
C27: Output | D27: Functionalization of Rate Base | E27: =Output!Z910 -> 7.275957614e-12
C28: Output | D28: Functionalization of Net Working Capital | E28: =Output!Z951 -> 0
C29: Output | D29: Functionalization of Deporeciation and Property Tax | E29: =Output!Z961 -> 0
C30: Output | D30: Functionalization of O&M and Flow-through Costs | E30: =Output!Z1034 -> 0
C31: Output | D31: Functionalization Percentages for Rate Base | E31: =SUM(Output!Z1137:Z1147) -> -2.220446049e-16
C32: Output | D32: Functionalization Percentages for Net Working Capital | E32: =SUM(Output!Z1156:Z1185) -> -3.330669074e-16
C33: Output | D33: Functionalization Percentages for O&M and Flow-through Costs | E33: =SUM(Output!Z1195:Z1224) -> -2.220446049e-16
C34: Output | D34: Classification of Rate Base | E34: =Output!Z1249 -> 0
C35: Output | D35: Classification of Depreciation | E35: =Output!Z1295 -> 0
C36: Output | D36: Classification of Property Tax | E36: =Output!Z1318 -> 0
C37: Output | D37: Classification Percentages by Function | E37: =SUM(Output!Z1418:Z1431) -> 2.220446049e-16
C38: Output | D38: Classification of Working Capital | E38: =Output!Z1272 -> 0
C39: Output | D39: Classification of O&M | E39: =Output!Z1341 -> 0
C40: Output | D40: Allocation Facators | E40: =Output!Z1459 -> 0
C41: Output | D41: Allocation Percentages | E41: =SUM(Output!Z1539:Z1551) -> -3.330669074e-16
C42: Output | D42: Allocation of Rate Base | E42: =Output!Z1575 -> 0
C43: Output | D43: Allocation of Return and Income Taxes | E43: =Output!Z1599 -> 0
C44: Output | D44: Allocation of Depreciation | E44: =Output!Z1623 -> 0
C45: Output | D45: Allocation of Property Tax | E45: =Output!Z1646 -> 0
C46: Output | D46: Allocation of O&M | E46: =Output!Z1669 -> -1.435296326e-12
C47: Output | D47: Summary of Rate Base | E47: =Output!Z123 -> 0
C48: Output | D48: Gross Fixed Asset Continuity | E48: =Output!Z138 -> 0
C49: Output | D49: Gross AD Continuity | E49: =Output!Z144 -> 0
C50: Output | D50: Gross Grant Continuity | E50: =Output!Z160 -> 0
C51: Output | D51: Gross Grant AD Continuity | E51: =Output!Z166 -> 0
C52: Output | D52: Gross Fixed Asset net of Grant Continuity | E52: =Output!Z183 -> 0
C53: Output | D53: Gross AD net of Grant Continuity | E53: =Output!Z189 -> 0
C54: Output | D54: Mid-year Net Fixed Asset | E54: =SUM(Output!Z191:Z192) -> 1.71667125e-11
C55: Output | D55: Working Capital Summary | E55: =SUM(Output!$Z$454:$Z$456) -> 0
C56: Output | D56: Revenue to Cost Tables | E56: =SUM(Output!S844:S845,Output!S857,Output!S872:S873,Output!S858) -> 1.818989404e-12
C57: Output | D57: Upstream Costs - Functionalization of Upstream Costs | E57: =SUM(Output!Z1891,Output!Z1930,Output!Z2047,Output!Z2049,Output!Z2050) -> 0
C58: Output | D58: Upstream Costs - Classification of Upstream Costs | E58: =SUM(Output!Z2111,Output!Z2134,Output!Z2226,Output!Z2249) -> 0
C59: Output | D59: Upstream Costs - Allocation of Upstream Costs | E59: =SUM(Output!Z2295,Output!Z2318,Output!Z2341,Output!Z2433,Output!Z2456) -> 0
C60: Output | D60: Upstream Costs - Allocation of Return and Taxes | E60: =Output!Z2318 -> 0
C61: Output | D61: Upstream Costs - Allocation of Depreciation | E61: =Output!Z2341 -> 0
C62: Output | D62: Upstream Costs - O&M | E62: =Output!Z2433 -> 0
C63: Output | D63: Assessment Base | E63: =Output!Z571 -> 0
C64: Output | D64: Cost Allocation of Grant Funded Assets | E64: =SUM(Output!Z1802,Output!Z1825,Output!Z1848) -> 0
C65: Output | D65: Total Distribution Revenue | E65: =Output!Z22 -> 0
C66: Output | D66: Ten Year Revenue Requirement | E66: =Output!Z532 -> 1.767830327e-11
C67: Output | D67: Total Revenue | E67: =Output!Z30 -> 0
C68: Output | D68: Pro-forma Financial Statements | E68: =SUM(Output!Z57,Output!Z98,Output!D100:N101) -> 0
